Council Name,Date,TransNo,Amount � (Excl VAT),Unclaimed VAT,Supplier name,Supplier Category,Expense Area,Expense Type
Royal Borough of Kingston,01/06/2022,90132209,"4,732.56",0,ABACUS PRE-SCHOOL,ACADEMIC INSTNS - OTHER,Schools,2 Yr Old Place Funding
Royal Borough of Kingston,01/06/2022,90132254,"16,404.12",0,ABACUS PRE-SCHOOL,ACADEMIC INSTNS - OTHER,Schools,PVI Providers
Royal Borough of Kingston,01/06/2022,90140846,"3,718.16",0,ABBEY 14LIMITED,SOCIAL SERVICES RESIDENTIAL,Adult Social Care & Health,Independent Placements
Royal Borough of Kingston,01/06/2022,90140571,"-1,560.00",0,ABBEYFIELD,SOCIAL SERVICES RESIDENTIAL,Adult Social Care & Health,Independent Placements
Royal Borough of Kingston,01/06/2022,90140572,"-3,720.00",0,ABBEYFIELD,SOCIAL SERVICES RESIDENTIAL,Adult Social Care & Health,Independent Placements
Royal Borough of Kingston,01/06/2022,90140687,"3,740.40",0,ABBEYFIELD,SOCIAL SERVICES RESIDENTIAL,Adult Social Care & Health,Independent Placements
Royal Borough of Kingston,01/06/2022,90140688,"3,740.40",0,ABBEYFIELD,SOCIAL SERVICES RESIDENTIAL,Adult Social Care & Health,Independent Placements
Royal Borough of Kingston,01/06/2022,90140689,"3,740.40",0,ABBEYFIELD,SOCIAL SERVICES RESIDENTIAL,Adult Social Care & Health,Independent Placements
Royal Borough of Kingston,01/06/2022,90140691,"3,740.40",0,ABBEYFIELD,SOCIAL SERVICES RESIDENTIAL,Adult Social Care & Health,Independent Placements
Royal Borough of Kingston,01/06/2022,90140710,"3,740.40",0,ABBEYFIELD,SOCIAL SERVICES RESIDENTIAL,Adult Social Care & Health,Independent Placements
Royal Borough of Kingston,01/06/2022,90140711,"3,740.40",0,ABBEYFIELD,SOCIAL SERVICES RESIDENTIAL,Adult Social Care & Health,Independent Placements
Royal Borough of Kingston,01/06/2022,90140720,"3,740.40",0,ABBEYFIELD,SOCIAL SERVICES RESIDENTIAL,Adult Social Care & Health,Independent Placements
Royal Borough of Kingston,01/06/2022,90140722,"3,740.40",0,ABBEYFIELD,SOCIAL SERVICES RESIDENTIAL,Adult Social Care & Health,Independent Placements
Royal Borough of Kingston,01/06/2022,90140723,"3,600.00",0,ABBEYFIELD,SOCIAL SERVICES RESIDENTIAL,Adult Social Care & Health,Independent Placements
Royal Borough of Kingston,01/06/2022,90140729,"1,745.52",0,ABBEYFIELD,SOCIAL SERVICES RESIDENTIAL,Adult Social Care & Health,Independent Placements
Royal Borough of Kingston,01/06/2022,90140730,"-1,745.52",0,ABBEYFIELD,SOCIAL SERVICES RESIDENTIAL,Adult Social Care & Health,Independent Placements
Royal Borough of Kingston,01/06/2022,90140731,"3,740.40",0,ABBEYFIELD,SOCIAL SERVICES RESIDENTIAL,Adult Social Care & Health,Independent Placements
Royal Borough of Kingston,01/06/2022,90140736,"3,740.40",0,ABBEYFIELD,SOCIAL SERVICES RESIDENTIAL,Adult Social Care & Health,Independent Placements
Royal Borough of Kingston,01/06/2022,90140743,"3,740.40",0,ABBEYFIELD,SOCIAL SERVICES RESIDENTIAL,Adult Social Care & Health,Independent Placements
Royal Borough of Kingston,01/06/2022,90140745,"2,040.00",0,ABBEYFIELD,SOCIAL SERVICES RESIDENTIAL,Adult Social Care & Health,Independent Placements
Royal Borough of Kingston,01/06/2022,90140746,"-1,772.25",0,ABBEYFIELD,SOCIAL SERVICES RESIDENTIAL,Adult Social Care & Health,Independent Placements
Royal Borough of Kingston,01/06/2022,90140747,"3,360.00",0,ABBEYFIELD,SOCIAL SERVICES RESIDENTIAL,Adult Social Care & Health,Independent Placements
Royal Borough of Kingston,01/06/2022,90140748,"-2,919.00",0,ABBEYFIELD,SOCIAL SERVICES RESIDENTIAL,Adult Social Care & Health,Independent Placements
Royal Borough of Kingston,01/06/2022,90140749,"3,720.00",0,ABBEYFIELD,SOCIAL SERVICES RESIDENTIAL,Adult Social Care & Health,Independent Placements
Royal Borough of Kingston,01/06/2022,90140750,"-3,231.75",0,ABBEYFIELD,SOCIAL SERVICES RESIDENTIAL,Adult Social Care & Health,Independent Placements
Royal Borough of Kingston,01/06/2022,90140751,"3,740.40",0,ABBEYFIELD,SOCIAL SERVICES RESIDENTIAL,Adult Social Care & Health,Independent Placements
Royal Borough of Kingston,01/06/2022,90140752,"-3,127.50",0,ABBEYFIELD,SOCIAL SERVICES RESIDENTIAL,Adult Social Care & Health,Independent Placements
Royal Borough of Kingston,01/06/2022,90140753,"3,865.08",0,ABBEYFIELD,SOCIAL SERVICES RESIDENTIAL,Adult Social Care & Health,Independent Placements
Royal Borough of Kingston,01/06/2022,90140754,"-3,231.75",0,ABBEYFIELD,SOCIAL SERVICES RESIDENTIAL,Adult Social Care & Health,Independent Placements
Royal Borough of Kingston,01/06/2022,90140755,"3,740.40",0,ABBEYFIELD,SOCIAL SERVICES RESIDENTIAL,Adult Social Care & Health,Independent Placements
Royal Borough of Kingston,01/06/2022,90140760,"3,740.40",0,ABBEYFIELD,SOCIAL SERVICES RESIDENTIAL,Adult Social Care & Health,Independent Placements
Royal Borough of Kingston,01/06/2022,90140762,"3,740.40",0,ABBEYFIELD,SOCIAL SERVICES RESIDENTIAL,Adult Social Care & Health,Independent Placements
Royal Borough of Kingston,01/06/2022,90140830,"4,007.57",0,ABBEYFIELD,SOCIAL SERVICES RESIDENTIAL,Adult Social Care & Health,Independent Placements
Royal Borough of Kingston,01/06/2022,90140838,"3,740.40",0,ABBEYFIELD,SOCIAL SERVICES RESIDENTIAL,Adult Social Care & Health,Independent Placements
Royal Borough of Kingston,01/06/2022,90140845,"4,007.57",0,ABBEYFIELD,SOCIAL SERVICES RESIDENTIAL,Adult Social Care & Health,Independent Placements
Royal Borough of Kingston,01/06/2022,90140853,"3,740.40",0,ABBEYFIELD,SOCIAL SERVICES RESIDENTIAL,Adult Social Care & Health,Independent Placements
Royal Borough of Kingston,01/06/2022,90140864,"4,230.21",0,ABBEYFIELD,SOCIAL SERVICES RESIDENTIAL,Adult Social Care & Health,Independent Placements
Royal Borough of Kingston,01/06/2022,90140866,"-4,007.57",0,ABBEYFIELD,SOCIAL SERVICES RESIDENTIAL,Adult Social Care & Health,Independent Placements
Royal Borough of Kingston,01/06/2022,90140868,"3,740.40",0,ABBEYFIELD,SOCIAL SERVICES RESIDENTIAL,Adult Social Care & Health,Independent Placements
Royal Borough of Kingston,01/06/2022,90140872,"-1,800.00",0,ABBEYFIELD,SOCIAL SERVICES RESIDENTIAL,Adult Social Care & Health,Independent Placements
Royal Borough of Kingston,01/06/2022,90140873,"-3,720.00",0,ABBEYFIELD,SOCIAL SERVICES RESIDENTIAL,Adult Social Care & Health,Independent Placements
Royal Borough of Kingston,01/06/2022,90140874,"-3,720.00",0,ABBEYFIELD,SOCIAL SERVICES RESIDENTIAL,Adult Social Care & Health,Independent Placements
Royal Borough of Kingston,01/06/2022,90140875,"-3,360.00",0,ABBEYFIELD,SOCIAL SERVICES RESIDENTIAL,Adult Social Care & Health,Independent Placements
Royal Borough of Kingston,01/06/2022,90140876,"-3,720.00",0,ABBEYFIELD,SOCIAL SERVICES RESIDENTIAL,Adult Social Care & Health,Independent Placements
Royal Borough of Kingston,01/06/2022,90140877,"-3,740.40",0,ABBEYFIELD,SOCIAL SERVICES RESIDENTIAL,Adult Social Care & Health,Independent Placements
Royal Borough of Kingston,01/06/2022,90140878,"-3,865.08",0,ABBEYFIELD,SOCIAL SERVICES RESIDENTIAL,Adult Social Care & Health,Independent Placements
Royal Borough of Kingston,01/06/2022,90140899,"3,740.40",0,ABBEYFIELD,SOCIAL SERVICES RESIDENTIAL,Adult Social Care & Health,Independent Placements
Royal Borough of Kingston,01/06/2022,90140902,"3,600.00",0,ABBEYFIELD,SOCIAL SERVICES RESIDENTIAL,Adult Social Care & Health,Independent Placements
Royal Borough of Kingston,01/06/2022,90141034,"3,740.40",0,ABBEYFIELD,SOCIAL SERVICES RESIDENTIAL,Adult Social Care & Health,Other Private Contractors - Third Party
Royal Borough of Kingston,01/06/2022,90141035,"3,740.40",0,ABBEYFIELD,SOCIAL SERVICES RESIDENTIAL,Adult Social Care & Health,Other Private Contractors - Third Party
Royal Borough of Kingston,01/06/2022,90142302,"5,559.77",0,ABC HILLINGDON LTD,ACCOMMODATION - OTHER,Adult Social Care & Health,Personal Budget - Third Party
Royal Borough of Kingston,01/06/2022,90132210,"2,073.31",0,ACACIA PRE-SCHOOL,ACADEMIC INSTNS - OTHER,Schools,2 Yr Old Place Funding
Royal Borough of Kingston,01/06/2022,90132255,"17,036.57",0,ACACIA PRE-SCHOOL,ACADEMIC INSTNS - OTHER,Schools,PVI Providers
Royal Borough of Kingston,01/06/2022,90132211,"4,056.48",0,Acorn to Oak Nursery and Preschool Ltd,CHILDMINDERS START UP GRANT,Schools,2 Yr Old Place Funding
Royal Borough of Kingston,01/06/2022,90132256,"42,097.32",0,Acorn to Oak Nursery and Preschool Ltd,CHILDMINDERS START UP GRANT,Schools,PVI Providers
Royal Borough of Kingston,01/06/2022,70025551,"1,581.00",0,ADAM HOTEL MANAGEMENT LTD,ACCOMMODATION BED & BREAKFAST,Place,Bed & Breakfast
Royal Borough of Kingston,01/06/2022,70025552,"1,085.00",0,ADAM HOTEL MANAGEMENT LTD,ACCOMMODATION BED & BREAKFAST,Place,Bed & Breakfast
Royal Borough of Kingston,01/06/2022,70025555,546,0,ADAM HOTEL MANAGEMENT LTD,ACCOMMODATION BED & BREAKFAST,Place,Bed & Breakfast
Royal Borough of Kingston,01/06/2022,70025556,"1,085.00",0,ADAM HOTEL MANAGEMENT LTD,ACCOMMODATION BED & BREAKFAST,Place,Bed & Breakfast
Royal Borough of Kingston,01/06/2022,70025557,756,0,ADAM HOTEL MANAGEMENT LTD,ACCOMMODATION BED & BREAKFAST,Place,Bed & Breakfast
Royal Borough of Kingston,01/06/2022,70025558,560,0,ADAM HOTEL MANAGEMENT LTD,ACCOMMODATION BED & BREAKFAST,Place,Bed & Breakfast
Royal Borough of Kingston,01/06/2022,70025559,"1,085.00",0,ADAM HOTEL MANAGEMENT LTD,ACCOMMODATION BED & BREAKFAST,Place,Bed & Breakfast
Royal Borough of Kingston,01/06/2022,70025446,"22,265.87",0,ADAM HTT LIMITED,TAXI AND COACH HIRE,Adult Social Care & Health,Home To School Transport Taxis
Royal Borough of Kingston,01/06/2022,90132343,"1,185.84",0,REDACTED - PERSONAL DATA,CHILDMINDERS START UP GRANT,Schools,PVI Providers
Royal Borough of Kingston,01/06/2022,90132212,"24,864.72",0,ADVANTAGE DAY NURSERY LTD,ACADEMIC INSTNS - OTHER,Schools,2 Yr Old Place Funding
Royal Borough of Kingston,01/06/2022,90132257,"98,424.72",0,ADVANTAGE DAY NURSERY LTD,ACADEMIC INSTNS - OTHER,Schools,PVI Providers
Royal Borough of Kingston,01/06/2022,90140612,"5,314.29",0,AIMS CARE LIMITED,SOCIAL SERVICES RESIDENTIAL,Adult Social Care & Health,Independent Placements
Royal Borough of Kingston,01/06/2022,90140613,"5,343.43",0,AIMS CARE LIMITED,SOCIAL SERVICES RESIDENTIAL,Adult Social Care & Health,Independent Placements
Royal Borough of Kingston,01/06/2022,90140614,"5,142.86",0,AIMS CARE LIMITED,SOCIAL SERVICES RESIDENTIAL,Adult Social Care & Health,Independent Placements
Royal Borough of Kingston,01/06/2022,90132258,"67,197.60",0,ALEXANDRA SCHOOL,CENTRAL & LOCAL GOVERNMENT,Schools,Miscellaneous Expenses
Royal Borough of Kingston,01/06/2022,90140900,"2,982.86",0,ANCHOR TRUST ,SOCIAL SERVICES RESIDENTIAL,Adult Social Care & Health,Independent Placements
Royal Borough of Kingston,01/06/2022,90132305,"1,976.40",0,REDACTED - PERSONAL DATA,CHILDMINDERS START UP GRANT,Schools,PVI Providers
Royal Borough of Kingston,01/06/2022,90140979,"6,100.41",0,ASHCROFT CARE SERVICES LIMITED,SOCIAL SERVICES RESIDENTIAL,Adult Social Care & Health,Independent Placements
Royal Borough of Kingston,01/06/2022,90141968,921.6,0,ASHINGTON HOUSE LTD,SOCIAL SERVICES RESIDENTIAL,Adult Social Care & Health,Personal Budget - Third Party
Royal Borough of Kingston,01/06/2022,90141907,"1,305.73",0,ASHPRIME PROPERTIES LTD,SOCIAL SERVICES RESIDENTIAL,Adult Social Care & Health,Personal Budget - Third Party
Royal Borough of Kingston,01/06/2022,90141955,"2,569.84",0,Aspirations Care Ltd,SOCIAL SERVICES - OTHER,Adult Social Care & Health,Personal Budget - Third Party
Royal Borough of Kingston,01/06/2022,90140696,"5,076.26",0,ASPREY HEALTHCARE LTD,SOCIAL SERVICES RESIDENTIAL,Adult Social Care & Health,Independent Placements
Royal Borough of Kingston,01/06/2022,90140833,"3,822.77",0,ASPREY HEALTHCARE LTD,SOCIAL SERVICES RESIDENTIAL,Adult Social Care & Health,Independent Placements
Royal Borough of Kingston,01/06/2022,90140843,"4,384.97",0,ASPREY HEALTHCARE LTD,SOCIAL SERVICES RESIDENTIAL,Adult Social Care & Health,Independent Placements
Royal Borough of Kingston,01/06/2022,90140675,"4,695.56",0,ASTORIA HEALTHCARE LTD,SOCIAL SERVICES RESIDENTIAL,Adult Social Care & Health,Independent Placements
Royal Borough of Kingston,01/06/2022,90140919,"10,979.06",0,AUTISM CONSULTANTS LTD,SOCIAL SERVICES RESIDENTIAL,Adult Social Care & Health,Independent Placements
Royal Borough of Kingston,01/06/2022,90140983,"1,506.44",0,BALANCE (SUPPORT) C.I.C,SOCIAL SERVICES - OTHER,Adult Social Care & Health,Independent Placements
Royal Borough of Kingston,01/06/2022,90140984,"-1,506.44",0,BALANCE (SUPPORT) C.I.C,SOCIAL SERVICES - OTHER,Adult Social Care & Health,Independent Placements
Royal Borough of Kingston,01/06/2022,90140985,"1,738.20",0,BALANCE (SUPPORT) C.I.C,SOCIAL SERVICES - OTHER,Adult Social Care & Health,Independent Placements
Royal Borough of Kingston,01/06/2022,90140986,"-1,738.20",0,BALANCE (SUPPORT) C.I.C,SOCIAL SERVICES - OTHER,Adult Social Care & Health,Independent Placements
Royal Borough of Kingston,01/06/2022,90140987,"1,796.14",0,BALANCE (SUPPORT) C.I.C,SOCIAL SERVICES - OTHER,Adult Social Care & Health,Independent Placements
Royal Borough of Kingston,01/06/2022,90140988,"-1,796.14",0,BALANCE (SUPPORT) C.I.C,SOCIAL SERVICES - OTHER,Adult Social Care & Health,Independent Placements
Royal Borough of Kingston,01/06/2022,90140989,"1,796.14",0,BALANCE (SUPPORT) C.I.C,SOCIAL SERVICES - OTHER,Adult Social Care & Health,Independent Placements
Royal Borough of Kingston,01/06/2022,90140990,"-1,796.14",0,BALANCE (SUPPORT) C.I.C,SOCIAL SERVICES - OTHER,Adult Social Care & Health,Independent Placements
Royal Borough of Kingston,01/06/2022,90140991,"1,622.32",0,BALANCE (SUPPORT) C.I.C,SOCIAL SERVICES - OTHER,Adult Social Care & Health,Independent Placements
Royal Borough of Kingston,01/06/2022,90140992,"-1,622.32",0,BALANCE (SUPPORT) C.I.C,SOCIAL SERVICES - OTHER,Adult Social Care & Health,Independent Placements
Royal Borough of Kingston,01/06/2022,90140993,"1,796.14",0,BALANCE (SUPPORT) C.I.C,SOCIAL SERVICES - OTHER,Adult Social Care & Health,Independent Placements
Royal Borough of Kingston,01/06/2022,90140994,"-1,796.14",0,BALANCE (SUPPORT) C.I.C,SOCIAL SERVICES - OTHER,Adult Social Care & Health,Independent Placements
Royal Borough of Kingston,01/06/2022,90140995,"1,738.20",0,BALANCE (SUPPORT) C.I.C,SOCIAL SERVICES - OTHER,Adult Social Care & Health,Independent Placements
Royal Borough of Kingston,01/06/2022,90140996,"-1,806.00",0,BALANCE (SUPPORT) C.I.C,SOCIAL SERVICES - OTHER,Adult Social Care & Health,Independent Placements
Royal Borough of Kingston,01/06/2022,90140997,"1,274.68",0,BALANCE (SUPPORT) C.I.C,SOCIAL SERVICES - OTHER,Adult Social Care & Health,Independent Placements
Royal Borough of Kingston,01/06/2022,90140998,"-1,866.20",0,BALANCE (SUPPORT) C.I.C,SOCIAL SERVICES - OTHER,Adult Social Care & Health,Independent Placements
Royal Borough of Kingston,01/06/2022,90141055,509.5,0,BALANCE (SUPPORT) C.I.C,SOCIAL SERVICES - OTHER,Adult Social Care & Health,Supported Living - new framework
Royal Borough of Kingston,01/06/2022,90141056,"2,406.00",0,BALANCE (SUPPORT) C.I.C,SOCIAL SERVICES - OTHER,Adult Social Care & Health,Supported Living - new framework
Royal Borough of Kingston,01/06/2022,90141057,598.34,0,BALANCE (SUPPORT) C.I.C,SOCIAL SERVICES - OTHER,Adult Social Care & Health,Supported Living - new framework
Royal Borough of Kingston,01/06/2022,90141058,679.33,0,BALANCE (SUPPORT) C.I.C,SOCIAL SERVICES - OTHER,Adult Social Care & Health,Supported Living - new framework
Royal Borough of Kingston,01/06/2022,90141059,"1,804.49",0,BALANCE (SUPPORT) C.I.C,SOCIAL SERVICES - OTHER,Adult Social Care & Health,Supported Living - new framework
Royal Borough of Kingston,01/06/2022,90141061,594.42,0,BALANCE (SUPPORT) C.I.C,SOCIAL SERVICES - OTHER,Adult Social Care & Health,Supported Living - new framework
Royal Borough of Kingston,01/06/2022,90141062,679.33,0,BALANCE (SUPPORT) C.I.C,SOCIAL SERVICES - OTHER,Adult Social Care & Health,Supported Living - new framework
Royal Borough of Kingston,01/06/2022,90141063,"1,804.49",0,BALANCE (SUPPORT) C.I.C,SOCIAL SERVICES - OTHER,Adult Social Care & Health,Supported Living - new framework
Royal Borough of Kingston,01/06/2022,90141691,530.59,0,BALANCE (SUPPORT) C.I.C,SOCIAL SERVICES - OTHER,Adult Social Care & Health,Personal Budget - Third Party
Royal Borough of Kingston,01/06/2022,90141692,530.59,0,BALANCE (SUPPORT) C.I.C,SOCIAL SERVICES - OTHER,Adult Social Care & Health,Personal Budget - Third Party
Royal Borough of Kingston,01/06/2022,90141693,"12,516.43",0,BALANCE (SUPPORT) C.I.C,SOCIAL SERVICES - OTHER,Adult Social Care & Health,Personal Budget - Third Party
Royal Borough of Kingston,01/06/2022,90141801,"1,020.94",0,BALANCE (SUPPORT) C.I.C,SOCIAL SERVICES - OTHER,Adult Social Care & Health,Personal Budget - Third Party
Royal Borough of Kingston,01/06/2022,90141803,556.89,0,BALANCE (SUPPORT) C.I.C,SOCIAL SERVICES - OTHER,Adult Social Care & Health,Personal Budget - Third Party
Royal Borough of Kingston,01/06/2022,90141810,560.49,0,BALANCE (SUPPORT) C.I.C,SOCIAL SERVICES - OTHER,Adult Social Care & Health,Personal Budget - Third Party
Royal Borough of Kingston,01/06/2022,90141813,928.16,0,BALANCE (SUPPORT) C.I.C,SOCIAL SERVICES - OTHER,Adult Social Care & Health,Personal Budget - Third Party
Royal Borough of Kingston,01/06/2022,90141816,"1,299.39",0,BALANCE (SUPPORT) C.I.C,SOCIAL SERVICES - OTHER,Adult Social Care & Health,Personal Budget - Third Party
Royal Borough of Kingston,01/06/2022,90141817,928.16,0,BALANCE (SUPPORT) C.I.C,SOCIAL SERVICES - OTHER,Adult Social Care & Health,Personal Budget - Third Party
Royal Borough of Kingston,01/06/2022,90141818,510.47,0,BALANCE (SUPPORT) C.I.C,SOCIAL SERVICES - OTHER,Adult Social Care & Health,Personal Budget - Third Party
Royal Borough of Kingston,01/06/2022,90141820,"2,874.47",0,BALANCE (SUPPORT) C.I.C,SOCIAL SERVICES - OTHER,Adult Social Care & Health,Personal Budget - Third Party
Royal Borough of Kingston,01/06/2022,90141824,"1,253.01",0,BALANCE (SUPPORT) C.I.C,SOCIAL SERVICES - OTHER,Adult Social Care & Health,Personal Budget - Third Party
Royal Borough of Kingston,01/06/2022,90141826,556.89,0,BALANCE (SUPPORT) C.I.C,SOCIAL SERVICES - OTHER,Adult Social Care & Health,Personal Budget - Third Party
Royal Borough of Kingston,01/06/2022,90141833,"2,134.71",0,BALANCE (SUPPORT) C.I.C,SOCIAL SERVICES - OTHER,Adult Social Care & Health,Personal Budget - Third Party
Royal Borough of Kingston,01/06/2022,90141836,"1,392.21",0,BALANCE (SUPPORT) C.I.C,SOCIAL SERVICES - OTHER,Adult Social Care & Health,Personal Budget - Third Party
Royal Borough of Kingston,01/06/2022,90141847,556.89,0,BALANCE (SUPPORT) C.I.C,SOCIAL SERVICES - OTHER,Adult Social Care & Health,Personal Budget - Third Party
Royal Borough of Kingston,01/06/2022,90141851,556.89,0,BALANCE (SUPPORT) C.I.C,SOCIAL SERVICES - OTHER,Adult Social Care & Health,Personal Budget - Third Party
Royal Borough of Kingston,01/06/2022,90141854,"1,485.00",0,BALANCE (SUPPORT) C.I.C,SOCIAL SERVICES - OTHER,Adult Social Care & Health,Personal Budget - Third Party
Royal Borough of Kingston,01/06/2022,90141855,"3,465.39",0,BALANCE (SUPPORT) C.I.C,SOCIAL SERVICES - OTHER,Adult Social Care & Health,Personal Budget - Third Party
Royal Borough of Kingston,01/06/2022,90141860,"2,559.43",0,BALANCE (SUPPORT) C.I.C,SOCIAL SERVICES - OTHER,Adult Social Care & Health,Personal Budget - Third Party
Royal Borough of Kingston,01/06/2022,90141861,649.71,0,BALANCE (SUPPORT) C.I.C,SOCIAL SERVICES - OTHER,Adult Social Care & Health,Personal Budget - Third Party
Royal Borough of Kingston,01/06/2022,90141863,742.5,0,BALANCE (SUPPORT) C.I.C,SOCIAL SERVICES - OTHER,Adult Social Care & Health,Personal Budget - Third Party
Royal Borough of Kingston,01/06/2022,90141866,"1,577.83",0,BALANCE (SUPPORT) C.I.C,SOCIAL SERVICES - OTHER,Adult Social Care & Health,Personal Budget - Third Party
Royal Borough of Kingston,01/06/2022,90141876,"1,392.21",0,BALANCE (SUPPORT) C.I.C,SOCIAL SERVICES - OTHER,Adult Social Care & Health,Personal Budget - Third Party
Royal Borough of Kingston,01/06/2022,90141883,835.33,0,BALANCE (SUPPORT) C.I.C,SOCIAL SERVICES - OTHER,Adult Social Care & Health,Personal Budget - Third Party
Royal Borough of Kingston,01/06/2022,90141884,"3,117.17",0,BALANCE (SUPPORT) C.I.C,SOCIAL SERVICES - OTHER,Adult Social Care & Health,Personal Budget - Third Party
Royal Borough of Kingston,01/06/2022,90141890,556.89,0,BALANCE (SUPPORT) C.I.C,SOCIAL SERVICES - OTHER,Adult Social Care & Health,Personal Budget - Third Party
Royal Borough of Kingston,01/06/2022,90141891,556.89,0,BALANCE (SUPPORT) C.I.C,SOCIAL SERVICES - OTHER,Adult Social Care & Health,Personal Budget - Third Party
Royal Borough of Kingston,01/06/2022,90141896,"3,038.49",0,BALANCE (SUPPORT) C.I.C,SOCIAL SERVICES - OTHER,Adult Social Care & Health,Personal Budget - Third Party
Royal Borough of Kingston,01/06/2022,90141897,"1,949.10",0,BALANCE (SUPPORT) C.I.C,SOCIAL SERVICES - OTHER,Adult Social Care & Health,Personal Budget - Third Party
Royal Borough of Kingston,01/06/2022,90141898,519.84,0,BALANCE (SUPPORT) C.I.C,SOCIAL SERVICES - OTHER,Adult Social Care & Health,Personal Budget - Third Party
Royal Borough of Kingston,01/06/2022,90141899,"3,301.41",0,BALANCE (SUPPORT) C.I.C,SOCIAL SERVICES - OTHER,Adult Social Care & Health,Personal Budget - Third Party
Royal Borough of Kingston,01/06/2022,90141918,"2,162.06",0,BALANCE (SUPPORT) C.I.C,SOCIAL SERVICES - OTHER,Adult Social Care & Health,Personal Budget - Third Party
Royal Borough of Kingston,01/06/2022,90141923,"1,206.60",0,BALANCE (SUPPORT) C.I.C,SOCIAL SERVICES - OTHER,Adult Social Care & Health,Personal Budget - Third Party
Royal Borough of Kingston,01/06/2022,90141928,742.5,0,BALANCE (SUPPORT) C.I.C,SOCIAL SERVICES - OTHER,Adult Social Care & Health,Personal Budget - Third Party
Royal Borough of Kingston,01/06/2022,90141931,"1,577.83",0,BALANCE (SUPPORT) C.I.C,SOCIAL SERVICES - OTHER,Adult Social Care & Health,Personal Budget - Third Party
Royal Borough of Kingston,01/06/2022,90141935,701.14,0,BALANCE (SUPPORT) C.I.C,SOCIAL SERVICES - OTHER,Adult Social Care & Health,Personal Budget - Third Party
Royal Borough of Kingston,01/06/2022,90141938,594.43,0,BALANCE (SUPPORT) C.I.C,SOCIAL SERVICES - OTHER,Adult Social Care & Health,Personal Budget - Third Party
Royal Borough of Kingston,01/06/2022,90141941,674.85,0,BALANCE (SUPPORT) C.I.C,SOCIAL SERVICES - OTHER,Adult Social Care & Health,Personal Budget - Third Party
Royal Borough of Kingston,01/06/2022,90141942,"2,925.30",0,BALANCE (SUPPORT) C.I.C,SOCIAL SERVICES - OTHER,Adult Social Care & Health,Personal Budget - Third Party
Royal Borough of Kingston,01/06/2022,90141950,"1,809.90",0,BALANCE (SUPPORT) C.I.C,SOCIAL SERVICES - OTHER,Adult Social Care & Health,Personal Budget - Third Party
Royal Borough of Kingston,01/06/2022,90141956,974.57,0,BALANCE (SUPPORT) C.I.C,SOCIAL SERVICES - OTHER,Adult Social Care & Health,Personal Budget - Third Party
Royal Borough of Kingston,01/06/2022,90141957,556.89,0,BALANCE (SUPPORT) C.I.C,SOCIAL SERVICES - OTHER,Adult Social Care & Health,Personal Budget - Third Party
Royal Borough of Kingston,01/06/2022,90141959,"1,299.39",0,BALANCE (SUPPORT) C.I.C,SOCIAL SERVICES - OTHER,Adult Social Care & Health,Personal Budget - Third Party
Royal Borough of Kingston,01/06/2022,90141961,"1,206.60",0,BALANCE (SUPPORT) C.I.C,SOCIAL SERVICES - OTHER,Adult Social Care & Health,Personal Budget - Third Party
Royal Borough of Kingston,01/06/2022,90141962,556.89,0,BALANCE (SUPPORT) C.I.C,SOCIAL SERVICES - OTHER,Adult Social Care & Health,Personal Budget - Third Party
Royal Borough of Kingston,01/06/2022,90141964,"1,670.66",0,BALANCE (SUPPORT) C.I.C,SOCIAL SERVICES - OTHER,Adult Social Care & Health,Personal Budget - Third Party
Royal Borough of Kingston,01/06/2022,90141985,649.71,0,BALANCE (SUPPORT) C.I.C,SOCIAL SERVICES - OTHER,Adult Social Care & Health,Personal Budget - Third Party
Royal Borough of Kingston,01/06/2022,90141988,556.89,0,BALANCE (SUPPORT) C.I.C,SOCIAL SERVICES - OTHER,Adult Social Care & Health,Personal Budget - Third Party
Royal Borough of Kingston,01/06/2022,90142296,556.89,0,BALANCE (SUPPORT) C.I.C,SOCIAL SERVICES - OTHER,Adult Social Care & Health,Personal Budget - Third Party
Royal Borough of Kingston,01/06/2022,90142308,-693.12,0,BALANCE (SUPPORT) C.I.C,SOCIAL SERVICES - OTHER,Adult Social Care & Health,Personal Budget - Third Party
Royal Borough of Kingston,01/06/2022,90142309,544.59,0,BALANCE (SUPPORT) C.I.C,SOCIAL SERVICES - OTHER,Adult Social Care & Health,Personal Budget - Third Party
Royal Borough of Kingston,01/06/2022,90142310,-767.38,0,BALANCE (SUPPORT) C.I.C,SOCIAL SERVICES - OTHER,Adult Social Care & Health,Personal Budget - Third Party
Royal Borough of Kingston,01/06/2022,90142311,742.63,0,BALANCE (SUPPORT) C.I.C,SOCIAL SERVICES - OTHER,Adult Social Care & Health,Personal Budget - Third Party
Royal Borough of Kingston,01/06/2022,90142330,"1,113.94",0,BALANCE (SUPPORT) C.I.C,SOCIAL SERVICES - OTHER,Adult Social Care & Health,Personal Budget - Third Party
Royal Borough of Kingston,01/06/2022,90142336,742.63,0,BALANCE (SUPPORT) C.I.C,SOCIAL SERVICES - OTHER,Adult Social Care & Health,Personal Budget - Third Party
Royal Borough of Kingston,01/06/2022,90140595,"3,508.84",0,BARCHESTER HEALTHCARE ,SOCIAL SERVICES RESIDENTIAL,Adult Social Care & Health,Independent Placements
Royal Borough of Kingston,01/06/2022,90137053,"3,942.86",0,BAVANI CARE HOME LIMITED,SOCIAL SERVICES RESIDENTIAL,Adult Social Care & Health,Independent Placements
Royal Borough of Kingston,01/06/2022,90140836,"4,341.56",0,BAVANI CARE HOME LIMITED,SOCIAL SERVICES RESIDENTIAL,Adult Social Care & Health,Independent Placements
Royal Borough of Kingston,01/06/2022,90140842,"4,050.00",0,BAVANI CARE HOME LIMITED,SOCIAL SERVICES RESIDENTIAL,Adult Social Care & Health,Independent Placements
Royal Borough of Kingston,01/06/2022,90140896,857.14,0,BAVANI CARE HOME LIMITED,SOCIAL SERVICES RESIDENTIAL,Adult Social Care & Health,Independent Placements
Royal Borough of Kingston,01/06/2022,90140897,"4,285.71",0,BAVANI CARE HOME LIMITED,SOCIAL SERVICES RESIDENTIAL,Adult Social Care & Health,Independent Placements
Royal Borough of Kingston,01/06/2022,90135743,"3,420.00",0,BOLTERS CORNER NURSING HOME,SOCIAL SERVICES RESIDENTIAL,Adult Social Care & Health,Other Private Contractors - Third Party
Royal Borough of Kingston,01/06/2022,90135744,"5,580.00",0,BOLTERS CORNER NURSING HOME,SOCIAL SERVICES RESIDENTIAL,Adult Social Care & Health,Other Private Contractors - Third Party
Royal Borough of Kingston,01/06/2022,90135745,"5,400.00",0,BOLTERS CORNER NURSING HOME,SOCIAL SERVICES RESIDENTIAL,Adult Social Care & Health,Other Private Contractors - Third Party
Royal Borough of Kingston,01/06/2022,90135746,"5,580.00",0,BOLTERS CORNER NURSING HOME,SOCIAL SERVICES RESIDENTIAL,Adult Social Care & Health,Other Private Contractors - Third Party
Royal Borough of Kingston,01/06/2022,90141040,"-3,240.00",0,BOLTERS CORNER NURSING HOME,SOCIAL SERVICES RESIDENTIAL,Adult Social Care & Health,Other Private Contractors - Third Party
Royal Borough of Kingston,01/06/2022,90141041,"5,580.00",0,BOLTERS CORNER NURSING HOME,SOCIAL SERVICES RESIDENTIAL,Adult Social Care & Health,Other Private Contractors - Third Party
Royal Borough of Kingston,01/06/2022,90132215,"1,126.80",0,BRIGHT HORIZONS FAMILY SOLUTIONS,CHILDMINDERS START UP GRANT,Schools,2 Yr Old Place Funding
Royal Borough of Kingston,01/06/2022,90132216,"1,446.06",0,BRIGHT HORIZONS FAMILY SOLUTIONS,CHILDMINDERS START UP GRANT,Schools,2 Yr Old Place Funding
Royal Borough of Kingston,01/06/2022,90132263,"19,269.90",0,BRIGHT HORIZONS FAMILY SOLUTIONS,CHILDMINDERS START UP GRANT,Schools,PVI Providers
Royal Borough of Kingston,01/06/2022,90132266,"21,888.63",0,BRIGHT HORIZONS FAMILY SOLUTIONS,CHILDMINDERS START UP GRANT,Schools,PVI Providers
Royal Borough of Kingston,01/06/2022,90132267,"36,069.30",0,BRIGHT HORIZONS FAMILY SOLUTIONS,CHILDMINDERS START UP GRANT,Schools,PVI Providers
Royal Borough of Kingston,01/06/2022,90132268,"24,112.08",0,BRIGHT HORIZONS FAMILY SOLUTIONS,CHILDMINDERS START UP GRANT,Schools,PVI Providers
Royal Borough of Kingston,01/06/2022,90132269,"10,870.20",0,BRIGHT HORIZONS FAMILY SOLUTIONS,CHILDMINDERS START UP GRANT,Schools,PVI Providers
Royal Borough of Kingston,01/06/2022,70026222,"1,302.00",0,Buildvantage Limited,ACCOMMODATION BED & BREAKFAST,Place,Bed & Breakfast
Royal Borough of Kingston,01/06/2022,70026223,"1,488.00",0,Buildvantage Limited,ACCOMMODATION BED & BREAKFAST,Place,Bed & Breakfast
Royal Borough of Kingston,01/06/2022,70026224,"1,302.00",0,Buildvantage Limited,ACCOMMODATION BED & BREAKFAST,Place,Bed & Breakfast
Royal Borough of Kingston,01/06/2022,70026225,"1,488.00",0,Buildvantage Limited,ACCOMMODATION BED & BREAKFAST,Place,Bed & Breakfast
Royal Borough of Kingston,01/06/2022,70026226,"1,488.00",0,Buildvantage Limited,ACCOMMODATION BED & BREAKFAST,Place,Bed & Breakfast
Royal Borough of Kingston,01/06/2022,70026228,"1,488.00",0,Buildvantage Limited,ACCOMMODATION BED & BREAKFAST,Place,Bed & Breakfast
Royal Borough of Kingston,01/06/2022,70026229,"1,488.00",0,Buildvantage Limited,ACCOMMODATION BED & BREAKFAST,Place,Bed & Breakfast
Royal Borough of Kingston,01/06/2022,70026231,960,0,Buildvantage Limited,ACCOMMODATION BED & BREAKFAST,Place,Bed & Breakfast
Royal Borough of Kingston,01/06/2022,70026234,"1,488.00",0,Buildvantage Limited,ACCOMMODATION BED & BREAKFAST,Place,Bed & Breakfast
Royal Borough of Kingston,01/06/2022,70026235,"1,488.00",0,Buildvantage Limited,ACCOMMODATION BED & BREAKFAST,Place,Bed & Breakfast
Royal Borough of Kingston,01/06/2022,70026236,"1,488.00",0,Buildvantage Limited,ACCOMMODATION BED & BREAKFAST,Place,Bed & Breakfast
Royal Borough of Kingston,01/06/2022,70026237,"1,488.00",0,Buildvantage Limited,ACCOMMODATION BED & BREAKFAST,Place,Bed & Breakfast
Royal Borough of Kingston,01/06/2022,70026238,"1,302.00",0,Buildvantage Limited,ACCOMMODATION BED & BREAKFAST,Place,Bed & Breakfast
Royal Borough of Kingston,01/06/2022,70026239,"1,176.00",0,Buildvantage Limited,ACCOMMODATION BED & BREAKFAST,Place,Bed & Breakfast
Royal Borough of Kingston,01/06/2022,70026240,"1,488.00",0,Buildvantage Limited,ACCOMMODATION BED & BREAKFAST,Place,Bed & Breakfast
Royal Borough of Kingston,01/06/2022,70026241,"1,488.00",0,Buildvantage Limited,ACCOMMODATION BED & BREAKFAST,Place,Bed & Breakfast
Royal Borough of Kingston,01/06/2022,70026242,"1,488.00",0,Buildvantage Limited,ACCOMMODATION BED & BREAKFAST,Place,Bed & Breakfast
Royal Borough of Kingston,01/06/2022,70026243,"1,488.00",0,Buildvantage Limited,ACCOMMODATION BED & BREAKFAST,Place,Bed & Breakfast
Royal Borough of Kingston,01/06/2022,70026244,"1,488.00",0,Buildvantage Limited,ACCOMMODATION BED & BREAKFAST,Place,Bed & Breakfast
Royal Borough of Kingston,01/06/2022,70026245,"1,488.00",0,Buildvantage Limited,ACCOMMODATION BED & BREAKFAST,Place,Bed & Breakfast
Royal Borough of Kingston,01/06/2022,70026246,"1,488.00",0,Buildvantage Limited,ACCOMMODATION BED & BREAKFAST,Place,Bed & Breakfast
Royal Borough of Kingston,01/06/2022,70026247,"1,488.00",0,Buildvantage Limited,ACCOMMODATION BED & BREAKFAST,Place,Bed & Breakfast
Royal Borough of Kingston,01/06/2022,70026248,"1,488.00",0,Buildvantage Limited,ACCOMMODATION BED & BREAKFAST,Place,Bed & Breakfast
Royal Borough of Kingston,01/06/2022,90140678,"8,050.93",0,BUPA CARE HOMES (AKW) LIMITED,SOCIAL SERVICES RESIDENTIAL,Adult Social Care & Health,Independent Placements
Royal Borough of Kingston,01/06/2022,90140679,"8,717.40",0,BUPA CARE HOMES (AKW) LIMITED,SOCIAL SERVICES RESIDENTIAL,Adult Social Care & Health,Independent Placements
Royal Borough of Kingston,01/06/2022,90141002,"5,153.40",0,BUPA CARE HOMES (AKW) LIMITED,SOCIAL SERVICES RESIDENTIAL,Adult Social Care & Health,Independent Placements
Royal Borough of Kingston,01/06/2022,90132218,"6,310.08",0,BURLINGTON INFANT AND NURSERY SCHOOL,SCHOOL FUNDS,Schools,2 Yr Old Place Funding
Royal Borough of Kingston,01/06/2022,90132271,"61,070.76",0,BURLINGTON INFANT AND NURSERY SCHOOL,SCHOOL FUNDS,Schools,Miscellaneous Expenses
Royal Borough of Kingston,01/06/2022,90141881,"5,250.77",0,CARE MANAGEMENT GROUP LTD,SOCIAL SERVICES RESIDENTIAL,Adult Social Care & Health,Personal Budget - Third Party
Royal Borough of Kingston,01/06/2022,90132928,"2,404.29",0,CARE UK COMMUNITY PARTNERSHIPS LTD,SOCIAL SERVICES RESIDENTIAL,Adult Social Care & Health,Independent Placements
Royal Borough of Kingston,01/06/2022,90132929,"3,278.57",0,CARE UK COMMUNITY PARTNERSHIPS LTD,SOCIAL SERVICES RESIDENTIAL,Adult Social Care & Health,Independent Placements
Royal Borough of Kingston,01/06/2022,90132930,"3,387.86",0,CARE UK COMMUNITY PARTNERSHIPS LTD,SOCIAL SERVICES RESIDENTIAL,Adult Social Care & Health,Independent Placements
Royal Borough of Kingston,01/06/2022,90140569,"1,100.00",0,CARE UK COMMUNITY PARTNERSHIPS LTD,SOCIAL SERVICES RESIDENTIAL,Adult Social Care & Health,Independent Placements
Royal Borough of Kingston,01/06/2022,90140570,"5,280.00",0,CARE UK COMMUNITY PARTNERSHIPS LTD,SOCIAL SERVICES RESIDENTIAL,Adult Social Care & Health,Independent Placements
Royal Borough of Kingston,01/06/2022,90140698,"3,238.11",0,CARE UK COMMUNITY PARTNERSHIPS LTD,SOCIAL SERVICES RESIDENTIAL,Adult Social Care & Health,Independent Placements
Royal Borough of Kingston,01/06/2022,90140708,"3,339.64",0,CARE UK COMMUNITY PARTNERSHIPS LTD,SOCIAL SERVICES RESIDENTIAL,Adult Social Care & Health,Independent Placements
Royal Borough of Kingston,01/06/2022,90140795,"3,278.57",0,CARE UK COMMUNITY PARTNERSHIPS LTD,SOCIAL SERVICES RESIDENTIAL,Adult Social Care & Health,Independent Placements
Royal Borough of Kingston,01/06/2022,90140860,"4,007.57",0,CARE UK COMMUNITY PARTNERSHIPS LTD,SOCIAL SERVICES RESIDENTIAL,Adult Social Care & Health,Independent Placements
Royal Borough of Kingston,01/06/2022,90140889,"2,698.41",0,CARE UK COMMUNITY PARTNERSHIPS LTD,SOCIAL SERVICES RESIDENTIAL,Adult Social Care & Health,Independent Placements
Royal Borough of Kingston,01/06/2022,90132250,"2,253.60",0,CAREROOM LTD ,ACADEMIC INSTNS - OTHER,Schools,2 Yr Old Place Funding
Royal Borough of Kingston,01/06/2022,90132359,"19,072.26",0,CAREROOM LTD ,ACADEMIC INSTNS - OTHER,Schools,PVI Providers
Royal Borough of Kingston,01/06/2022,90140898,"3,339.64",0,Jiva Healthcare Ltd,SOCIAL SERVICES RESIDENTIAL,Adult Social Care & Health,Independent Placements
Royal Borough of Kingston,01/06/2022,90132251,"2,704.32",0,REDACTED - PERSONAL DATA,CHILDMINDERS START UP GRANT,Schools,2 Yr Old Place Funding
Royal Borough of Kingston,01/06/2022,90132360,"1,581.12",0,REDACTED - PERSONAL DATA,CHILDMINDERS START UP GRANT,Schools,PVI Providers
Royal Borough of Kingston,01/06/2022,90140945,"9,164.96",0,CARTREF HOMES,SOCIAL SERVICES RESIDENTIAL,Adult Social Care & Health,Independent Placements
Royal Borough of Kingston,01/06/2022,90140921,"13,571.31",0,CAS CARE SERVICES LTD,SOCIAL SERVICES - OTHER,Adult Social Care & Health,Independent Placements
Royal Borough of Kingston,01/06/2022,90140962,"13,571.31",0,CAS CARE SERVICES LTD,SOCIAL SERVICES - OTHER,Adult Social Care & Health,Independent Placements
Royal Borough of Kingston,01/06/2022,90132219,"4,281.84",0,CASTLE HILL SCHOOL,SCHOOL FUNDS,Schools,2 Yr Old Place Funding
Royal Borough of Kingston,01/06/2022,90132272,"28,776.38",0,CASTLE HILL SCHOOL,SCHOOL FUNDS,Schools,Miscellaneous Expenses
Royal Borough of Kingston,01/06/2022,90132273,"5,138.64",0,CASTLE HILL SCHOOL,SCHOOL FUNDS,Schools,PVI Providers
Royal Borough of Kingston,01/06/2022,90140936,"10,792.37",0,CAVENDISH CARE,SOCIAL SERVICES RESIDENTIAL,Adult Social Care & Health,Independent Placements
Royal Borough of Kingston,01/06/2022,90132363,"1,581.12",0,REDACTED - PERSONAL DATA,CHILDMINDERS START UP GRANT,Schools,PVI Providers
Royal Borough of Kingston,01/06/2022,90140734,"3,339.64",0,CHD (CARE HOMES) LTD,SOCIAL SERVICES RESIDENTIAL,Adult Social Care & Health,Independent Placements
Royal Borough of Kingston,01/06/2022,90140778,"3,562.29",0,CHD (CARE HOMES) LTD,SOCIAL SERVICES RESIDENTIAL,Adult Social Care & Health,Independent Placements
Royal Borough of Kingston,01/06/2022,90140887,622.51,0,CHD (CARE HOMES) LTD,SOCIAL SERVICES RESIDENTIAL,Adult Social Care & Health,Independent Placements
Royal Borough of Kingston,01/06/2022,90140888,"3,216.29",0,CHD (CARE HOMES) LTD,SOCIAL SERVICES RESIDENTIAL,Adult Social Care & Health,Independent Placements
Royal Borough of Kingston,01/06/2022,90141043,"-3,095.57",0,CHD (CARE HOMES) LTD,SOCIAL SERVICES RESIDENTIAL,Adult Social Care & Health,Other Private Contractors - Third Party
Royal Borough of Kingston,01/06/2022,90140566,"3,857.14",0,CHD CARE LTD,SOCIAL SERVICES RESIDENTIAL,Adult Social Care & Health,Independent Placements
Royal Borough of Kingston,01/06/2022,90140680,"7,714.29",0,CHD CARE LTD,SOCIAL SERVICES RESIDENTIAL,Adult Social Care & Health,Independent Placements
Royal Borough of Kingston,01/06/2022,90140705,"5,232.13",0,CHD CARE LTD,SOCIAL SERVICES RESIDENTIAL,Adult Social Care & Health,Independent Placements
Royal Borough of Kingston,01/06/2022,90140847,"3,339.64",0,CHD CARE LTD,SOCIAL SERVICES RESIDENTIAL,Adult Social Care & Health,Independent Placements
Royal Borough of Kingston,01/06/2022,90140850,"5,009.49",0,CHD CARE LTD,SOCIAL SERVICES RESIDENTIAL,Adult Social Care & Health,Independent Placements
Royal Borough of Kingston,01/06/2022,90141038,"2,042.86",0,CHD CARE LTD,SOCIAL SERVICES RESIDENTIAL,Adult Social Care & Health,Other Private Contractors - Third Party
Royal Borough of Kingston,01/06/2022,90140782,"1,068.69",0,CHD LIVING,SOCIAL SERVICES RESIDENTIAL,Adult Social Care & Health,Independent Placements
Royal Borough of Kingston,01/06/2022,90132192,"15,613.56",0,CHILDS PLAY NURSERY SCHOOL LTD,GRANTS & EX GRATIA PAYMENTS,Schools,PVI Providers
Royal Borough of Kingston,01/06/2022,90140602,"4,230.21",0,CHISWICK NURSING CENTRE,SOCIAL SERVICES RESIDENTIAL,Adult Social Care & Health,Independent Placements
Royal Borough of Kingston,01/06/2022,90140780,"3,633.90",0,CHISWICK NURSING CENTRE,SOCIAL SERVICES RESIDENTIAL,Adult Social Care & Health,Independent Placements
Royal Borough of Kingston,01/06/2022,90140827,"3,323.61",0,CHISWICK NURSING CENTRE,SOCIAL SERVICES RESIDENTIAL,Adult Social Care & Health,Independent Placements
Royal Borough of Kingston,01/06/2022,90140957,"7,870.41",0,CHOICE LTD,SOCIAL SERVICES RESIDENTIAL,Adult Social Care & Health,Independent Placements
Royal Borough of Kingston,01/06/2022,90140965,"6,954.39",0,CHOICE LTD,SOCIAL SERVICES RESIDENTIAL,Adult Social Care & Health,Independent Placements
Royal Borough of Kingston,01/06/2022,90132274,"38,539.80",0,CHRIST CHURCH  C. OF E.  PRIMARY SCHOOL (NEW MALDEN),SCHOOL FUNDS,Schools,Miscellaneous Expenses
Royal Borough of Kingston,01/06/2022,90141802,"5,747.70",0,CHRISTIES CARE LTD,SOCIAL SERVICES RESIDENTIAL,Adult Social Care & Health,Personal Budget - Third Party
Royal Borough of Kingston,01/06/2022,90141868,"5,373.04",0,CHRISTIES CARE LTD,SOCIAL SERVICES RESIDENTIAL,Adult Social Care & Health,Personal Budget - Third Party
Royal Borough of Kingston,01/06/2022,90141870,"5,590.63",0,CHRISTIES CARE LTD,SOCIAL SERVICES RESIDENTIAL,Adult Social Care & Health,Personal Budget - Third Party
Royal Borough of Kingston,01/06/2022,90141919,"5,394.47",0,CHRISTIES CARE LTD,SOCIAL SERVICES RESIDENTIAL,Adult Social Care & Health,Personal Budget - Third Party
Royal Borough of Kingston,01/06/2022,90132275,988.2,0,REDACTED - PERSONAL DATA,CHILDMINDERS START UP GRANT,Schools,Miscellaneous Expenses
Royal Borough of Kingston,01/06/2022,90140968,"8,527.24",0,CLEARWATER CARE (HACKNEY) LTD,SOCIAL SERVICES RESIDENTIAL,Adult Social Care & Health,Independent Placements
Royal Borough of Kingston,01/06/2022,90142340,"6,113.23",0,CLIA Care Ltd,ACCOMMODATION - OTHER,Adult Social Care & Health,Personal Budget - Third Party
Royal Borough of Kingston,01/06/2022,90141865,"2,951.79",0,CMG LIMITED,SOCIAL SERVICES - OTHER,Adult Social Care & Health,Personal Budget - Third Party
Royal Borough of Kingston,01/06/2022,90141892,"5,355.51",0,CMG LIMITED,SOCIAL SERVICES - OTHER,Adult Social Care & Health,Personal Budget - Third Party
Royal Borough of Kingston,01/06/2022,90141893,"5,323.76",0,CMG LIMITED,SOCIAL SERVICES - OTHER,Adult Social Care & Health,Personal Budget - Third Party
Royal Borough of Kingston,01/06/2022,90141906,"5,845.67",0,CMG LIMITED,SOCIAL SERVICES - OTHER,Adult Social Care & Health,Personal Budget - Third Party
Royal Borough of Kingston,01/06/2022,90141921,900.26,0,CMG LIMITED,SOCIAL SERVICES - OTHER,Adult Social Care & Health,Personal Budget - Third Party
Royal Borough of Kingston,01/06/2022,90141922,"3,889.37",0,CMG LIMITED,SOCIAL SERVICES - OTHER,Adult Social Care & Health,Personal Budget - Third Party
Royal Borough of Kingston,01/06/2022,90141969,"4,639.59",0,CMG LIMITED,SOCIAL SERVICES - OTHER,Adult Social Care & Health,Personal Budget - Third Party
Royal Borough of Kingston,01/06/2022,90141005,"13,569.73",0,COGNITHAN,SOCIAL SERVICES RESIDENTIAL,Adult Social Care & Health,Independent Placements
Royal Borough of Kingston,01/06/2022,90140785,"2,918.14",0,COLVILLE CARE LTD,SOCIAL SERVICES - DIRECT PAYMENTS,Adult Social Care & Health,Independent Placements
Royal Borough of Kingston,01/06/2022,90141680,"3,010.84",0,COMFORT CARE SERVICES UK LTD,SOCIAL SERVICES-HOME CARE,Adult Social Care & Health,Personal Budget - Third Party
Royal Borough of Kingston,01/06/2022,90141682,"3,010.84",0,COMFORT CARE SERVICES UK LTD,SOCIAL SERVICES-HOME CARE,Adult Social Care & Health,Personal Budget - Third Party
Royal Borough of Kingston,01/06/2022,90141924,"3,869.96",0,COMFORT CARE SERVICES UK LTD,SOCIAL SERVICES-HOME CARE,Adult Social Care & Health,Personal Budget - Third Party
Royal Borough of Kingston,01/06/2022,90142290,"1,350.21",0,COMFORT CARE SERVICES UK LTD,SOCIAL SERVICES-HOME CARE,Adult Social Care & Health,Personal Budget - Third Party
Royal Borough of Kingston,01/06/2022,90142293,"2,700.47",0,COMFORT CARE SERVICES UK LTD,SOCIAL SERVICES-HOME CARE,Adult Social Care & Health,Personal Budget - Third Party
Royal Borough of Kingston,01/06/2022,90142297,"1,074.99",0,COMFORT CARE SERVICES UK LTD,SOCIAL SERVICES-HOME CARE,Adult Social Care & Health,Personal Budget - Third Party
Royal Borough of Kingston,01/06/2022,90142300,"2,700.47",0,COMFORT CARE SERVICES UK LTD,SOCIAL SERVICES-HOME CARE,Adult Social Care & Health,Personal Budget - Third Party
Royal Borough of Kingston,01/06/2022,90142301,"1,792.76",0,COMFORT CARE SERVICES UK LTD,SOCIAL SERVICES-HOME CARE,Adult Social Care & Health,Personal Budget - Third Party
Royal Borough of Kingston,01/06/2022,90142305,"2,700.47",0,COMFORT CARE SERVICES UK LTD,SOCIAL SERVICES-HOME CARE,Adult Social Care & Health,Personal Budget - Third Party
Royal Borough of Kingston,01/06/2022,90142315,"2,700.47",0,COMFORT CARE SERVICES UK LTD,SOCIAL SERVICES-HOME CARE,Adult Social Care & Health,Personal Budget - Third Party
Royal Borough of Kingston,01/06/2022,90142317,"2,700.47",0,COMFORT CARE SERVICES UK LTD,SOCIAL SERVICES-HOME CARE,Adult Social Care & Health,Personal Budget - Third Party
Royal Borough of Kingston,01/06/2022,90142321,"2,700.47",0,COMFORT CARE SERVICES UK LTD,SOCIAL SERVICES-HOME CARE,Adult Social Care & Health,Personal Budget - Third Party
Royal Borough of Kingston,01/06/2022,90142324,"1,074.99",0,COMFORT CARE SERVICES UK LTD,SOCIAL SERVICES-HOME CARE,Adult Social Care & Health,Personal Budget - Third Party
Royal Borough of Kingston,01/06/2022,90142325,"2,700.47",0,COMFORT CARE SERVICES UK LTD,SOCIAL SERVICES-HOME CARE,Adult Social Care & Health,Personal Budget - Third Party
Royal Borough of Kingston,01/06/2022,90142326,"3,010.84",0,COMFORT CARE SERVICES UK LTD,SOCIAL SERVICES-HOME CARE,Adult Social Care & Health,Personal Budget - Third Party
Royal Borough of Kingston,01/06/2022,90142328,"2,700.47",0,COMFORT CARE SERVICES UK LTD,SOCIAL SERVICES-HOME CARE,Adult Social Care & Health,Personal Budget - Third Party
Royal Borough of Kingston,01/06/2022,90142329,"2,700.47",0,COMFORT CARE SERVICES UK LTD,SOCIAL SERVICES-HOME CARE,Adult Social Care & Health,Personal Budget - Third Party
Royal Borough of Kingston,01/06/2022,90142331,"3,010.84",0,COMFORT CARE SERVICES UK LTD,SOCIAL SERVICES-HOME CARE,Adult Social Care & Health,Personal Budget - Third Party
Royal Borough of Kingston,01/06/2022,90142332,"2,700.47",0,COMFORT CARE SERVICES UK LTD,SOCIAL SERVICES-HOME CARE,Adult Social Care & Health,Personal Budget - Third Party
Royal Borough of Kingston,01/06/2022,90142334,"2,038.20",0,COMFORT CARE SERVICES UK LTD,SOCIAL SERVICES-HOME CARE,Adult Social Care & Health,Personal Budget - Third Party
Royal Borough of Kingston,01/06/2022,90142337,"3,010.84",0,COMFORT CARE SERVICES UK LTD,SOCIAL SERVICES-HOME CARE,Adult Social Care & Health,Personal Budget - Third Party
Royal Borough of Kingston,01/06/2022,90142338,"2,700.47",0,COMFORT CARE SERVICES UK LTD,SOCIAL SERVICES-HOME CARE,Adult Social Care & Health,Personal Budget - Third Party
Royal Borough of Kingston,01/06/2022,90142341,"1,672.67",0,COMFORT CARE SERVICES UK LTD,SOCIAL SERVICES-HOME CARE,Adult Social Care & Health,Personal Budget - Third Party
Royal Borough of Kingston,01/06/2022,90142344,"1,610.46",0,COMFORT CARE SERVICES UK LTD,SOCIAL SERVICES-HOME CARE,Adult Social Care & Health,Personal Budget - Third Party
Royal Borough of Kingston,01/06/2022,90140944,"7,841.49",0,COMMUNITY CARE SOLUTIONS LTD,SOCIAL SERVICES RESIDENTIAL,Adult Social Care & Health,Independent Placements
Royal Borough of Kingston,01/06/2022,90140947,"8,093.66",0,CONGRESS HOUSE LIMITED,SOCIAL SERVICES RESIDENTIAL,Adult Social Care & Health,Independent Placements
Royal Borough of Kingston,01/06/2022,90132342,"14,823.00",0,COOMBE ACADEMY TRUST,ACADEMIC INSTNS - OTHER,Schools,Miscellaneous Expenses
Royal Borough of Kingston,01/06/2022,90132280,"41,504.40",0,CORPUS CHRISTI CATHOLIC PRIMARY SCHOOL ,ACADEMIC INSTNS - OTHER,Schools,Miscellaneous Expenses
Royal Borough of Kingston,01/06/2022,90140639,"1,669.82",0,COUNTRY COURT CARE HOMES 2 LTD,SOCIAL SERVICES RESIDENTIAL,Adult Social Care & Health,Independent Placements
Royal Borough of Kingston,01/06/2022,90140709,"3,415.07",0,COUNTRY COURT CARE HOMES 2 LTD,SOCIAL SERVICES RESIDENTIAL,Adult Social Care & Health,Independent Placements
Royal Borough of Kingston,01/06/2022,90140764,"3,339.64",0,COUNTRY COURT CARE HOMES 2 LTD,SOCIAL SERVICES RESIDENTIAL,Adult Social Care & Health,Independent Placements
Royal Borough of Kingston,01/06/2022,90140779,"3,415.33",0,COUNTRY COURT CARE HOMES 2 LTD,SOCIAL SERVICES RESIDENTIAL,Adult Social Care & Health,Independent Placements
Royal Borough of Kingston,01/06/2022,90140784,"3,415.33",0,COUNTRY COURT CARE HOMES 2 LTD,SOCIAL SERVICES RESIDENTIAL,Adult Social Care & Health,Independent Placements
Royal Borough of Kingston,01/06/2022,90140792,"3,348.56",0,COUNTRY COURT CARE HOMES 2 LTD,SOCIAL SERVICES RESIDENTIAL,Adult Social Care & Health,Independent Placements
Royal Borough of Kingston,01/06/2022,70026479,"1,922.00",0,CRYSTAL & CO,ACCOMMODATION BED & BREAKFAST,Place,Bed & Breakfast
Royal Borough of Kingston,01/06/2022,70026480,"1,581.00",0,CRYSTAL & CO,ACCOMMODATION BED & BREAKFAST,Place,Bed & Breakfast
Royal Borough of Kingston,01/06/2022,70026481,"1,922.00",0,CRYSTAL & CO,ACCOMMODATION BED & BREAKFAST,Place,Bed & Breakfast
Royal Borough of Kingston,01/06/2022,70026482,"1,922.00",0,CRYSTAL & CO,ACCOMMODATION BED & BREAKFAST,Place,Bed & Breakfast
Royal Borough of Kingston,01/06/2022,70026483,"1,581.00",0,CRYSTAL & CO,ACCOMMODATION BED & BREAKFAST,Place,Bed & Breakfast
Royal Borough of Kingston,01/06/2022,70026484,"1,705.00",0,CRYSTAL & CO,ACCOMMODATION BED & BREAKFAST,Place,Bed & Breakfast
Royal Borough of Kingston,01/06/2022,70026486,"1,643.00",0,CRYSTAL & CO,ACCOMMODATION BED & BREAKFAST,Place,Bed & Breakfast
Royal Borough of Kingston,01/06/2022,70026487,"1,643.00",0,CRYSTAL & CO,ACCOMMODATION BED & BREAKFAST,Place,Bed & Breakfast
Royal Borough of Kingston,01/06/2022,70026488,"1,922.00",0,CRYSTAL & CO,ACCOMMODATION BED & BREAKFAST,Place,Bed & Breakfast
Royal Borough of Kingston,01/06/2022,70026489,"1,581.00",0,CRYSTAL & CO,ACCOMMODATION BED & BREAKFAST,Place,Bed & Breakfast
Royal Borough of Kingston,01/06/2022,70026490,"1,240.00",0,CRYSTAL & CO,ACCOMMODATION BED & BREAKFAST,Place,Bed & Breakfast
Royal Borough of Kingston,01/06/2022,70026491,"1,302.00",0,CRYSTAL & CO,ACCOMMODATION BED & BREAKFAST,Place,Bed & Breakfast
Royal Borough of Kingston,01/06/2022,70026492,"1,922.00",0,CRYSTAL & CO,ACCOMMODATION BED & BREAKFAST,Place,Bed & Breakfast
Royal Borough of Kingston,01/06/2022,70026493,"1,581.00",0,CRYSTAL & CO,ACCOMMODATION BED & BREAKFAST,Place,Bed & Breakfast
Royal Borough of Kingston,01/06/2022,70026494,"1,922.00",0,CRYSTAL & CO,ACCOMMODATION BED & BREAKFAST,Place,Bed & Breakfast
Royal Borough of Kingston,01/06/2022,90132309,"7,154.57",0,KNOLLMEAD PRIMARY SCHOOL,SCHOOL FUNDS,Schools,Miscellaneous Expenses
Royal Borough of Kingston,01/06/2022,90142342,"6,294.73",0,Darethealthcare UK Limited,ACCOMMODATION - OTHER,Adult Social Care & Health,Personal Budget - Third Party
Royal Borough of Kingston,01/06/2022,90137774,"4,714.29",0,Dephinus Healthcare Ltd,ACCOMMODATION - OTHER,Adult Social Care & Health,Personal Budget - Third Party
Royal Borough of Kingston,01/06/2022,90137775,"12,178.57",0,Dephinus Healthcare Ltd,ACCOMMODATION - OTHER,Adult Social Care & Health,Personal Budget - Third Party
Royal Borough of Kingston,01/06/2022,90142294,"6,450.00",0,Dephinus Healthcare Ltd,ACCOMMODATION - OTHER,Adult Social Care & Health,Personal Budget - Third Party
Royal Borough of Kingston,01/06/2022,90142320,"11,785.71",0,Dephinus Healthcare Ltd,ACCOMMODATION - OTHER,Adult Social Care & Health,Personal Budget - Third Party
Royal Borough of Kingston,01/06/2022,90132220,"1,990.44",0,DICKY BIRDS PRE SCHOOL NURSERIES LTD,CHILDMINDERS START UP GRANT,Schools,2 Yr Old Place Funding
Royal Borough of Kingston,01/06/2022,90132282,"18,973.44",0,DICKY BIRDS PRE SCHOOL NURSERIES LTD,CHILDMINDERS START UP GRANT,Schools,PVI Providers
Royal Borough of Kingston,01/06/2022,90132283,"28,789.56",0,DICKY BIRDS PRE SCHOOL NURSERIES LTD,CHILDMINDERS START UP GRANT,Schools,PVI Providers
Royal Borough of Kingston,01/06/2022,90132284,"21,130.20",0,DICKY BIRDS PRE SCHOOL NURSERIES LTD,CHILDMINDERS START UP GRANT,Schools,PVI Providers
Royal Borough of Kingston,01/06/2022,90132202,"1,976.40",0,REDACTED - PERSONAL DATA,CHILDMINDERS START UP GRANT,Schools,PVI Providers
Royal Borough of Kingston,01/06/2022,90132221,"6,573.00",0,DORIS VENNER PRE-SCHOOL,ACADEMIC INSTNS - OTHER,Schools,2 Yr Old Place Funding
Royal Borough of Kingston,01/06/2022,90132285,"42,756.12",0,DORIS VENNER PRE-SCHOOL,ACADEMIC INSTNS - OTHER,Schools,PVI Providers
Royal Borough of Kingston,01/06/2022,90140974,"5,356.29",0,DOWNING (CHERTSEY ROAD) LTD,SOCIAL SERVICES RESIDENTIAL,Adult Social Care & Health,Independent Placements
Royal Borough of Kingston,01/06/2022,90132199,"1,264.90",0,REDACTED - PERSONAL DATA,CHILDMINDERS START UP GRANT,Schools,PVI Providers
Royal Borough of Kingston,01/06/2022,90132323,"1,976.40",0,REDACTED - PERSONAL DATA,CHILDMINDERS START UP GRANT,Schools,PVI Providers
Royal Borough of Kingston,01/06/2022,90132286,"6,522.12",0,EDUCARE SMALL SCHOOL LTD,ACADEMIC INSTNS - OTHER,Schools,PVI Providers
Royal Borough of Kingston,01/06/2022,90132223,"2,253.60",0,ELLINGHAM PRIMARY SCHOOL,ACADEMIC INSTNS - OTHER,Schools,2 Yr Old Place Funding
Royal Borough of Kingston,01/06/2022,90132287,"28,657.80",0,ELLINGHAM PRIMARY SCHOOL,ACADEMIC INSTNS - OTHER,Schools,Miscellaneous Expenses
Royal Borough of Kingston,01/06/2022,90140916,"9,565.71",0,ELYSIUM HEALTHCARE LTD,SOCIAL SERVICES - OTHER,Adult Social Care & Health,Independent Placements
Royal Borough of Kingston,01/06/2022,90140923,"9,229.16",0,ELYSIUM HEALTHCARE LTD,SOCIAL SERVICES - OTHER,Adult Social Care & Health,Independent Placements
Royal Borough of Kingston,01/06/2022,90140925,"10,980.99",0,ELYSIUM HEALTHCARE LTD,SOCIAL SERVICES - OTHER,Adult Social Care & Health,Independent Placements
Royal Borough of Kingston,01/06/2022,90140929,"7,792.50",0,ELYSIUM HEALTHCARE LTD,SOCIAL SERVICES - OTHER,Adult Social Care & Health,Independent Placements
Royal Borough of Kingston,01/06/2022,90140932,"9,759.34",0,ELYSIUM HEALTHCARE LTD,SOCIAL SERVICES - OTHER,Adult Social Care & Health,Independent Placements
Royal Borough of Kingston,01/06/2022,90140953,"9,565.71",0,ELYSIUM HEALTHCARE LTD,SOCIAL SERVICES - OTHER,Adult Social Care & Health,Independent Placements
Royal Borough of Kingston,01/06/2022,90132312,790.56,0,REDACTED - PERSONAL DATA,CHILDMINDERS START UP GRANT,Schools,PVI Providers
Royal Borough of Kingston,01/06/2022,90141073,"9,452.03",0,EMEZZIONS LIMITED,SOCIAL SERVICES - OTHER,Adult Social Care & Health,Supported Living - new framework
Royal Borough of Kingston,01/06/2022,90132214,901.44,0,REDACTED - PERSONAL DATA,CHILDMINDERS START UP GRANT,Schools,2 Yr Old Place Funding
Royal Borough of Kingston,01/06/2022,90132186,"1,126.80",0,REDACTED - PERSONAL DATA,CHILDMINDERS START UP GRANT,Schools,2 Yr Old Place Funding
Royal Borough of Kingston,01/06/2022,90140777,"3,241.63",0,ENHAM,SOCIAL SERVICES - OTHER,Adult Social Care & Health,Independent Placements
Royal Borough of Kingston,01/06/2022,90139274,"1,453.03",0,ENHANCEABLE,SOCIAL SERVICES - OTHER,Adult Social Care & Health,Personal Budget - Third Party
Royal Borough of Kingston,01/06/2022,90141045,"30,219.77",0,ENHANCEABLE,SOCIAL SERVICES - OTHER,Adult Social Care & Health,Other Private Contractors - Third Party
Royal Borough of Kingston,01/06/2022,90141049,508.07,0,ENHANCEABLE,SOCIAL SERVICES - OTHER,Adult Social Care & Health,Other Private Contractors - Third Party
Royal Borough of Kingston,01/06/2022,90141664,624.04,0,ENHANCEABLE,SOCIAL SERVICES - OTHER,Adult Social Care & Health,Personal Budget - Third Party
Royal Borough of Kingston,01/06/2022,90141901,"1,633.89",0,ENHANCEABLE,SOCIAL SERVICES - OTHER,Adult Social Care & Health,Personal Budget - Third Party
Royal Borough of Kingston,01/06/2022,90142395,907.71,0,ENHANCEABLE,SOCIAL SERVICES - OTHER,Adult Social Care & Health,Personal Budget - Third Party
Royal Borough of Kingston,01/06/2022,90142396,998.49,0,ENHANCEABLE,SOCIAL SERVICES - OTHER,Adult Social Care & Health,Personal Budget - Third Party
Royal Borough of Kingston,01/06/2022,70026035,"1,829.00",0,EXCLUSIVE FINE HOMES LTD,ACCOMMODATION BED & BREAKFAST,Place,Bed & Breakfast
Royal Borough of Kingston,01/06/2022,70026037,"4,650.00",0,EXCLUSIVE FINE HOMES LTD,ACCOMMODATION BED & BREAKFAST,Place,Bed & Breakfast
Royal Borough of Kingston,01/06/2022,70026038,"4,650.00",0,EXCLUSIVE FINE HOMES LTD,ACCOMMODATION BED & BREAKFAST,Place,Bed & Breakfast
Royal Borough of Kingston,01/06/2022,70026039,"1,829.00",0,EXCLUSIVE FINE HOMES LTD,ACCOMMODATION BED & BREAKFAST,Place,Bed & Breakfast
Royal Borough of Kingston,01/06/2022,70026040,"1,674.00",0,EXCLUSIVE FINE HOMES LTD,ACCOMMODATION BED & BREAKFAST,Place,Bed & Breakfast
Royal Borough of Kingston,01/06/2022,70026041,"2,108.00",0,EXCLUSIVE FINE HOMES LTD,ACCOMMODATION BED & BREAKFAST,Place,Bed & Breakfast
Royal Borough of Kingston,01/06/2022,70025434,"1,000.00",0,F H & G LIMITED,LEGAL & PROFESSIONAL SERVICES,Housing Revenue Account,Professional Fees
Royal Borough of Kingston,01/06/2022,90132224,"1,790.36",0,FAIRFIELD PLAYBOX PLAYGROUP,ACADEMIC INSTNS - OTHER,Schools,2 Yr Old Place Funding
Royal Borough of Kingston,01/06/2022,90132288,"3,079.89",0,FAIRFIELD PLAYBOX PLAYGROUP,ACADEMIC INSTNS - OTHER,Schools,PVI Providers
Royal Borough of Kingston,01/06/2022,90141000,"4,823.70",0,FAMILY INVESTMENT (THREE) LIMITED,SOCIAL SERVICES RESIDENTIAL,Adult Social Care & Health,Independent Placements
Royal Borough of Kingston,01/06/2022,90132259,"3,755.16",0,REDACTED - PERSONAL DATA,CHILDMINDERS START UP GRANT,Schools,PVI Providers
Royal Borough of Kingston,01/06/2022,90132290,"41,504.40",0,FERN HILL PRIMARY SCHOOL ,ACADEMIC INSTNS - OTHER,Schools,Miscellaneous Expenses
Royal Borough of Kingston,01/06/2022,70025429,"3,000.00",0,FLEXRM LIMITED,OPERATIONAL EQUIPMENT/MATERIAL,Corporate & Communities,IT Software Maintenance
Royal Borough of Kingston,01/06/2022,90132291,"3,952.80",0,Fountain Nursery Limited,CHILDMINDERS START UP GRANT,Schools,PVI Providers
Royal Borough of Kingston,01/06/2022,90140567,"4,232.57",0,FOUR SEASONS HEALTHCARE,SOCIAL SERVICES RESIDENTIAL,Adult Social Care & Health,Independent Placements
Royal Borough of Kingston,01/06/2022,90140582,"3,406.46",0,FOUR SEASONS HEALTHCARE,SOCIAL SERVICES RESIDENTIAL,Adult Social Care & Health,Independent Placements
Royal Borough of Kingston,01/06/2022,90140588,"3,339.64",0,FOUR SEASONS HEALTHCARE,SOCIAL SERVICES RESIDENTIAL,Adult Social Care & Health,Independent Placements
Royal Borough of Kingston,01/06/2022,90140590,"3,428.57",0,FOUR SEASONS HEALTHCARE,SOCIAL SERVICES RESIDENTIAL,Adult Social Care & Health,Independent Placements
Royal Borough of Kingston,01/06/2022,90140597,779.25,0,FOUR SEASONS HEALTHCARE,SOCIAL SERVICES RESIDENTIAL,Adult Social Care & Health,Independent Placements
Royal Borough of Kingston,01/06/2022,90140603,"3,323.61",0,FOUR SEASONS HEALTHCARE,SOCIAL SERVICES RESIDENTIAL,Adult Social Care & Health,Independent Placements
Royal Borough of Kingston,01/06/2022,90140616,"2,916.64",0,FOUR SEASONS HEALTHCARE,SOCIAL SERVICES RESIDENTIAL,Adult Social Care & Health,Independent Placements
Royal Borough of Kingston,01/06/2022,90140618,"3,339.64",0,FOUR SEASONS HEALTHCARE,SOCIAL SERVICES RESIDENTIAL,Adult Social Care & Health,Independent Placements
Royal Borough of Kingston,01/06/2022,90140638,"2,916.64",0,FOUR SEASONS HEALTHCARE,SOCIAL SERVICES RESIDENTIAL,Adult Social Care & Health,Independent Placements
Royal Borough of Kingston,01/06/2022,90140643,"3,125.44",0,FOUR SEASONS HEALTHCARE,SOCIAL SERVICES RESIDENTIAL,Adult Social Care & Health,Independent Placements
Royal Borough of Kingston,01/06/2022,90140663,"3,228.34",0,FOUR SEASONS HEALTHCARE,SOCIAL SERVICES RESIDENTIAL,Adult Social Care & Health,Independent Placements
Royal Borough of Kingston,01/06/2022,90140672,"3,210.51",0,FOUR SEASONS HEALTHCARE,SOCIAL SERVICES RESIDENTIAL,Adult Social Care & Health,Independent Placements
Royal Borough of Kingston,01/06/2022,90140674,"3,339.64",0,FOUR SEASONS HEALTHCARE,SOCIAL SERVICES RESIDENTIAL,Adult Social Care & Health,Independent Placements
Royal Borough of Kingston,01/06/2022,90140790,"3,250.59",0,FOUR SEASONS HEALTHCARE,SOCIAL SERVICES RESIDENTIAL,Adult Social Care & Health,Independent Placements
Royal Borough of Kingston,01/06/2022,90140801,"3,125.44",0,FOUR SEASONS HEALTHCARE,SOCIAL SERVICES RESIDENTIAL,Adult Social Care & Health,Independent Placements
Royal Borough of Kingston,01/06/2022,90142314,"17,060.49",0,Freshstart Care Solutions Ltd,ACCOMMODATION - OTHER,Adult Social Care & Health,Personal Budget - Third Party
Royal Borough of Kingston,01/06/2022,90132261,"2,766.96",0,FUN EXPLORERS CHILDCARE,CHILDMINDERS START UP GRANT,Schools,PVI Providers
Royal Borough of Kingston,01/06/2022,90132355,790.56,0,KIKO' S CHILDCARE,CHILDMINDERS START UP GRANT,Schools,PVI Providers
Royal Borough of Kingston,01/06/2022,90132229,"3,380.40",0,KINGSTON HOSPITAL NHS TRUST,SOCIAL SERVICES DAY CARE,Schools,2 Yr Old Place Funding
Royal Borough of Kingston,01/06/2022,90132298,"44,469.00",0,KINGSTON HOSPITAL NHS TRUST,SOCIAL SERVICES DAY CARE,Schools,PVI Providers
Royal Borough of Kingston,01/06/2022,90141686,671.14,0,GENEVA ROAD LIMITED,SOCIAL SERVICES RESIDENTIAL,Adult Social Care & Health,Personal Budget - Third Party
Royal Borough of Kingston,01/06/2022,90141687,750,0,GENEVA ROAD LIMITED,SOCIAL SERVICES RESIDENTIAL,Adult Social Care & Health,Personal Budget - Third Party
Royal Borough of Kingston,01/06/2022,90141688,"1,928.57",0,GENEVA ROAD LIMITED,SOCIAL SERVICES RESIDENTIAL,Adult Social Care & Health,Personal Budget - Third Party
Royal Borough of Kingston,01/06/2022,90141703,"1,071.43",0,GENEVA ROAD LIMITED,SOCIAL SERVICES RESIDENTIAL,Adult Social Care & Health,Personal Budget - Third Party
Royal Borough of Kingston,01/06/2022,90141704,"1,071.43",0,GENEVA ROAD LIMITED,SOCIAL SERVICES RESIDENTIAL,Adult Social Care & Health,Personal Budget - Third Party
Royal Borough of Kingston,01/06/2022,90141718,"1,230.43",0,GENEVA ROAD LIMITED,SOCIAL SERVICES RESIDENTIAL,Adult Social Care & Health,Personal Budget - Third Party
Royal Borough of Kingston,01/06/2022,90141719,"1,071.43",0,GENEVA ROAD LIMITED,SOCIAL SERVICES RESIDENTIAL,Adult Social Care & Health,Personal Budget - Third Party
Royal Borough of Kingston,01/06/2022,90141725,428.57,0,GENEVA ROAD LIMITED,SOCIAL SERVICES RESIDENTIAL,Adult Social Care & Health,Personal Budget - Third Party
Royal Borough of Kingston,01/06/2022,90141726,428.57,0,GENEVA ROAD LIMITED,SOCIAL SERVICES RESIDENTIAL,Adult Social Care & Health,Personal Budget - Third Party
Royal Borough of Kingston,01/06/2022,90141728,642.86,0,GENEVA ROAD LIMITED,SOCIAL SERVICES RESIDENTIAL,Adult Social Care & Health,Personal Budget - Third Party
Royal Borough of Kingston,01/06/2022,90141729,642.86,0,GENEVA ROAD LIMITED,SOCIAL SERVICES RESIDENTIAL,Adult Social Care & Health,Personal Budget - Third Party
Royal Borough of Kingston,01/06/2022,90141730,"1,118.57",0,GENEVA ROAD LIMITED,SOCIAL SERVICES RESIDENTIAL,Adult Social Care & Health,Personal Budget - Third Party
Royal Borough of Kingston,01/06/2022,90141731,"1,071.43",0,GENEVA ROAD LIMITED,SOCIAL SERVICES RESIDENTIAL,Adult Social Care & Health,Personal Budget - Third Party
Royal Borough of Kingston,01/06/2022,90141732,"1,071.43",0,GENEVA ROAD LIMITED,SOCIAL SERVICES RESIDENTIAL,Adult Social Care & Health,Personal Budget - Third Party
Royal Borough of Kingston,01/06/2022,90141736,428.57,0,GENEVA ROAD LIMITED,SOCIAL SERVICES RESIDENTIAL,Adult Social Care & Health,Personal Budget - Third Party
Royal Borough of Kingston,01/06/2022,90141739,642.37,0,GENEVA ROAD LIMITED,SOCIAL SERVICES RESIDENTIAL,Adult Social Care & Health,Personal Budget - Third Party
Royal Borough of Kingston,01/06/2022,90141756,857.14,0,GENEVA ROAD LIMITED,SOCIAL SERVICES RESIDENTIAL,Adult Social Care & Health,Personal Budget - Third Party
Royal Borough of Kingston,01/06/2022,90141783,490.54,0,GENEVA ROAD LIMITED,SOCIAL SERVICES RESIDENTIAL,Adult Social Care & Health,Personal Budget - Third Party
Royal Borough of Kingston,01/06/2022,90141784,847.54,0,GENEVA ROAD LIMITED,SOCIAL SERVICES RESIDENTIAL,Adult Social Care & Health,Personal Budget - Third Party
Royal Borough of Kingston,01/06/2022,90141795,535.71,0,GENEVA ROAD LIMITED,SOCIAL SERVICES RESIDENTIAL,Adult Social Care & Health,Personal Budget - Third Party
Royal Borough of Kingston,01/06/2022,90141797,642.86,0,GENEVA ROAD LIMITED,SOCIAL SERVICES RESIDENTIAL,Adult Social Care & Health,Personal Budget - Third Party
Royal Borough of Kingston,01/06/2022,90142397,470.36,0,GENEVA ROAD LIMITED,SOCIAL SERVICES RESIDENTIAL,Adult Social Care & Health,Personal Budget - Third Party
Royal Borough of Kingston,01/06/2022,90140788,"3,339.64",0,GEORGIAN HOUSE NURSING HOME,SOCIAL SERVICES RESIDENTIAL,Adult Social Care & Health,Independent Placements
Royal Borough of Kingston,01/06/2022,90132345,"3,768.34",0,GIGGLY PICKLES PLAYHOUSE,CHILDMINDERS START UP GRANT,Schools,PVI Providers
Royal Borough of Kingston,01/06/2022,90132921,"3,210.71",0,GLORY CARE CENTRE LTD,SOCIAL SERVICES RESIDENTIAL,Adult Social Care & Health,Independent Placements
Royal Borough of Kingston,01/06/2022,90132922,"3,210.71",0,GLORY CARE CENTRE LTD,SOCIAL SERVICES RESIDENTIAL,Adult Social Care & Health,Independent Placements
Royal Borough of Kingston,01/06/2022,90132923,"2,071.43",0,GLORY CARE CENTRE LTD,SOCIAL SERVICES RESIDENTIAL,Adult Social Care & Health,Independent Placements
Royal Borough of Kingston,01/06/2022,90132924,828.57,0,GLORY CARE CENTRE LTD,SOCIAL SERVICES RESIDENTIAL,Adult Social Care & Health,Independent Placements
Royal Borough of Kingston,01/06/2022,90132925,"4,207.14",0,GLORY CARE CENTRE LTD,SOCIAL SERVICES RESIDENTIAL,Adult Social Care & Health,Independent Placements
Royal Borough of Kingston,01/06/2022,90132926,"4,071.43",0,GLORY CARE CENTRE LTD,SOCIAL SERVICES RESIDENTIAL,Adult Social Care & Health,Independent Placements
Royal Borough of Kingston,01/06/2022,90132927,-678.57,0,GLORY CARE CENTRE LTD,SOCIAL SERVICES RESIDENTIAL,Adult Social Care & Health,Independent Placements
Royal Borough of Kingston,01/06/2022,90140694,"4,318.29",0,Gold Care Homes,SOCIAL SERVICES RESIDENTIAL,Adult Social Care & Health,Independent Placements
Royal Borough of Kingston,01/06/2022,90140724,"4,318.29",0,Gold Care Homes,SOCIAL SERVICES RESIDENTIAL,Adult Social Care & Health,Independent Placements
Royal Borough of Kingston,01/06/2022,90140740,"4,608.73",0,Gold Care Homes,SOCIAL SERVICES RESIDENTIAL,Adult Social Care & Health,Independent Placements
Royal Borough of Kingston,01/06/2022,90140742,"3,339.64",0,Gold Care Homes,SOCIAL SERVICES RESIDENTIAL,Adult Social Care & Health,Independent Placements
Royal Borough of Kingston,01/06/2022,90140840,"4,318.29",0,Gold Care Homes,SOCIAL SERVICES RESIDENTIAL,Adult Social Care & Health,Independent Placements
Royal Borough of Kingston,01/06/2022,90140856,"4,028.23",0,Gold Care Homes,SOCIAL SERVICES RESIDENTIAL,Adult Social Care & Health,Independent Placements
Royal Borough of Kingston,01/06/2022,90140857,"4,318.29",0,Gold Care Homes,SOCIAL SERVICES RESIDENTIAL,Adult Social Care & Health,Independent Placements
Royal Borough of Kingston,01/06/2022,90140858,"4,608.73",0,Gold Care Homes,SOCIAL SERVICES RESIDENTIAL,Adult Social Care & Health,Independent Placements
Royal Borough of Kingston,01/06/2022,90140867,"4,318.29",0,Gold Care Homes,SOCIAL SERVICES RESIDENTIAL,Adult Social Care & Health,Independent Placements
Royal Borough of Kingston,01/06/2022,90140870,"4,608.73",0,Gold Care Homes,SOCIAL SERVICES RESIDENTIAL,Adult Social Care & Health,Independent Placements
Royal Borough of Kingston,01/06/2022,90140871,"4,028.23",0,Gold Care Homes,SOCIAL SERVICES RESIDENTIAL,Adult Social Care & Health,Independent Placements
Royal Borough of Kingston,01/06/2022,90140892,"4,028.23",0,Gold Care Homes,SOCIAL SERVICES RESIDENTIAL,Adult Social Care & Health,Independent Placements
Royal Borough of Kingston,01/06/2022,90140893,"4,608.73",0,Gold Care Homes,SOCIAL SERVICES RESIDENTIAL,Adult Social Care & Health,Independent Placements
Royal Borough of Kingston,01/06/2022,90140894,"4,608.73",0,Gold Care Homes,SOCIAL SERVICES RESIDENTIAL,Adult Social Care & Health,Independent Placements
Royal Borough of Kingston,01/06/2022,90141648,908.57,0,Gold Care Homes,SOCIAL SERVICES RESIDENTIAL,Adult Social Care & Health,Personal Budget - Third Party
Royal Borough of Kingston,01/06/2022,90141653,578.64,0,Gold Care Homes,SOCIAL SERVICES RESIDENTIAL,Adult Social Care & Health,Personal Budget - Third Party
Royal Borough of Kingston,01/06/2022,90141654,626.86,0,Gold Care Homes,SOCIAL SERVICES RESIDENTIAL,Adult Social Care & Health,Personal Budget - Third Party
Royal Borough of Kingston,01/06/2022,90141656,"1,509.64",0,Gold Care Homes,SOCIAL SERVICES RESIDENTIAL,Adult Social Care & Health,Personal Budget - Third Party
Royal Borough of Kingston,01/06/2022,90141677,819.74,0,Gold Care Homes,SOCIAL SERVICES RESIDENTIAL,Adult Social Care & Health,Personal Budget - Third Party
Royal Borough of Kingston,01/06/2022,90141678,867.96,0,Gold Care Homes,SOCIAL SERVICES RESIDENTIAL,Adult Social Care & Health,Personal Budget - Third Party
Royal Borough of Kingston,01/06/2022,90132295,"30,831.84",0,GRAND AVENUE PRIMARY AND NURSERY SCHOOL,CENTRAL & LOCAL GOVERNMENT,Schools,Miscellaneous Expenses
Royal Borough of Kingston,01/06/2022,90132297,"17,695.37",0,GREEN LANE PRIMARY & NURSERY SCHOOL,ACADEMIC INSTNS - OTHER,Schools,Miscellaneous Expenses
Royal Borough of Kingston,01/06/2022,90140728,"2,894.36",0,GREYDALES LIMITED,SOCIAL SERVICES RESIDENTIAL,Adult Social Care & Health,Independent Placements
Royal Borough of Kingston,01/06/2022,90140907,"3,818.36",0,Grove Care Partnership Limited,SOCIAL SERVICES RESIDENTIAL,Adult Social Care & Health,Independent Placements
Royal Borough of Kingston,01/06/2022,90140924,"9,818.57",0,Grove Care Partnership Limited,SOCIAL SERVICES RESIDENTIAL,Adult Social Care & Health,Independent Placements
Royal Borough of Kingston,01/06/2022,90140940,"14,406.60",0,Grove Care Partnership Limited,SOCIAL SERVICES RESIDENTIAL,Adult Social Care & Health,Independent Placements
Royal Borough of Kingston,01/06/2022,90140943,"9,712.59",0,Grove Care Partnership Limited,SOCIAL SERVICES RESIDENTIAL,Adult Social Care & Health,Independent Placements
Royal Borough of Kingston,01/06/2022,90140951,"15,117.47",0,Grove Care Partnership Limited,SOCIAL SERVICES RESIDENTIAL,Adult Social Care & Health,Independent Placements
Royal Borough of Kingston,01/06/2022,90140969,"14,261.91",0,Grove Care Partnership Limited,SOCIAL SERVICES RESIDENTIAL,Adult Social Care & Health,Independent Placements
Royal Borough of Kingston,01/06/2022,90140977,"-8,946.01",0,Grove Care Partnership Limited,SOCIAL SERVICES RESIDENTIAL,Adult Social Care & Health,Independent Placements
Royal Borough of Kingston,01/06/2022,90140980,"9,300.09",0,Grove Care Partnership Limited,SOCIAL SERVICES RESIDENTIAL,Adult Social Care & Health,Independent Placements
Royal Borough of Kingston,01/06/2022,90141010,"7,488.69",0,Grove Care Partnership Limited,SOCIAL SERVICES RESIDENTIAL,Adult Social Care & Health,Independent Placements
Royal Borough of Kingston,01/06/2022,90141020,"10,951.63",0,Grove Care Partnership Limited,SOCIAL SERVICES RESIDENTIAL,Adult Social Care & Health,Independent Placements
Royal Borough of Kingston,01/06/2022,90141021,"11,132.14",0,Grove Care Partnership Limited,SOCIAL SERVICES RESIDENTIAL,Adult Social Care & Health,Independent Placements
Royal Borough of Kingston,01/06/2022,90140826,"4,452.86",0,HAMPTON CARE LIMITED,SOCIAL SERVICES RESIDENTIAL,Adult Social Care & Health,Independent Placements
Royal Borough of Kingston,01/06/2022,90140963,"4,714.80",0,HAZELDENE UK LIMITED,OPERATIONAL EQUIPMENT/MATERIAL,Adult Social Care & Health,Independent Placements
Royal Borough of Kingston,01/06/2022,90142384,-624.43,0,HAZELDENE UK LIMITED,OPERATIONAL EQUIPMENT/MATERIAL,Adult Social Care & Health,Financially Assessed Contributions clients � Non VAT
Royal Borough of Kingston,01/06/2022,90141765,882.86,0,HAZELDENE UK LTD,SOCIAL SERVICES RESIDENTIAL,Adult Social Care & Health,Personal Budget - Third Party
Royal Borough of Kingston,01/06/2022,90140863,"4,898.14",0,HAZELWOOD HOUSE,SOCIAL SERVICES RESIDENTIAL,Adult Social Care & Health,Independent Placements
Royal Borough of Kingston,01/06/2022,90140606,"3,690.30",0,HC-1 LIMITED ASHGROVE CARE HOME,SOCIAL SERVICES RESIDENTIAL,Adult Social Care & Health,Independent Placements
Royal Borough of Kingston,01/06/2022,90140915,"13,148.53",0,HEATHCOTES (SOUTHERN) LTD,SOCIAL SERVICES RESIDENTIAL,Adult Social Care & Health,Independent Placements
Royal Borough of Kingston,01/06/2022,90140937,"9,796.29",0,HEATHCOTES (SOUTHERN) LTD,SOCIAL SERVICES RESIDENTIAL,Adult Social Care & Health,Independent Placements
Royal Borough of Kingston,01/06/2022,90140939,"11,627.44",0,HEATHCOTES (SOUTHERN) LTD,SOCIAL SERVICES RESIDENTIAL,Adult Social Care & Health,Independent Placements
Royal Borough of Kingston,01/06/2022,90141991,"4,160.00",0,HEATHCOTES (SOUTHERN) LTD,SOCIAL SERVICES RESIDENTIAL,Adult Social Care & Health,Personal Budget - Third Party
Royal Borough of Kingston,01/06/2022,90141992,"-3,840.00",0,HEATHCOTES (SOUTHERN) LTD,SOCIAL SERVICES RESIDENTIAL,Adult Social Care & Health,Personal Budget - Third Party
Royal Borough of Kingston,01/06/2022,90141993,"16,120.00",0,HEATHCOTES (SOUTHERN) LTD,SOCIAL SERVICES RESIDENTIAL,Adult Social Care & Health,Personal Budget - Third Party
Royal Borough of Kingston,01/06/2022,90141994,"-14,880.00",0,HEATHCOTES (SOUTHERN) LTD,SOCIAL SERVICES RESIDENTIAL,Adult Social Care & Health,Personal Budget - Third Party
Royal Borough of Kingston,01/06/2022,90141995,"15,600.00",0,HEATHCOTES (SOUTHERN) LTD,SOCIAL SERVICES RESIDENTIAL,Adult Social Care & Health,Personal Budget - Third Party
Royal Borough of Kingston,01/06/2022,90141996,"-15,249.60",0,HEATHCOTES (SOUTHERN) LTD,SOCIAL SERVICES RESIDENTIAL,Adult Social Care & Health,Personal Budget - Third Party
Royal Borough of Kingston,01/06/2022,90141997,"16,120.00",0,HEATHCOTES (SOUTHERN) LTD,SOCIAL SERVICES RESIDENTIAL,Adult Social Care & Health,Personal Budget - Third Party
Royal Borough of Kingston,01/06/2022,90141998,"-15,757.92",0,HEATHCOTES (SOUTHERN) LTD,SOCIAL SERVICES RESIDENTIAL,Adult Social Care & Health,Personal Budget - Third Party
Royal Borough of Kingston,01/06/2022,90141999,"15,600.00",0,HEATHCOTES (SOUTHERN) LTD,SOCIAL SERVICES RESIDENTIAL,Adult Social Care & Health,Personal Budget - Third Party
Royal Borough of Kingston,01/06/2022,90140789,"3,094.50",0,JESYEM MEDICARE LTD,SOCIAL SERVICES RESIDENTIAL,Adult Social Care & Health,Independent Placements
Royal Borough of Kingston,01/06/2022,90140793,"4,230.21",0,JESYEM MEDICARE LTD,SOCIAL SERVICES RESIDENTIAL,Adult Social Care & Health,Independent Placements
Royal Borough of Kingston,01/06/2022,90140800,"4,230.21",0,JESYEM MEDICARE LTD,SOCIAL SERVICES RESIDENTIAL,Adult Social Care & Health,Independent Placements
Royal Borough of Kingston,01/06/2022,90141716,558.09,0,HERTFORDSHIRE COUNTY COUNCIL,SOCIAL SERVICES RESIDENTIAL,Adult Social Care & Health,Personal Budget - Third Party
Royal Borough of Kingston,01/06/2022,90141684,903.27,0,HF TRUST LTD ,SOCIAL SERVICES DAY CARE,Adult Social Care & Health,Personal Budget - Third Party
Royal Borough of Kingston,01/06/2022,90141685,"2,258.19",0,HF TRUST LTD ,SOCIAL SERVICES DAY CARE,Adult Social Care & Health,Personal Budget - Third Party
Royal Borough of Kingston,01/06/2022,90141694,642.86,0,HF TRUST LTD ,SOCIAL SERVICES DAY CARE,Adult Social Care & Health,Personal Budget - Third Party
Royal Borough of Kingston,01/06/2022,90141696,964.29,0,HF TRUST LTD ,SOCIAL SERVICES DAY CARE,Adult Social Care & Health,Personal Budget - Third Party
Royal Borough of Kingston,01/06/2022,90141697,857.14,0,HF TRUST LTD ,SOCIAL SERVICES DAY CARE,Adult Social Care & Health,Personal Budget - Third Party
Royal Borough of Kingston,01/06/2022,90141710,642.86,0,HF TRUST LTD ,SOCIAL SERVICES DAY CARE,Adult Social Care & Health,Personal Budget - Third Party
Royal Borough of Kingston,01/06/2022,90141712,857.14,0,HF TRUST LTD ,SOCIAL SERVICES DAY CARE,Adult Social Care & Health,Personal Budget - Third Party
Royal Borough of Kingston,01/06/2022,90141714,857.14,0,HF TRUST LTD ,SOCIAL SERVICES DAY CARE,Adult Social Care & Health,Personal Budget - Third Party
Royal Borough of Kingston,01/06/2022,90141733,"1,071.43",0,HF TRUST LTD ,SOCIAL SERVICES DAY CARE,Adult Social Care & Health,Personal Budget - Third Party
Royal Borough of Kingston,01/06/2022,90141746,642.86,0,HF TRUST LTD ,SOCIAL SERVICES DAY CARE,Adult Social Care & Health,Personal Budget - Third Party
Royal Borough of Kingston,01/06/2022,90141749,"1,071.43",0,HF TRUST LTD ,SOCIAL SERVICES DAY CARE,Adult Social Care & Health,Personal Budget - Third Party
Royal Borough of Kingston,01/06/2022,90141752,857.14,0,HF TRUST LTD ,SOCIAL SERVICES DAY CARE,Adult Social Care & Health,Personal Budget - Third Party
Royal Borough of Kingston,01/06/2022,90141753,642.86,0,HF TRUST LTD ,SOCIAL SERVICES DAY CARE,Adult Social Care & Health,Personal Budget - Third Party
Royal Borough of Kingston,01/06/2022,90141757,"1,071.43",0,HF TRUST LTD ,SOCIAL SERVICES DAY CARE,Adult Social Care & Health,Personal Budget - Third Party
Royal Borough of Kingston,01/06/2022,90141760,857.14,0,HF TRUST LTD ,SOCIAL SERVICES DAY CARE,Adult Social Care & Health,Personal Budget - Third Party
Royal Borough of Kingston,01/06/2022,90141761,642.86,0,HF TRUST LTD ,SOCIAL SERVICES DAY CARE,Adult Social Care & Health,Personal Budget - Third Party
Royal Borough of Kingston,01/06/2022,90141762,642.86,0,HF TRUST LTD ,SOCIAL SERVICES DAY CARE,Adult Social Care & Health,Personal Budget - Third Party
Royal Borough of Kingston,01/06/2022,90141766,642.86,0,HF TRUST LTD ,SOCIAL SERVICES DAY CARE,Adult Social Care & Health,Personal Budget - Third Party
Royal Borough of Kingston,01/06/2022,90141767,857.14,0,HF TRUST LTD ,SOCIAL SERVICES DAY CARE,Adult Social Care & Health,Personal Budget - Third Party
Royal Borough of Kingston,01/06/2022,90141768,"1,071.43",0,HF TRUST LTD ,SOCIAL SERVICES DAY CARE,Adult Social Care & Health,Personal Budget - Third Party
Royal Borough of Kingston,01/06/2022,90141785,"1,071.43",0,HF TRUST LTD ,SOCIAL SERVICES DAY CARE,Adult Social Care & Health,Personal Budget - Third Party
Royal Borough of Kingston,01/06/2022,90141788,642.86,0,HF TRUST LTD ,SOCIAL SERVICES DAY CARE,Adult Social Care & Health,Personal Budget - Third Party
Royal Borough of Kingston,01/06/2022,90141789,"1,071.43",0,HF TRUST LTD ,SOCIAL SERVICES DAY CARE,Adult Social Care & Health,Personal Budget - Third Party
Royal Borough of Kingston,01/06/2022,90141791,"1,071.43",0,HF TRUST LTD ,SOCIAL SERVICES DAY CARE,Adult Social Care & Health,Personal Budget - Third Party
Royal Borough of Kingston,01/06/2022,90141794,642.86,0,HF TRUST LTD ,SOCIAL SERVICES DAY CARE,Adult Social Care & Health,Personal Budget - Third Party
Royal Borough of Kingston,01/06/2022,90132230,"2,929.68",0,HOOK PRE-SCHOOL ,ACADEMIC INSTNS - OTHER,Schools,2 Yr Old Place Funding
Royal Borough of Kingston,01/06/2022,90132299,"12,912.48",0,HOOK PRE-SCHOOL ,ACADEMIC INSTNS - OTHER,Schools,PVI Providers
Royal Borough of Kingston,01/06/2022,70025488,"1,147.00",0,HOUSING ACTION  MANAGEMENT,ACCOMMODATION BED & BREAKFAST,Place,Bed & Breakfast
Royal Borough of Kingston,01/06/2022,90132300,"8,221.82",0,HUMMINGBIRDS EDUCATION LTD,CHILDMINDERS START UP GRANT,Schools,PVI Providers
Royal Borough of Kingston,01/06/2022,90140773,"5,333.91",0,Huntercombe Neuro Limited,SOCIAL SERVICES RESIDENTIAL,Adult Social Care & Health,Independent Placements
Royal Borough of Kingston,01/06/2022,90140861,"3,339.64",0,IDDENSHALL HALL ,ACCOMMODATION - OTHER,Adult Social Care & Health,Independent Placements
Royal Borough of Kingston,01/06/2022,90141958,"12,923.44",0,INDEPENDENCE HOMES LIMITED,SOCIAL SERVICES RESIDENTIAL,Adult Social Care & Health,Personal Budget - Third Party
Royal Borough of Kingston,01/06/2022,90140787,"5,983.93",0,JESMUND CARE LIMITED,SOCIAL SERVICES - PERSONAL BUDGETS,Adult Social Care & Health,Independent Placements
Royal Borough of Kingston,01/06/2022,90132231,"1,126.80",0,REDACTED - PERSONAL DATA,CHILDMINDERS START UP GRANT,Schools,2 Yr Old Place Funding
Royal Borough of Kingston,01/06/2022,90141882,"8,616.99",0,JOYMAC CARE LTD,SOCIAL SERVICES RESIDENTIAL,Adult Social Care & Health,Personal Budget - Third Party
Royal Borough of Kingston,01/06/2022,90139266,"6,546.43",0,JUST MY PA,SOCIAL SERVICES - PERSONAL BUDGETS,Adult Social Care & Health,Personal Budget - Third Party
Royal Borough of Kingston,01/06/2022,90139270,973.92,0,JUST MY PA,SOCIAL SERVICES - PERSONAL BUDGETS,Adult Social Care & Health,Personal Budget - Third Party
Royal Borough of Kingston,01/06/2022,90139271,"5,869.61",0,JUST MY PA,SOCIAL SERVICES - PERSONAL BUDGETS,Adult Social Care & Health,Personal Budget - Third Party
Royal Borough of Kingston,01/06/2022,90139278,"8,537.02",0,JUST MY PA,SOCIAL SERVICES - PERSONAL BUDGETS,Adult Social Care & Health,Personal Budget - Third Party
Royal Borough of Kingston,01/06/2022,90139280,657.22,0,JUST MY PA,SOCIAL SERVICES - PERSONAL BUDGETS,Adult Social Care & Health,Personal Budget - Third Party
Royal Borough of Kingston,01/06/2022,90141683,"2,647.16",0,JUST MY PA,SOCIAL SERVICES - PERSONAL BUDGETS,Adult Social Care & Health,Personal Budget - Third Party
Royal Borough of Kingston,01/06/2022,90141905,"2,154.60",0,JUST MY PA,SOCIAL SERVICES - PERSONAL BUDGETS,Adult Social Care & Health,Personal Budget - Third Party
Royal Borough of Kingston,01/06/2022,90141989,655.04,0,JUST MY PA,SOCIAL SERVICES - PERSONAL BUDGETS,Adult Social Care & Health,Personal Budget - Third Party
Royal Borough of Kingston,01/06/2022,90132204,"1,185.84",0,REDACTED - PERSONAL DATA,CHILDMINDERS START UP GRANT,Schools,PVI Providers
Royal Borough of Kingston,01/06/2022,90132365,658.8,0,REDACTED - PERSONAL DATA,CHILDMINDERS START UP GRANT,Schools,PVI Providers
Royal Borough of Kingston,01/06/2022,90132304,"13,834.80",0,KATEYS HOUSE LTD,REFUNDS,Schools,PVI Providers
Royal Borough of Kingston,01/06/2022,90140699,"3,339.64",0,KATHRYNS HOUSE CARE HOME,SOCIAL SERVICES RESIDENTIAL,Adult Social Care & Health,Independent Placements
Royal Borough of Kingston,01/06/2022,90132183,"1,577.52",0,KIDS UNITED PLAYGROUP,SOCIAL SERVICES DAY CARE,Schools,2 Yr Old Place Funding
Royal Borough of Kingston,01/06/2022,90132197,"5,020.06",0,KIDS UNITED PLAYGROUP,SOCIAL SERVICES DAY CARE,Schools,PVI Providers
Royal Borough of Kingston,01/06/2022,90132232,"3,605.76",0,KING ATHELSTAN PRIMARY SCHOOL,SCHOOL FUNDS,Schools,2 Yr Old Place Funding
Royal Borough of Kingston,01/06/2022,90132307,"17,589.96",0,KING ATHELSTAN PRIMARY SCHOOL,SCHOOL FUNDS,Schools,Miscellaneous Expenses
Royal Borough of Kingston,01/06/2022,90132184,"5,183.28",0,KINGS MEADOW PRE-SCHOOL,ACADEMIC INSTNS - OTHER,Schools,2 Yr Old Place Funding
Royal Borough of Kingston,01/06/2022,90132198,"27,340.20",0,KINGS MEADOW PRE-SCHOOL,ACADEMIC INSTNS - OTHER,Schools,PVI Providers
Royal Borough of Kingston,01/06/2022,90132233,"9,915.84",0,KINGS OAK PRIMARY SCHOOL,CENTRAL & LOCAL GOVERNMENT,Schools,2 Yr Old Place Funding
Royal Borough of Kingston,01/06/2022,90132308,"31,622.40",0,KINGS OAK PRIMARY SCHOOL,CENTRAL & LOCAL GOVERNMENT,Schools,Miscellaneous Expenses
Royal Borough of Kingston,01/06/2022,90141662,871.25,0,KINGSTON VOLUNTARY ACTION CIO,CHARITIES & VOLUNTARY ORGNS,Adult Social Care & Health,Personal Budget - Third Party
Royal Borough of Kingston,01/06/2022,90142350,833.14,0,KINGSTON VOLUNTARY ACTION CIO,CHARITIES & VOLUNTARY ORGNS,Adult Social Care & Health,Personal Budget - Third Party
Royal Borough of Kingston,01/06/2022,90140693,"3,562.29",0,LANGLEY COURT REST HOME,SOCIAL SERVICES RESIDENTIAL,Adult Social Care & Health,Independent Placements
Royal Borough of Kingston,01/06/2022,90140697,"3,562.29",0,LANGLEY COURT REST HOME,SOCIAL SERVICES RESIDENTIAL,Adult Social Care & Health,Independent Placements
Royal Borough of Kingston,01/06/2022,90140719,"3,562.29",0,LANGLEY COURT REST HOME,SOCIAL SERVICES RESIDENTIAL,Adult Social Care & Health,Independent Placements
Royal Borough of Kingston,01/06/2022,90140726,"3,562.29",0,LANGLEY COURT REST HOME,SOCIAL SERVICES RESIDENTIAL,Adult Social Care & Health,Independent Placements
Royal Borough of Kingston,01/06/2022,90140727,"3,562.29",0,LANGLEY COURT REST HOME,SOCIAL SERVICES RESIDENTIAL,Adult Social Care & Health,Independent Placements
Royal Borough of Kingston,01/06/2022,90140732,"3,562.29",0,LANGLEY COURT REST HOME,SOCIAL SERVICES RESIDENTIAL,Adult Social Care & Health,Independent Placements
Royal Borough of Kingston,01/06/2022,90140737,"3,562.29",0,LANGLEY COURT REST HOME,SOCIAL SERVICES RESIDENTIAL,Adult Social Care & Health,Independent Placements
Royal Borough of Kingston,01/06/2022,90140739,"3,562.29",0,LANGLEY COURT REST HOME,SOCIAL SERVICES RESIDENTIAL,Adult Social Care & Health,Independent Placements
Royal Borough of Kingston,01/06/2022,90140756,"3,562.29",0,LANGLEY COURT REST HOME,SOCIAL SERVICES RESIDENTIAL,Adult Social Care & Health,Independent Placements
Royal Borough of Kingston,01/06/2022,90140757,"3,339.64",0,LANGLEY COURT REST HOME,SOCIAL SERVICES RESIDENTIAL,Adult Social Care & Health,Independent Placements
Royal Borough of Kingston,01/06/2022,90140758,"3,562.29",0,LANGLEY COURT REST HOME,SOCIAL SERVICES RESIDENTIAL,Adult Social Care & Health,Independent Placements
Royal Borough of Kingston,01/06/2022,90140769,"1,899.43",0,LANGLEY COURT REST HOME,SOCIAL SERVICES RESIDENTIAL,Adult Social Care & Health,Independent Placements
Royal Borough of Kingston,01/06/2022,90140770,"3,561.43",0,LANGLEY COURT REST HOME,SOCIAL SERVICES RESIDENTIAL,Adult Social Care & Health,Independent Placements
Royal Borough of Kingston,01/06/2022,90140771,"3,680.14",0,LANGLEY COURT REST HOME,SOCIAL SERVICES RESIDENTIAL,Adult Social Care & Health,Independent Placements
Royal Borough of Kingston,01/06/2022,90140772,"3,561.43",0,LANGLEY COURT REST HOME,SOCIAL SERVICES RESIDENTIAL,Adult Social Care & Health,Independent Placements
Royal Borough of Kingston,01/06/2022,90140869,"4,007.57",0,LANGLEY COURT REST HOME,SOCIAL SERVICES RESIDENTIAL,Adult Social Care & Health,Independent Placements
Royal Borough of Kingston,01/06/2022,90141036,642.86,0,LANGLEY COURT REST HOME,SOCIAL SERVICES RESIDENTIAL,Adult Social Care & Health,Other Private Contractors - Third Party
Royal Borough of Kingston,01/06/2022,90141037,"2,957.14",0,LANGLEY COURT REST HOME,SOCIAL SERVICES RESIDENTIAL,Adult Social Care & Health,Other Private Contractors - Third Party
Royal Borough of Kingston,01/06/2022,90140935,"3,349.16",0,LARCHE BOGNOR REGIS,SOCIAL SERVICES - OTHER,Adult Social Care & Health,Independent Placements
Royal Borough of Kingston,01/06/2022,90140999,621.56,0,LARCHE BOGNOR REGIS,SOCIAL SERVICES - OTHER,Adult Social Care & Health,Independent Placements
Royal Borough of Kingston,01/06/2022,90141713,865.71,0,LARCHE BOGNOR REGIS,SOCIAL SERVICES - OTHER,Adult Social Care & Health,Personal Budget - Third Party
Royal Borough of Kingston,01/06/2022,90140849,"5,209.84",0,Larchwood Care Homes (South) Ltd,ACCOMMODATION - OTHER,Adult Social Care & Health,Independent Placements
Royal Borough of Kingston,01/06/2022,90132311,"29,646.00",0,LATCHMERE SCHOOL,SCHOOL FUNDS,Schools,Miscellaneous Expenses
Royal Borough of Kingston,01/06/2022,90140954,"11,132.14",0,LD CARE LIMTED,SOCIAL SERVICES RESIDENTIAL,Adult Social Care & Health,Independent Placements
Royal Borough of Kingston,01/06/2022,90140956,"10,664.61",0,LD CARE LIMTED,SOCIAL SERVICES RESIDENTIAL,Adult Social Care & Health,Independent Placements
Royal Borough of Kingston,01/06/2022,90140776,"5,303.83",0,LEONARD CHESHIRE DISABILITY,SOCIAL SERVICES - OTHER,Adult Social Care & Health,Independent Placements
Royal Borough of Kingston,01/06/2022,90140978,"6,676.50",0,LEONARD CHESHIRE DISABILITY,SOCIAL SERVICES - OTHER,Adult Social Care & Health,Independent Placements
Royal Borough of Kingston,01/06/2022,90140934,"13,941.13",0,LIAISE LODDON LTD,OPERATIONAL EQUIPMENT/MATERIAL,Adult Social Care & Health,Independent Placements
Royal Borough of Kingston,01/06/2022,90140960,"6,125.06",0,LIVING AMBITIONS LTD,SOCIAL SERVICES - OTHER,Adult Social Care & Health,Independent Placements
Royal Borough of Kingston,01/06/2022,90140970,"5,739.73",0,LIVING AMBITIONS LTD,SOCIAL SERVICES - OTHER,Adult Social Care & Health,Independent Placements
Royal Borough of Kingston,01/06/2022,70025437,"27,000.00",0,LONDON BOROUGH OF SUTTON,CENTRAL & LOCAL GOVERNMENT,SLWP,Waste Management Strategy
Royal Borough of Kingston,01/06/2022,90140579,"4,991.66",0,LONDON RESIDENTIAL HEALTHCARE LTD,SOCIAL SERVICES RESIDENTIAL,Adult Social Care & Health,Independent Placements
Royal Borough of Kingston,01/06/2022,90140580,"4,893.69",0,LONDON RESIDENTIAL HEALTHCARE LTD,SOCIAL SERVICES RESIDENTIAL,Adult Social Care & Health,Independent Placements
Royal Borough of Kingston,01/06/2022,90140583,"3,094.50",0,LONDON RESIDENTIAL HEALTHCARE LTD,SOCIAL SERVICES RESIDENTIAL,Adult Social Care & Health,Independent Placements
Royal Borough of Kingston,01/06/2022,90140584,"4,500.00",0,LONDON RESIDENTIAL HEALTHCARE LTD,SOCIAL SERVICES RESIDENTIAL,Adult Social Care & Health,Independent Placements
Royal Borough of Kingston,01/06/2022,90140587,"4,178.57",0,LONDON RESIDENTIAL HEALTHCARE LTD,SOCIAL SERVICES RESIDENTIAL,Adult Social Care & Health,Independent Placements
Royal Borough of Kingston,01/06/2022,90140589,"2,916.64",0,LONDON RESIDENTIAL HEALTHCARE LTD,SOCIAL SERVICES RESIDENTIAL,Adult Social Care & Health,Independent Placements
Royal Borough of Kingston,01/06/2022,90140592,"2,086.63",0,LONDON RESIDENTIAL HEALTHCARE LTD,SOCIAL SERVICES RESIDENTIAL,Adult Social Care & Health,Independent Placements
Royal Borough of Kingston,01/06/2022,90140596,"3,188.61",0,LONDON RESIDENTIAL HEALTHCARE LTD,SOCIAL SERVICES RESIDENTIAL,Adult Social Care & Health,Independent Placements
Royal Borough of Kingston,01/06/2022,90140605,"3,508.84",0,LONDON RESIDENTIAL HEALTHCARE LTD,SOCIAL SERVICES RESIDENTIAL,Adult Social Care & Health,Independent Placements
Royal Borough of Kingston,01/06/2022,90140608,"3,188.61",0,LONDON RESIDENTIAL HEALTHCARE LTD,SOCIAL SERVICES RESIDENTIAL,Adult Social Care & Health,Independent Placements
Royal Borough of Kingston,01/06/2022,90140610,"3,617.49",0,LONDON RESIDENTIAL HEALTHCARE LTD,SOCIAL SERVICES RESIDENTIAL,Adult Social Care & Health,Independent Placements
Royal Borough of Kingston,01/06/2022,90140617,"3,339.64",0,LONDON RESIDENTIAL HEALTHCARE LTD,SOCIAL SERVICES RESIDENTIAL,Adult Social Care & Health,Independent Placements
Royal Borough of Kingston,01/06/2022,90140621,"3,323.61",0,LONDON RESIDENTIAL HEALTHCARE LTD,SOCIAL SERVICES RESIDENTIAL,Adult Social Care & Health,Independent Placements
Royal Borough of Kingston,01/06/2022,90140625,"2,916.64",0,LONDON RESIDENTIAL HEALTHCARE LTD,SOCIAL SERVICES RESIDENTIAL,Adult Social Care & Health,Independent Placements
Royal Borough of Kingston,01/06/2022,90140626,"3,642.86",0,LONDON RESIDENTIAL HEALTHCARE LTD,SOCIAL SERVICES RESIDENTIAL,Adult Social Care & Health,Independent Placements
Royal Borough of Kingston,01/06/2022,90140628,"3,339.64",0,LONDON RESIDENTIAL HEALTHCARE LTD,SOCIAL SERVICES RESIDENTIAL,Adult Social Care & Health,Independent Placements
Royal Borough of Kingston,01/06/2022,90140634,"3,562.29",0,LONDON RESIDENTIAL HEALTHCARE LTD,SOCIAL SERVICES RESIDENTIAL,Adult Social Care & Health,Independent Placements
Royal Borough of Kingston,01/06/2022,90140640,"3,784.93",0,LONDON RESIDENTIAL HEALTHCARE LTD,SOCIAL SERVICES RESIDENTIAL,Adult Social Care & Health,Independent Placements
Royal Borough of Kingston,01/06/2022,90140645,"2,086.63",0,LONDON RESIDENTIAL HEALTHCARE LTD,SOCIAL SERVICES RESIDENTIAL,Adult Social Care & Health,Independent Placements
Royal Borough of Kingston,01/06/2022,90140647,"4,355.49",0,LONDON RESIDENTIAL HEALTHCARE LTD,SOCIAL SERVICES RESIDENTIAL,Adult Social Care & Health,Independent Placements
Royal Borough of Kingston,01/06/2022,90140654,"3,323.61",0,LONDON RESIDENTIAL HEALTHCARE LTD,SOCIAL SERVICES RESIDENTIAL,Adult Social Care & Health,Independent Placements
Royal Borough of Kingston,01/06/2022,90140660,"4,007.57",0,LONDON RESIDENTIAL HEALTHCARE LTD,SOCIAL SERVICES RESIDENTIAL,Adult Social Care & Health,Independent Placements
Royal Borough of Kingston,01/06/2022,90140671,"2,916.64",0,LONDON RESIDENTIAL HEALTHCARE LTD,SOCIAL SERVICES RESIDENTIAL,Adult Social Care & Health,Independent Placements
Royal Borough of Kingston,01/06/2022,90140682,"1,400.00",0,LONDON RESIDENTIAL HEALTHCARE LTD,SOCIAL SERVICES RESIDENTIAL,Adult Social Care & Health,Independent Placements
Royal Borough of Kingston,01/06/2022,90140683,"3,100.00",0,LONDON RESIDENTIAL HEALTHCARE LTD,SOCIAL SERVICES RESIDENTIAL,Adult Social Care & Health,Independent Placements
Royal Borough of Kingston,01/06/2022,90140783,"5,632.89",0,LONDON RESIDENTIAL HEALTHCARE LTD,SOCIAL SERVICES RESIDENTIAL,Adult Social Care & Health,Independent Placements
Royal Borough of Kingston,01/06/2022,90140786,"3,910.29",0,LONDON RESIDENTIAL HEALTHCARE LTD,SOCIAL SERVICES RESIDENTIAL,Adult Social Care & Health,Independent Placements
Royal Borough of Kingston,01/06/2022,90140796,"2,653.50",0,LONDON RESIDENTIAL HEALTHCARE LTD,SOCIAL SERVICES RESIDENTIAL,Adult Social Care & Health,Independent Placements
Royal Borough of Kingston,01/06/2022,90140797,"3,339.64",0,LONDON RESIDENTIAL HEALTHCARE LTD,SOCIAL SERVICES RESIDENTIAL,Adult Social Care & Health,Independent Placements
Royal Borough of Kingston,01/06/2022,90140798,"3,642.86",0,LONDON RESIDENTIAL HEALTHCARE LTD,SOCIAL SERVICES RESIDENTIAL,Adult Social Care & Health,Independent Placements
Royal Borough of Kingston,01/06/2022,90140802,"4,428.57",0,LONDON RESIDENTIAL HEALTHCARE LTD,SOCIAL SERVICES RESIDENTIAL,Adult Social Care & Health,Independent Placements
Royal Borough of Kingston,01/06/2022,90140804,"4,428.57",0,LONDON RESIDENTIAL HEALTHCARE LTD,SOCIAL SERVICES RESIDENTIAL,Adult Social Care & Health,Independent Placements
Royal Borough of Kingston,01/06/2022,90140806,"4,285.71",0,LONDON RESIDENTIAL HEALTHCARE LTD,SOCIAL SERVICES RESIDENTIAL,Adult Social Care & Health,Independent Placements
Royal Borough of Kingston,01/06/2022,90140808,"4,428.57",0,LONDON RESIDENTIAL HEALTHCARE LTD,SOCIAL SERVICES RESIDENTIAL,Adult Social Care & Health,Independent Placements
Royal Borough of Kingston,01/06/2022,90140810,"4,285.71",0,LONDON RESIDENTIAL HEALTHCARE LTD,SOCIAL SERVICES RESIDENTIAL,Adult Social Care & Health,Independent Placements
Royal Borough of Kingston,01/06/2022,90140812,"4,428.57",0,LONDON RESIDENTIAL HEALTHCARE LTD,SOCIAL SERVICES RESIDENTIAL,Adult Social Care & Health,Independent Placements
Royal Borough of Kingston,01/06/2022,90140814,"4,428.57",0,LONDON RESIDENTIAL HEALTHCARE LTD,SOCIAL SERVICES RESIDENTIAL,Adult Social Care & Health,Independent Placements
Royal Borough of Kingston,01/06/2022,90140816,"4,000.00",0,LONDON RESIDENTIAL HEALTHCARE LTD,SOCIAL SERVICES RESIDENTIAL,Adult Social Care & Health,Independent Placements
Royal Borough of Kingston,01/06/2022,90140818,"4,428.57",0,LONDON RESIDENTIAL HEALTHCARE LTD,SOCIAL SERVICES RESIDENTIAL,Adult Social Care & Health,Independent Placements
Royal Borough of Kingston,01/06/2022,90140820,"4,285.71",0,LONDON RESIDENTIAL HEALTHCARE LTD,SOCIAL SERVICES RESIDENTIAL,Adult Social Care & Health,Independent Placements
Royal Borough of Kingston,01/06/2022,90140822,"4,428.57",0,LONDON RESIDENTIAL HEALTHCARE LTD,SOCIAL SERVICES RESIDENTIAL,Adult Social Care & Health,Independent Placements
Royal Borough of Kingston,01/06/2022,90140824,"4,285.71",0,LONDON RESIDENTIAL HEALTHCARE LTD,SOCIAL SERVICES RESIDENTIAL,Adult Social Care & Health,Independent Placements
Royal Borough of Kingston,01/06/2022,70025483,"1,500.00",0,LOVELACE PRIMARY SCHOOL,ACADEMIC INSTNS - OTHER,Corporate & Communities,Education and Skills Funding Agency
Royal Borough of Kingston,01/06/2022,90132314,"44,930.16",0,LOVELACE PRIMARY SCHOOL,ACADEMIC INSTNS - OTHER,Schools,Miscellaneous Expenses
Royal Borough of Kingston,01/06/2022,90138186,"4,249.60",0,LYNTON HALL NURSING HOME,SOCIAL SERVICES RESIDENTIAL,Adult Social Care & Health,Independent Placements
Royal Borough of Kingston,01/06/2022,90138187,"4,249.60",0,LYNTON HALL NURSING HOME,SOCIAL SERVICES RESIDENTIAL,Adult Social Care & Health,Independent Placements
Royal Borough of Kingston,01/06/2022,90138188,"4,249.60",0,LYNTON HALL NURSING HOME,SOCIAL SERVICES RESIDENTIAL,Adult Social Care & Health,Independent Placements
Royal Borough of Kingston,01/06/2022,90138190,"4,551.43",0,LYNTON HALL NURSING HOME,SOCIAL SERVICES RESIDENTIAL,Adult Social Care & Health,Independent Placements
Royal Borough of Kingston,01/06/2022,90138191,"4,703.14",0,LYNTON HALL NURSING HOME,SOCIAL SERVICES RESIDENTIAL,Adult Social Care & Health,Independent Placements
Royal Borough of Kingston,01/06/2022,90140568,971.43,0,LYNTON HALL NURSING HOME,SOCIAL SERVICES RESIDENTIAL,Adult Social Care & Health,Independent Placements
Royal Borough of Kingston,01/06/2022,90140581,"3,339.64",0,LYNTON HALL NURSING HOME,SOCIAL SERVICES RESIDENTIAL,Adult Social Care & Health,Independent Placements
Royal Borough of Kingston,01/06/2022,90140585,"4,007.57",0,LYNTON HALL NURSING HOME,SOCIAL SERVICES RESIDENTIAL,Adult Social Care & Health,Independent Placements
Royal Borough of Kingston,01/06/2022,90140586,"4,551.43",0,LYNTON HALL NURSING HOME,SOCIAL SERVICES RESIDENTIAL,Adult Social Care & Health,Independent Placements
Royal Borough of Kingston,01/06/2022,90140591,"2,886.60",0,LYNTON HALL NURSING HOME,SOCIAL SERVICES RESIDENTIAL,Adult Social Care & Health,Independent Placements
Royal Borough of Kingston,01/06/2022,90140598,"2,314.29",0,LYNTON HALL NURSING HOME,SOCIAL SERVICES RESIDENTIAL,Adult Social Care & Health,Independent Placements
Royal Borough of Kingston,01/06/2022,90140599,"3,985.71",0,LYNTON HALL NURSING HOME,SOCIAL SERVICES RESIDENTIAL,Adult Social Care & Health,Independent Placements
Royal Borough of Kingston,01/06/2022,90140600,"3,857.14",0,LYNTON HALL NURSING HOME,SOCIAL SERVICES RESIDENTIAL,Adult Social Care & Health,Independent Placements
Royal Borough of Kingston,01/06/2022,90140604,"3,339.64",0,LYNTON HALL NURSING HOME,SOCIAL SERVICES RESIDENTIAL,Adult Social Care & Health,Independent Placements
Royal Borough of Kingston,01/06/2022,90140615,"1,335.71",0,LYNTON HALL NURSING HOME,SOCIAL SERVICES RESIDENTIAL,Adult Social Care & Health,Independent Placements
Royal Borough of Kingston,01/06/2022,90140624,"2,825.06",0,LYNTON HALL NURSING HOME,SOCIAL SERVICES RESIDENTIAL,Adult Social Care & Health,Independent Placements
Royal Borough of Kingston,01/06/2022,90140630,"2,916.64",0,LYNTON HALL NURSING HOME,SOCIAL SERVICES RESIDENTIAL,Adult Social Care & Health,Independent Placements
Royal Borough of Kingston,01/06/2022,90140633,"2,635.37",0,LYNTON HALL NURSING HOME,SOCIAL SERVICES RESIDENTIAL,Adult Social Care & Health,Independent Placements
Royal Borough of Kingston,01/06/2022,90140635,"3,339.64",0,LYNTON HALL NURSING HOME,SOCIAL SERVICES RESIDENTIAL,Adult Social Care & Health,Independent Placements
Royal Borough of Kingston,01/06/2022,90140791,"3,117.00",0,LYNTON HALL NURSING HOME,SOCIAL SERVICES RESIDENTIAL,Adult Social Care & Health,Independent Placements
Royal Borough of Kingston,01/06/2022,90140794,"2,635.37",0,LYNTON HALL NURSING HOME,SOCIAL SERVICES RESIDENTIAL,Adult Social Care & Health,Independent Placements
Royal Borough of Kingston,01/06/2022,90140903,"3,201.94",0,LYNTON HALL NURSING HOME,SOCIAL SERVICES RESIDENTIAL,Adult Social Care & Health,Independent Placements
Royal Borough of Kingston,01/06/2022,90140761,"3,179.36",0,Madeprice Ltd,SOCIAL SERVICES RESIDENTIAL,Adult Social Care & Health,Independent Placements
Royal Borough of Kingston,01/06/2022,90142291,"9,912.26",0,MAGIC LIFE LIMITED,ACCOMMODATION - OTHER,Adult Social Care & Health,Personal Budget - Third Party
Royal Borough of Kingston,01/06/2022,90142335,"29,736.73",0,MAGIC LIFE LIMITED,ACCOMMODATION - OTHER,Adult Social Care & Health,Personal Budget - Third Party
Royal Borough of Kingston,01/06/2022,90142343,"7,434.17",0,MAGIC LIFE LIMITED,ACCOMMODATION - OTHER,Adult Social Care & Health,Personal Budget - Third Party
Royal Borough of Kingston,01/06/2022,90140681,"3,784.93",0,MAGICARE LTD,SOCIAL SERVICES - OTHER,Adult Social Care & Health,Independent Placements
Royal Borough of Kingston,01/06/2022,90132315,"21,147.48",0,MALDEN MANOR PRIMARY & NURSERY SCHOOL,SCHOOL FUNDS,Schools,Miscellaneous Expenses
Royal Borough of Kingston,01/06/2022,90132316,"10,277.28",0,MALDEN PAROCHIAL COFE PRIMARY,ACADEMIC INSTNS - OTHER,Schools,Miscellaneous Expenses
Royal Borough of Kingston,01/06/2022,90132317,"16,799.40",0,MAPLE INFANTS SCHOOL ,SCHOOL FUNDS,Schools,Miscellaneous Expenses
Royal Borough of Kingston,01/06/2022,70025412,"199,902.77",0,MATRIX SCM LTD,LEGAL & PROFESSIONAL SERVICES,Corporate & Communities,Agency Staff - Other
Royal Borough of Kingston,01/06/2022,90140844,"-3,162.91",0,MEDIHANDS CLIFTON,ACCOMMODATION - OTHER,Adult Social Care & Health,Independent Placements
Royal Borough of Kingston,01/06/2022,90141016,"2,894.36",0,MEDIHANDS CLIFTON,ACCOMMODATION - OTHER,Adult Social Care & Health,Independent Placements
Royal Borough of Kingston,01/06/2022,90141017,"2,417.10",0,MEDIHANDS CLIFTON,ACCOMMODATION - OTHER,Adult Social Care & Health,Independent Placements
Royal Borough of Kingston,01/06/2022,90140828,"2,417.10",0,MEDIHANDS HOUSE,SOCIAL SERVICES - OTHER,Adult Social Care & Health,Independent Placements
Royal Borough of Kingston,01/06/2022,90140832,"2,417.10",0,MEDIHANDS HOUSE,SOCIAL SERVICES - OTHER,Adult Social Care & Health,Independent Placements
Royal Borough of Kingston,01/06/2022,90141007,"2,671.71",0,MEDIHANDS HOUSE,SOCIAL SERVICES - OTHER,Adult Social Care & Health,Independent Placements
Royal Borough of Kingston,01/06/2022,90141008,"2,417.10",0,MEDIHANDS HOUSE,SOCIAL SERVICES - OTHER,Adult Social Care & Health,Independent Placements
Royal Borough of Kingston,01/06/2022,90141009,"2,417.10",0,MEDIHANDS HOUSE,SOCIAL SERVICES - OTHER,Adult Social Care & Health,Independent Placements
Royal Borough of Kingston,01/06/2022,90141011,"2,417.10",0,MEDIHANDS HOUSE,SOCIAL SERVICES - OTHER,Adult Social Care & Health,Independent Placements
Royal Borough of Kingston,01/06/2022,90141012,"2,417.10",0,MEDIHANDS HOUSE,SOCIAL SERVICES - OTHER,Adult Social Care & Health,Independent Placements
Royal Borough of Kingston,01/06/2022,90141015,"2,417.10",0,MEDIHANDS HOUSE,SOCIAL SERVICES - OTHER,Adult Social Care & Health,Independent Placements
Royal Borough of Kingston,01/06/2022,90141018,"2,417.10",0,MEDIHANDS HOUSE,SOCIAL SERVICES - OTHER,Adult Social Care & Health,Independent Placements
Royal Borough of Kingston,01/06/2022,90141026,"2,862.39",0,MEDIHANDS HOUSE,SOCIAL SERVICES - OTHER,Adult Social Care & Health,Independent Placements
Royal Borough of Kingston,01/06/2022,90140914,"2,417.10",0,MEDIHANDS LODGE,SOCIAL SERVICES RESIDENTIAL,Adult Social Care & Health,Independent Placements
Royal Borough of Kingston,01/06/2022,90141014,"3,039.17",0,MEDIHANDS LODGE,SOCIAL SERVICES RESIDENTIAL,Adult Social Care & Health,Independent Placements
Royal Borough of Kingston,01/06/2022,90141019,"2,783.06",0,MEDIHANDS LODGE,SOCIAL SERVICES RESIDENTIAL,Adult Social Care & Health,Independent Placements
Royal Borough of Kingston,01/06/2022,90132362,790.56,0,REDACTED - PERSONAL DATA,CHILDMINDERS START UP GRANT,Schools,PVI Providers
Royal Borough of Kingston,01/06/2022,90141665,"2,819.83",0,MENCAP,CHARITIES & VOLUNTARY ORGNS,Adult Social Care & Health,Personal Budget - Third Party
Royal Borough of Kingston,01/06/2022,90141815,"6,802.46",0,MENCAP,CHARITIES & VOLUNTARY ORGNS,Adult Social Care & Health,Personal Budget - Third Party
Royal Borough of Kingston,01/06/2022,90140834,"3,450.99",0,MERLING CARE,SOCIAL SERVICES RESIDENTIAL,Adult Social Care & Health,Independent Placements
Royal Borough of Kingston,01/06/2022,90132318,"4,545.72",0,REDACTED - PERSONAL DATA,CHILDMINDERS START UP GRANT,Schools,PVI Providers
Royal Borough of Kingston,01/06/2022,90132225,"6,084.72",0,FEATHERNEST NURSERY,SOCIAL SERVICES - OTHER,Schools,2 Yr Old Place Funding
Royal Borough of Kingston,01/06/2022,90132249,901.44,0,FEATHERNEST NURSERY,SOCIAL SERVICES - OTHER,Schools,2 Yr Old Place Funding
Royal Borough of Kingston,01/06/2022,90132289,"5,612.98",0,FEATHERNEST NURSERY,SOCIAL SERVICES - OTHER,Schools,PVI Providers
Royal Borough of Kingston,01/06/2022,90132358,"17,181.50",0,FEATHERNEST NURSERY,SOCIAL SERVICES - OTHER,Schools,PVI Providers
Royal Borough of Kingston,01/06/2022,90132182,"1,126.80",0,REDACTED - PERSONAL DATA,CHILDMINDERS START UP GRANT,Schools,2 Yr Old Place Funding
Royal Borough of Kingston,01/06/2022,90132195,"1,185.84",0,REDACTED - PERSONAL DATA,CHILDMINDERS START UP GRANT,Schools,PVI Providers
Royal Borough of Kingston,01/06/2022,90132201,790.56,0,REDACTED - PERSONAL DATA,CHILDMINDERS START UP GRANT,Schools,PVI Providers
Royal Borough of Kingston,01/06/2022,90140573,"3,910.16",0,MMCG (2) LIMITED,SOCIAL SERVICES RESIDENTIAL,Adult Social Care & Health,Independent Placements
Royal Borough of Kingston,01/06/2022,90132333,"2,964.60",0,REDACTED - PERSONAL DATA,CHILDMINDERS START UP GRANT,Schools,PVI Providers
Royal Borough of Kingston,01/06/2022,90132237,"1,126.80",0,MONKEY PUZZLE DAY NURSERY SURBITON ,CHILDMINDERS START UP GRANT,Schools,2 Yr Old Place Funding
Royal Borough of Kingston,01/06/2022,90132322,"25,989.66",0,MONKEY PUZZLE DAY NURSERY SURBITON ,CHILDMINDERS START UP GRANT,Schools,PVI Providers
Royal Borough of Kingston,01/06/2022,90140619,756.99,0,MOORLANDS,SOCIAL SERVICES RESIDENTIAL,Adult Social Care & Health,Independent Placements
Royal Borough of Kingston,01/06/2022,90140829,"2,417.10",0,MEDIHANDS VILLA,SOCIAL SERVICES - OTHER,Adult Social Care & Health,Independent Placements
Royal Borough of Kingston,01/06/2022,90140835,"2,417.10",0,MEDIHANDS VILLA,SOCIAL SERVICES - OTHER,Adult Social Care & Health,Independent Placements
Royal Borough of Kingston,01/06/2022,90141013,"3,214.29",0,MEDIHANDS VILLA,SOCIAL SERVICES - OTHER,Adult Social Care & Health,Independent Placements
Royal Borough of Kingston,01/06/2022,90141022,798.86,0,MEDIHANDS VILLA,SOCIAL SERVICES - OTHER,Adult Social Care & Health,Independent Placements
Royal Borough of Kingston,01/06/2022,90141023,"3,095.57",0,MEDIHANDS VILLA,SOCIAL SERVICES - OTHER,Adult Social Care & Health,Independent Placements
Royal Borough of Kingston,01/06/2022,90141024,"3,112.54",0,MEDIHANDS VILLA,SOCIAL SERVICES - OTHER,Adult Social Care & Health,Independent Placements
Royal Borough of Kingston,01/06/2022,90141025,"3,112.54",0,MEDIHANDS VILLA,SOCIAL SERVICES - OTHER,Adult Social Care & Health,Independent Placements
Royal Borough of Kingston,01/06/2022,90140692,"3,428.70",0,REDACTED - PERSONAL DATA,SOCIAL SERVICES RESIDENTIAL,Adult Social Care & Health,Independent Placements
Royal Borough of Kingston,01/06/2022,90140700,"3,428.70",0,REDACTED - PERSONAL DATA,SOCIAL SERVICES RESIDENTIAL,Adult Social Care & Health,Independent Placements
Royal Borough of Kingston,01/06/2022,90140701,"-3,300.00",0,REDACTED - PERSONAL DATA,SOCIAL SERVICES RESIDENTIAL,Adult Social Care & Health,Independent Placements
Royal Borough of Kingston,01/06/2022,90140702,"3,542.99",0,REDACTED - PERSONAL DATA,SOCIAL SERVICES RESIDENTIAL,Adult Social Care & Health,Independent Placements
Royal Borough of Kingston,01/06/2022,90140703,"-3,410.00",0,REDACTED - PERSONAL DATA,SOCIAL SERVICES RESIDENTIAL,Adult Social Care & Health,Independent Placements
Royal Borough of Kingston,01/06/2022,90140704,"3,428.70",0,REDACTED - PERSONAL DATA,SOCIAL SERVICES RESIDENTIAL,Adult Social Care & Health,Independent Placements
Royal Borough of Kingston,01/06/2022,90140706,"3,740.40",0,REDACTED - PERSONAL DATA,SOCIAL SERVICES RESIDENTIAL,Adult Social Care & Health,Independent Placements
Royal Borough of Kingston,01/06/2022,90140712,"1,870.00",0,REDACTED - PERSONAL DATA,SOCIAL SERVICES RESIDENTIAL,Adult Social Care & Health,Independent Placements
Royal Borough of Kingston,01/06/2022,90140713,"3,428.70",0,REDACTED - PERSONAL DATA,SOCIAL SERVICES RESIDENTIAL,Adult Social Care & Health,Independent Placements
Royal Borough of Kingston,01/06/2022,90140714,"-3,300.00",0,REDACTED - PERSONAL DATA,SOCIAL SERVICES RESIDENTIAL,Adult Social Care & Health,Independent Placements
Royal Borough of Kingston,01/06/2022,90140715,"3,300.00",0,REDACTED - PERSONAL DATA,SOCIAL SERVICES RESIDENTIAL,Adult Social Care & Health,Independent Placements
Royal Borough of Kingston,01/06/2022,90140716,"3,542.99",0,REDACTED - PERSONAL DATA,SOCIAL SERVICES RESIDENTIAL,Adult Social Care & Health,Independent Placements
Royal Borough of Kingston,01/06/2022,90140717,"-3,410.00",0,REDACTED - PERSONAL DATA,SOCIAL SERVICES RESIDENTIAL,Adult Social Care & Health,Independent Placements
Royal Borough of Kingston,01/06/2022,90140718,"3,428.70",0,REDACTED - PERSONAL DATA,SOCIAL SERVICES RESIDENTIAL,Adult Social Care & Health,Independent Placements
Royal Borough of Kingston,01/06/2022,90140741,"3,112.54",0,REDACTED - PERSONAL DATA,SOCIAL SERVICES RESIDENTIAL,Adult Social Care & Health,Independent Placements
Royal Borough of Kingston,01/06/2022,90140759,"3,112.54",0,REDACTED - PERSONAL DATA,SOCIAL SERVICES RESIDENTIAL,Adult Social Care & Health,Independent Placements
Royal Borough of Kingston,01/06/2022,90140763,"3,428.70",0,REDACTED - PERSONAL DATA,SOCIAL SERVICES RESIDENTIAL,Adult Social Care & Health,Independent Placements
Royal Borough of Kingston,01/06/2022,90140765,571.45,0,REDACTED - PERSONAL DATA,SOCIAL SERVICES RESIDENTIAL,Adult Social Care & Health,Independent Placements
Royal Borough of Kingston,01/06/2022,90140766,-550,0,REDACTED - PERSONAL DATA,SOCIAL SERVICES RESIDENTIAL,Adult Social Care & Health,Independent Placements
Royal Borough of Kingston,01/06/2022,90140767,"3,542.99",0,REDACTED - PERSONAL DATA,SOCIAL SERVICES RESIDENTIAL,Adult Social Care & Health,Independent Placements
Royal Borough of Kingston,01/06/2022,90140768,"-3,410.00",0,REDACTED - PERSONAL DATA,SOCIAL SERVICES RESIDENTIAL,Adult Social Care & Health,Independent Placements
Royal Borough of Kingston,01/06/2022,90140851,"3,171.56",0,REDACTED - PERSONAL DATA,SOCIAL SERVICES RESIDENTIAL,Adult Social Care & Health,Independent Placements
Royal Borough of Kingston,01/06/2022,90140852,"3,428.70",0,REDACTED - PERSONAL DATA,SOCIAL SERVICES RESIDENTIAL,Adult Social Care & Health,Independent Placements
Royal Borough of Kingston,01/06/2022,90140854,"3,112.54",0,REDACTED - PERSONAL DATA,SOCIAL SERVICES RESIDENTIAL,Adult Social Care & Health,Independent Placements
Royal Borough of Kingston,01/06/2022,90140855,"3,428.70",0,REDACTED - PERSONAL DATA,SOCIAL SERVICES RESIDENTIAL,Adult Social Care & Health,Independent Placements
Royal Borough of Kingston,01/06/2022,90140859,"3,428.70",0,REDACTED - PERSONAL DATA,SOCIAL SERVICES RESIDENTIAL,Adult Social Care & Health,Independent Placements
Royal Borough of Kingston,01/06/2022,90140880,"3,740.40",0,REDACTED - PERSONAL DATA,SOCIAL SERVICES RESIDENTIAL,Adult Social Care & Health,Independent Placements
Royal Borough of Kingston,01/06/2022,90140881,"-2,995.71",0,REDACTED - PERSONAL DATA,SOCIAL SERVICES RESIDENTIAL,Adult Social Care & Health,Independent Placements
Royal Borough of Kingston,01/06/2022,90140882,"2,995.71",0,REDACTED - PERSONAL DATA,SOCIAL SERVICES RESIDENTIAL,Adult Social Care & Health,Independent Placements
Royal Borough of Kingston,01/06/2022,90140883,"2,244.24",0,REDACTED - PERSONAL DATA,SOCIAL SERVICES RESIDENTIAL,Adult Social Care & Health,Independent Placements
Royal Borough of Kingston,01/06/2022,90140884,"1,620.84",0,REDACTED - PERSONAL DATA,SOCIAL SERVICES RESIDENTIAL,Adult Social Care & Health,Independent Placements
Royal Borough of Kingston,01/06/2022,90140885,"-1,697.57",0,REDACTED - PERSONAL DATA,SOCIAL SERVICES RESIDENTIAL,Adult Social Care & Health,Independent Placements
Royal Borough of Kingston,01/06/2022,90140886,"3,740.40",0,REDACTED - PERSONAL DATA,SOCIAL SERVICES RESIDENTIAL,Adult Social Care & Health,Independent Placements
Royal Borough of Kingston,01/06/2022,90141028,"3,300.00",0,REDACTED - PERSONAL DATA,SOCIAL SERVICES RESIDENTIAL,Adult Social Care & Health,Independent Placements
Royal Borough of Kingston,01/06/2022,90141029,"3,410.00",0,REDACTED - PERSONAL DATA,SOCIAL SERVICES RESIDENTIAL,Adult Social Care & Health,Independent Placements
Royal Borough of Kingston,01/06/2022,90141030,"3,300.00",0,REDACTED - PERSONAL DATA,SOCIAL SERVICES RESIDENTIAL,Adult Social Care & Health,Independent Placements
Royal Borough of Kingston,01/06/2022,90137070,"1,500.00",0,ALBERT RESIDENTIAL HOME,SOCIAL SERVICES RESIDENTIAL,Adult Social Care & Health,Other Private Contractors - Third Party
Royal Borough of Kingston,01/06/2022,90137071,"3,214.29",0,ALBERT RESIDENTIAL HOME,SOCIAL SERVICES RESIDENTIAL,Adult Social Care & Health,Other Private Contractors - Third Party
Royal Borough of Kingston,01/06/2022,90137072,857.14,0,ALBERT RESIDENTIAL HOME,SOCIAL SERVICES RESIDENTIAL,Adult Social Care & Health,Other Private Contractors - Third Party
Royal Borough of Kingston,01/06/2022,90141001,"1,969.37",0,ALBERT RESIDENTIAL HOME,SOCIAL SERVICES RESIDENTIAL,Adult Social Care & Health,Independent Placements
Royal Borough of Kingston,01/06/2022,90141044,"3,214.29",0,ALBERT RESIDENTIAL HOME,SOCIAL SERVICES RESIDENTIAL,Adult Social Care & Health,Other Private Contractors - Third Party
Royal Borough of Kingston,01/06/2022,90139261,626.31,0,REDACTED - PERSONAL DATA,SOCIAL SERVICES - PERSONAL BUDGETS,Adult Social Care & Health,Personal Budget - Third Party
Royal Borough of Kingston,01/06/2022,90139264,"1,897.67",0,REDACTED - PERSONAL DATA,SOCIAL SERVICES - PERSONAL BUDGETS,Adult Social Care & Health,Personal Budget - Third Party
Royal Borough of Kingston,01/06/2022,90139265,618.09,0,REDACTED - PERSONAL DATA,SOCIAL SERVICES - PERSONAL BUDGETS,Adult Social Care & Health,Personal Budget - Third Party
Royal Borough of Kingston,01/06/2022,90139273,618.09,0,REDACTED - PERSONAL DATA,SOCIAL SERVICES - PERSONAL BUDGETS,Adult Social Care & Health,Personal Budget - Third Party
Royal Borough of Kingston,01/06/2022,90139279,"1,045.50",0,REDACTED - PERSONAL DATA,SOCIAL SERVICES - PERSONAL BUDGETS,Adult Social Care & Health,Personal Budget - Third Party
Royal Borough of Kingston,01/06/2022,90141799,"3,356.10",0,REDACTED - PERSONAL DATA,SOCIAL SERVICES - PERSONAL BUDGETS,Adult Social Care & Health,Personal Budget - Third Party
Royal Borough of Kingston,01/06/2022,90141808,"3,964.46",0,REDACTED - PERSONAL DATA,SOCIAL SERVICES - PERSONAL BUDGETS,Adult Social Care & Health,Personal Budget - Third Party
Royal Borough of Kingston,01/06/2022,90141926,"2,742.39",0,REDACTED - PERSONAL DATA,SOCIAL SERVICES - PERSONAL BUDGETS,Adult Social Care & Health,Personal Budget - Third Party
Royal Borough of Kingston,01/06/2022,90141932,"2,783.10",0,REDACTED - PERSONAL DATA,SOCIAL SERVICES - PERSONAL BUDGETS,Adult Social Care & Health,Personal Budget - Third Party
Royal Borough of Kingston,01/06/2022,90141933,"1,347.94",0,REDACTED - PERSONAL DATA,SOCIAL SERVICES - PERSONAL BUDGETS,Adult Social Care & Health,Personal Budget - Third Party
Royal Borough of Kingston,01/06/2022,90141934,"2,001.51",0,REDACTED - PERSONAL DATA,SOCIAL SERVICES - PERSONAL BUDGETS,Adult Social Care & Health,Personal Budget - Third Party
Royal Borough of Kingston,01/06/2022,90141940,714.81,0,REDACTED - PERSONAL DATA,SOCIAL SERVICES - PERSONAL BUDGETS,Adult Social Care & Health,Personal Budget - Third Party
Royal Borough of Kingston,01/06/2022,90141944,"4,622.36",0,REDACTED - PERSONAL DATA,SOCIAL SERVICES - PERSONAL BUDGETS,Adult Social Care & Health,Personal Budget - Third Party
Royal Borough of Kingston,01/06/2022,90132278,790.56,0,REDACTED - PERSONAL DATA,CHILDMINDERS START UP GRANT,Schools,PVI Providers
Royal Borough of Kingston,01/06/2022,90132325,"22,834.01",0,REDACTED - PERSONAL DATA,ACADEMIC INSTNS - OTHER,Schools,PVI Providers
Royal Borough of Kingston,01/06/2022,90132356,790.56,0,REDACTED - PERSONAL DATA,CHILDMINDERS START UP GRANT,Schools,PVI Providers
Royal Borough of Kingston,01/06/2022,90132191,"5,662.80",0,BRIGHTSPARKS DAY NURSERY,BOOKS PUBLICATIONS STATIONERY,Schools,PVI Providers
Royal Borough of Kingston,01/06/2022,90140686,"3,270.30",0,REDACTED - PERSONAL DATA,SOCIAL SERVICES RESIDENTIAL,Adult Social Care & Health,Independent Placements
Royal Borough of Kingston,01/06/2022,90140775,"3,293.19",0,REDACTED - PERSONAL DATA,SOCIAL SERVICES RESIDENTIAL,Adult Social Care & Health,Independent Placements
Royal Borough of Kingston,01/06/2022,90140879,"2,805.30",0,REDACTED - PERSONAL DATA,SOCIAL SERVICES RESIDENTIAL,Adult Social Care & Health,Independent Placements
Royal Borough of Kingston,01/06/2022,90132340,790.56,0,REDACTED - PERSONAL DATA,CHILDMINDERS START UP GRANT,Schools,PVI Providers
Royal Borough of Kingston,01/06/2022,90132196,"1,383.48",0,REDACTED - PERSONAL DATA,CHILDMINDERS START UP GRANT,Schools,PVI Providers
Royal Borough of Kingston,01/06/2022,90132189,988.2,0,REDACTED - PERSONAL DATA,CHILDMINDERS START UP GRANT,Schools,PVI Providers
Royal Borough of Kingston,01/06/2022,90132294,"1,976.40",0,REDACTED - PERSONAL DATA,CHILDMINDERS START UP GRANT,Schools,PVI Providers
Royal Borough of Kingston,01/06/2022,90132205,"2,964.60",0,REDACTED - PERSONAL DATA,CHILDMINDERS START UP GRANT,Schools,PVI Providers
Royal Borough of Kingston,01/06/2022,90132301,"2,239.92",0,REDACTED - PERSONAL DATA,CHILDMINDERS START UP GRANT,Schools,PVI Providers
Royal Borough of Kingston,01/06/2022,90132303,"1,185.84",0,REDACTED - PERSONAL DATA,CHILDMINDERS START UP GRANT,Schools,PVI Providers
Royal Borough of Kingston,01/06/2022,90132277,922.32,0,REDACTED - PERSONAL DATA,CHILDMINDERS START UP GRANT,Schools,PVI Providers
Royal Borough of Kingston,01/06/2022,90132188,"41,491.22",0,ASPIRE DAY NURSERY,CHILDMINDERS START UP GRANT,Schools,PVI Providers
Royal Borough of Kingston,01/06/2022,70025375,"1,238.79",0,REDACTED - PERSONAL DATA,PLS LANDLORDS,Place,PSL Payments To Landlords
Royal Borough of Kingston,01/06/2022,70026991,"2,079.00",0,MX Estates Ltd,ACCOMMODATION BED & BREAKFAST,Place,Bed & Breakfast
Royal Borough of Kingston,01/06/2022,70026991,910,0,MX Estates Ltd,ACCOMMODATION BED & BREAKFAST,Place,Bed & Breakfast
Royal Borough of Kingston,01/06/2022,70026991,756,0,MX Estates Ltd,ACCOMMODATION BED & BREAKFAST,Place,Bed & Breakfast
Royal Borough of Kingston,01/06/2022,70026991,756,0,MX Estates Ltd,ACCOMMODATION BED & BREAKFAST,Place,Bed & Breakfast
Royal Borough of Kingston,01/06/2022,90132262,"1,894.05",0,REDACTED - PERSONAL DATA,CHILDMINDERS START UP GRANT,Schools,PVI Providers
Royal Borough of Kingston,01/06/2022,90132306,"1,581.12",0,REDACTED - PERSONAL DATA,CHILDMINDERS START UP GRANT,Schools,PVI Providers
Royal Borough of Kingston,01/06/2022,90140725,"2,800.84",0,NIGHTINGALE HOUSE,SOCIAL SERVICES RESIDENTIAL,Adult Social Care & Health,Independent Placements
Royal Borough of Kingston,01/06/2022,90140735,"3,562.29",0,NIGHTINGALE HOUSE,SOCIAL SERVICES RESIDENTIAL,Adult Social Care & Health,Independent Placements
Royal Borough of Kingston,01/06/2022,90140744,"3,339.64",0,NIGHTINGALE HOUSE,SOCIAL SERVICES RESIDENTIAL,Adult Social Care & Health,Independent Placements
Royal Borough of Kingston,01/06/2022,90140837,"3,339.64",0,NIGHTINGALE HOUSE,SOCIAL SERVICES RESIDENTIAL,Adult Social Care & Health,Independent Placements
Royal Borough of Kingston,01/06/2022,90140848,"4,230.21",0,NIGHTINGALE HOUSE,SOCIAL SERVICES RESIDENTIAL,Adult Social Care & Health,Independent Placements
Royal Borough of Kingston,01/06/2022,90140976,"5,796.21",0,NORSACA (TRADING) LTD,SOCIAL SERVICES - OTHER,Adult Social Care & Health,Independent Placements
Royal Borough of Kingston,01/06/2022,90141004,"5,343.43",0,NSR Care Homes Ltd ,SOCIAL SERVICES RESIDENTIAL,Adult Social Care & Health,Independent Placements
Royal Borough of Kingston,01/06/2022,90132185,901.44,0,NUTKINS DAY NURSERY,CHILDMINDERS START UP GRANT,Schools,2 Yr Old Place Funding
Royal Borough of Kingston,01/06/2022,90132203,"11,265.48",0,NUTKINS DAY NURSERY,CHILDMINDERS START UP GRANT,Schools,PVI Providers
Royal Borough of Kingston,01/06/2022,90132238,"1,277.04",0,OASIS PRE-SCHOOL LTD,SOCIAL SERVICES DAY CARE,Schools,2 Yr Old Place Funding
Royal Borough of Kingston,01/06/2022,90132327,"9,934.70",0,OASIS PRE-SCHOOL LTD,SOCIAL SERVICES DAY CARE,Schools,PVI Providers
Royal Borough of Kingston,01/06/2022,90132310,790.56,0,REDACTED - PERSONAL DATA,CHILDMINDERS START UP GRANT,Schools,PVI Providers
Royal Borough of Kingston,01/06/2022,90132239,"2,253.60",0,ONE NINE SEVEN PARK NURSERY,SOCIAL SERVICES DAY CARE,Schools,2 Yr Old Place Funding
Royal Borough of Kingston,01/06/2022,90132328,"7,115.04",0,ONE NINE SEVEN PARK NURSERY,SOCIAL SERVICES DAY CARE,Schools,PVI Providers
Royal Borough of Kingston,01/06/2022,90132208,"4,056.48",0,ONENINESEVEN EARLY YEARS NURSERY,SOCIAL SERVICES DAY CARE,Schools,2 Yr Old Place Funding
Royal Borough of Kingston,01/06/2022,90132253,"17,787.60",0,ONENINESEVEN EARLY YEARS NURSERY,SOCIAL SERVICES DAY CARE,Schools,PVI Providers
Royal Borough of Kingston,01/06/2022,90140927,"6,901.93",0,OPTIMA CARE LIMITED,SOCIAL SERVICES RESIDENTIAL,Adult Social Care & Health,Independent Placements
Royal Borough of Kingston,01/06/2022,90132329,"17,921.84",0,ORANGES & LEMONS NURSERY SCHOOL,ACADEMIC - STUDENT FEES,Schools,PVI Providers
Royal Borough of Kingston,01/06/2022,90132228,"1,802.88",0,GREEN LANE NURSERY,REFUNDS,Schools,2 Yr Old Place Funding
Royal Borough of Kingston,01/06/2022,90132296,"18,775.80",0,GREEN LANE NURSERY,REFUNDS,Schools,PVI Providers
Royal Borough of Kingston,01/06/2022,90141681,"2,042.36",0,PALM LODGE,SOCIAL SERVICES RESIDENTIAL,Adult Social Care & Health,Personal Budget - Third Party
Royal Borough of Kingston,01/06/2022,90142292,"1,928.57",0,PALM LODGE,SOCIAL SERVICES RESIDENTIAL,Adult Social Care & Health,Personal Budget - Third Party
Royal Borough of Kingston,01/06/2022,90142295,"2,042.36",0,PALM LODGE,SOCIAL SERVICES RESIDENTIAL,Adult Social Care & Health,Personal Budget - Third Party
Royal Borough of Kingston,01/06/2022,90142298,"1,996.97",0,PALM LODGE,SOCIAL SERVICES RESIDENTIAL,Adult Social Care & Health,Personal Budget - Third Party
Royal Borough of Kingston,01/06/2022,90142299,"1,225.41",0,PALM LODGE,SOCIAL SERVICES RESIDENTIAL,Adult Social Care & Health,Personal Budget - Third Party
Royal Borough of Kingston,01/06/2022,90142303,"2,042.36",0,PALM LODGE,SOCIAL SERVICES RESIDENTIAL,Adult Social Care & Health,Personal Budget - Third Party
Royal Borough of Kingston,01/06/2022,90142312,"1,225.41",0,PALM LODGE,SOCIAL SERVICES RESIDENTIAL,Adult Social Care & Health,Personal Budget - Third Party
Royal Borough of Kingston,01/06/2022,90142313,"2,042.36",0,PALM LODGE,SOCIAL SERVICES RESIDENTIAL,Adult Social Care & Health,Personal Budget - Third Party
Royal Borough of Kingston,01/06/2022,90142323,"1,225.41",0,PALM LODGE,SOCIAL SERVICES RESIDENTIAL,Adult Social Care & Health,Personal Budget - Third Party
Royal Borough of Kingston,01/06/2022,90142339,"1,180.03",0,PALM LODGE,SOCIAL SERVICES RESIDENTIAL,Adult Social Care & Health,Personal Budget - Third Party
Royal Borough of Kingston,01/06/2022,90132324,"1,185.84",0,REDACTED - PERSONAL DATA,CHILDMINDERS START UP GRANT,Schools,PVI Providers
Royal Borough of Kingston,01/06/2022,90132331,"18,182.88",0,PARK HILL SCHOOL LIMITED,ACADEMIC INSTNS - OTHER,Schools,PVI Providers
Royal Borough of Kingston,01/06/2022,90132242,"4,281.84",0,PIGLETS PRE-SCHOOL,GRANTS & EX GRATIA PAYMENTS,Schools,2 Yr Old Place Funding
Royal Borough of Kingston,01/06/2022,90132334,"42,690.24",0,PIGLETS PRE-SCHOOL,GRANTS & EX GRATIA PAYMENTS,Schools,PVI Providers
Royal Borough of Kingston,01/06/2022,90132243,"3,380.40",0,PLAYMATES NURSERY CHESSINGTON LTD,GRANTS & EX GRATIA PAYMENTS,Schools,2 Yr Old Place Funding
Royal Borough of Kingston,01/06/2022,90132335,"23,716.80",0,PLAYMATES NURSERY CHESSINGTON LTD,GRANTS & EX GRATIA PAYMENTS,Schools,PVI Providers
Royal Borough of Kingston,01/06/2022,90132244,"4,732.56",0,PLAYTIME CHESSINGTON,SOCIAL SERVICES - OTHER,Schools,2 Yr Old Place Funding
Royal Borough of Kingston,01/06/2022,90132336,"35,963.89",0,PLAYTIME CHESSINGTON,SOCIAL SERVICES - OTHER,Schools,PVI Providers
Royal Borough of Kingston,01/06/2022,90132245,"3,380.40",0,PLOUGH GREEN PRE-SCHOOL,GRANTS & EX GRATIA PAYMENTS,Schools,2 Yr Old Place Funding
Royal Borough of Kingston,01/06/2022,90132337,"24,112.08",0,PLOUGH GREEN PRE-SCHOOL,GRANTS & EX GRATIA PAYMENTS,Schools,PVI Providers
Royal Borough of Kingston,01/06/2022,90132246,"11,207.90",0,POPPETS PRE-SCHOOL,ENTERTAINMENTS INDUSTRY,Schools,2 Yr Old Place Funding
Royal Borough of Kingston,01/06/2022,90132339,"19,671.77",0,POPPETS PRE-SCHOOL,ENTERTAINMENTS INDUSTRY,Schools,PVI Providers
Royal Borough of Kingston,01/06/2022,90141947,"13,699.46",0,Precious Homes,SOCIAL SERVICES-HOME CARE,Adult Social Care & Health,Personal Budget - Third Party
Royal Borough of Kingston,01/06/2022,70025404,323.5,0,PREMIER PEOPLE SOLUTIONS LTD,TRAINING,Corporate & Communities,Staff Development And Training
Royal Borough of Kingston,01/06/2022,70025404,323.5,0,PREMIER PEOPLE SOLUTIONS LTD,TRAINING,Corporate & Communities,Staff Development And Training
Royal Borough of Kingston,01/06/2022,70025554,"1,147.00",0,QUARTZ PROPERTIES (LONDON) LTD,ACCOMMODATION BED & BREAKFAST,Place,Bed & Breakfast
Royal Borough of Kingston,01/06/2022,70025554,"1,147.00",0,QUARTZ PROPERTIES (LONDON) LTD,ACCOMMODATION BED & BREAKFAST,Place,Bed & Breakfast
Royal Borough of Kingston,01/06/2022,70025554,"2,253.70",0,QUARTZ PROPERTIES (LONDON) LTD,ACCOMMODATION BED & BREAKFAST,Place,Bed & Breakfast
Royal Borough of Kingston,01/06/2022,70025554,"1,546.90",0,QUARTZ PROPERTIES (LONDON) LTD,ACCOMMODATION BED & BREAKFAST,Place,Bed & Breakfast
Royal Borough of Kingston,01/06/2022,70025554,"1,922.00",0,QUARTZ PROPERTIES (LONDON) LTD,ACCOMMODATION BED & BREAKFAST,Place,Bed & Breakfast
Royal Borough of Kingston,01/06/2022,70025554,"1,209.00",0,QUARTZ PROPERTIES (LONDON) LTD,ACCOMMODATION BED & BREAKFAST,Place,Bed & Breakfast
Royal Borough of Kingston,01/06/2022,70025554,"1,147.00",0,QUARTZ PROPERTIES (LONDON) LTD,ACCOMMODATION BED & BREAKFAST,Place,Bed & Breakfast
Royal Borough of Kingston,01/06/2022,70025554,"1,147.00",0,QUARTZ PROPERTIES (LONDON) LTD,ACCOMMODATION BED & BREAKFAST,Place,Bed & Breakfast
Royal Borough of Kingston,01/06/2022,70025554,"1,147.00",0,QUARTZ PROPERTIES (LONDON) LTD,ACCOMMODATION BED & BREAKFAST,Place,Bed & Breakfast
Royal Borough of Kingston,01/06/2022,70025554,"1,147.00",0,QUARTZ PROPERTIES (LONDON) LTD,ACCOMMODATION BED & BREAKFAST,Place,Bed & Breakfast
Royal Borough of Kingston,01/06/2022,70025554,"1,147.00",0,QUARTZ PROPERTIES (LONDON) LTD,ACCOMMODATION BED & BREAKFAST,Place,Bed & Breakfast
Royal Borough of Kingston,01/06/2022,70025554,"1,829.00",0,QUARTZ PROPERTIES (LONDON) LTD,ACCOMMODATION BED & BREAKFAST,Place,Bed & Breakfast
Royal Borough of Kingston,01/06/2022,70025554,"1,929.75",0,QUARTZ PROPERTIES (LONDON) LTD,ACCOMMODATION BED & BREAKFAST,Place,Bed & Breakfast
Royal Borough of Kingston,01/06/2022,70025554,"1,546.90",0,QUARTZ PROPERTIES (LONDON) LTD,ACCOMMODATION BED & BREAKFAST,Place,Bed & Breakfast
Royal Borough of Kingston,01/06/2022,70025554,"1,674.00",0,QUARTZ PROPERTIES (LONDON) LTD,ACCOMMODATION BED & BREAKFAST,Place,Bed & Breakfast
Royal Borough of Kingston,01/06/2022,70025554,"1,929.75",0,QUARTZ PROPERTIES (LONDON) LTD,ACCOMMODATION BED & BREAKFAST,Place,Bed & Breakfast
Royal Borough of Kingston,01/06/2022,70025554,851,0,QUARTZ PROPERTIES (LONDON) LTD,ACCOMMODATION BED & BREAKFAST,Place,Bed & Breakfast
Royal Borough of Kingston,01/06/2022,70025554,"2,480.00",0,QUARTZ PROPERTIES (LONDON) LTD,ACCOMMODATION BED & BREAKFAST,Place,Bed & Breakfast
Royal Borough of Kingston,01/06/2022,70025554,"1,302.00",0,QUARTZ PROPERTIES (LONDON) LTD,ACCOMMODATION BED & BREAKFAST,Place,Bed & Breakfast
Royal Borough of Kingston,01/06/2022,70025554,"1,302.00",0,QUARTZ PROPERTIES (LONDON) LTD,ACCOMMODATION BED & BREAKFAST,Place,Bed & Breakfast
Royal Borough of Kingston,01/06/2022,70025554,"1,147.00",0,QUARTZ PROPERTIES (LONDON) LTD,ACCOMMODATION BED & BREAKFAST,Place,Bed & Breakfast
Royal Borough of Kingston,01/06/2022,70025554,"2,046.00",0,QUARTZ PROPERTIES (LONDON) LTD,ACCOMMODATION BED & BREAKFAST,Place,Bed & Breakfast
Royal Borough of Kingston,01/06/2022,70025554,"1,147.00",0,QUARTZ PROPERTIES (LONDON) LTD,ACCOMMODATION BED & BREAKFAST,Place,Bed & Breakfast
Royal Borough of Kingston,01/06/2022,70025554,"1,147.00",0,QUARTZ PROPERTIES (LONDON) LTD,ACCOMMODATION BED & BREAKFAST,Place,Bed & Breakfast
Royal Borough of Kingston,01/06/2022,70025554,"1,147.00",0,QUARTZ PROPERTIES (LONDON) LTD,ACCOMMODATION BED & BREAKFAST,Place,Bed & Breakfast
Royal Borough of Kingston,01/06/2022,70025554,"2,046.00",0,QUARTZ PROPERTIES (LONDON) LTD,ACCOMMODATION BED & BREAKFAST,Place,Bed & Breakfast
Royal Borough of Kingston,01/06/2022,70025554,"1,488.00",0,QUARTZ PROPERTIES (LONDON) LTD,ACCOMMODATION BED & BREAKFAST,Place,Bed & Breakfast
Royal Borough of Kingston,01/06/2022,70025554,"1,829.00",0,QUARTZ PROPERTIES (LONDON) LTD,ACCOMMODATION BED & BREAKFAST,Place,Bed & Breakfast
Royal Borough of Kingston,01/06/2022,70025554,"1,643.00",0,QUARTZ PROPERTIES (LONDON) LTD,ACCOMMODATION BED & BREAKFAST,Place,Bed & Breakfast
Royal Borough of Kingston,01/06/2022,70025554,"1,643.00",0,QUARTZ PROPERTIES (LONDON) LTD,ACCOMMODATION BED & BREAKFAST,Place,Bed & Breakfast
Royal Borough of Kingston,01/06/2022,70025554,"1,643.00",0,QUARTZ PROPERTIES (LONDON) LTD,ACCOMMODATION BED & BREAKFAST,Place,Bed & Breakfast
Royal Borough of Kingston,01/06/2022,70025554,"1,302.00",0,QUARTZ PROPERTIES (LONDON) LTD,ACCOMMODATION BED & BREAKFAST,Place,Bed & Breakfast
Royal Borough of Kingston,01/06/2022,70025554,259,0,QUARTZ PROPERTIES (LONDON) LTD,ACCOMMODATION BED & BREAKFAST,Place,Bed & Breakfast
Royal Borough of Kingston,01/06/2022,70025554,185,0,QUARTZ PROPERTIES (LONDON) LTD,ACCOMMODATION BED & BREAKFAST,Place,Bed & Breakfast
Royal Borough of Kingston,01/06/2022,70025554,"1,147.00",0,QUARTZ PROPERTIES (LONDON) LTD,ACCOMMODATION BED & BREAKFAST,Place,Bed & Breakfast
Royal Borough of Kingston,01/06/2022,90140774,"9,907.63",0,QUEEN ELIZABETHS FOUND FOR DISABLED,CHARITIES & VOLUNTARY ORGNS,Adult Social Care & Health,Independent Placements
Royal Borough of Kingston,01/06/2022,90140946,"8,176.89",0,QUEEN ELIZABETHS FOUND FOR DISABLED,CHARITIES & VOLUNTARY ORGNS,Adult Social Care & Health,Independent Placements
Royal Borough of Kingston,01/06/2022,70025422,"3,637.50",0,R J LIFT SERVICES LTD,CONSTRUCTION INDUSTRY,Housing Revenue Account,Lift Servicing And Repairs
Royal Borough of Kingston,01/06/2022,90140981,"11,822.44",0,R M E T,SOCIAL SERVICES RESIDENTIAL,Adult Social Care & Health,Independent Placements
Royal Borough of Kingston,01/06/2022,90132187,"1,343.95",0,REDACTED - PERSONAL DATA,CHILDMINDERS START UP GRANT,Schools,PVI Providers
Royal Borough of Kingston,01/06/2022,90132281,"2,766.96",0,MANGO TREE,GRANTS & EX GRATIA PAYMENTS,Schools,PVI Providers
Royal Borough of Kingston,01/06/2022,90141917,"8,704.67",0,REAMCARE LTD,SOCIAL SERVICES RESIDENTIAL,Adult Social Care & Health,Personal Budget - Third Party
Royal Borough of Kingston,01/06/2022,90132341,790.56,0,REDACTED - PERSONAL DATA,CHILDMINDERS START UP GRANT,Schools,PVI Providers
Royal Borough of Kingston,01/06/2022,90139262,788.57,0,REMARK ! LIMITED,INTERPRETERS,Adult Social Care & Health,Personal Budget - Third Party
Royal Borough of Kingston,01/06/2022,90139276,591.43,0,REMARK ! LIMITED,INTERPRETERS,Adult Social Care & Health,Personal Budget - Third Party
Royal Borough of Kingston,01/06/2022,90142304,"6,154.29",0,REVON HEALTHCARE LTD,SOCIAL SERVICES RESIDENTIAL,Adult Social Care & Health,Personal Budget - Third Party
Royal Borough of Kingston,01/06/2022,90142306,"7,379.70",0,REVON HEALTHCARE LTD,SOCIAL SERVICES RESIDENTIAL,Adult Social Care & Health,Personal Budget - Third Party
Royal Borough of Kingston,01/06/2022,90142316,"5,927.36",0,REVON HEALTHCARE LTD,SOCIAL SERVICES RESIDENTIAL,Adult Social Care & Health,Personal Budget - Third Party
Royal Borough of Kingston,01/06/2022,90138192,"14,717.78",0,Right Support Management Limited,SOCIAL SERVICES - DIRECT PAYMENTS,Adult Social Care & Health,Other Private Contractors - Third Party
Royal Borough of Kingston,01/06/2022,90140594,"3,406.46",0,Rodwell House Limited,SOCIAL SERVICES RESIDENTIAL,Adult Social Care & Health,Independent Placements
Royal Borough of Kingston,01/06/2022,90140695,"3,339.64",0,ROSCLARE RESIDENTIAL HOME,SOCIAL SERVICES RESIDENTIAL,Adult Social Care & Health,Independent Placements
Royal Borough of Kingston,01/06/2022,90140865,"3,339.64",0,ROSCLARE RESIDENTIAL HOME,SOCIAL SERVICES RESIDENTIAL,Adult Social Care & Health,Independent Placements
Royal Borough of Kingston,01/06/2022,90140895,"3,857.14",0,ROSCLARE RESIDENTIAL HOME,SOCIAL SERVICES RESIDENTIAL,Adult Social Care & Health,Independent Placements
Royal Borough of Kingston,01/06/2022,90140913,"2,983.41",0,ROSCLARE RESIDENTIAL HOME,SOCIAL SERVICES RESIDENTIAL,Adult Social Care & Health,Independent Placements
Royal Borough of Kingston,01/06/2022,90132302,"2,766.96",0,REDACTED - PERSONAL DATA,CHILDMINDERS START UP GRANT,Schools,PVI Providers
Royal Borough of Kingston,01/06/2022,90132344,"1,778.76",0,REDACTED - PERSONAL DATA,CHILDMINDERS START UP GRANT,Schools,PVI Providers
Royal Borough of Kingston,01/06/2022,90132193,955.26,0,REDACTED - PERSONAL DATA,CHILDMINDERS START UP GRANT,Schools,PVI Providers
Royal Borough of Kingston,01/06/2022,90140931,"9,093.21",0,SEEABILITY,CHARITIES & VOLUNTARY ORGNS,Adult Social Care & Health,Independent Placements
Royal Borough of Kingston,01/06/2022,90140942,"13,382.14",0,SEEABILITY,CHARITIES & VOLUNTARY ORGNS,Adult Social Care & Health,Independent Placements
Royal Borough of Kingston,01/06/2022,90140955,"10,718.19",0,SEEABILITY,CHARITIES & VOLUNTARY ORGNS,Adult Social Care & Health,Independent Placements
Royal Borough of Kingston,01/06/2022,90141840,"1,601.23",0,SEEABILITY,CHARITIES & VOLUNTARY ORGNS,Adult Social Care & Health,Personal Budget - Third Party
Royal Borough of Kingston,01/06/2022,90141862,"1,601.23",0,SEEABILITY,CHARITIES & VOLUNTARY ORGNS,Adult Social Care & Health,Personal Budget - Third Party
Royal Borough of Kingston,01/06/2022,90141875,"10,179.13",0,SEEABILITY,CHARITIES & VOLUNTARY ORGNS,Adult Social Care & Health,Personal Budget - Third Party
Royal Borough of Kingston,01/06/2022,90139263,"2,345.74",0,SIGN HEALTH,SOCIAL SERVICES - OTHER,Adult Social Care & Health,Personal Budget - Third Party
Royal Borough of Kingston,01/06/2022,70025765,"1,488.00",0,Smartspace Properties,ACCOMMODATION BED & BREAKFAST,Place,Bed & Breakfast
Royal Borough of Kingston,01/06/2022,70025765,"1,288.00",0,Smartspace Properties,ACCOMMODATION BED & BREAKFAST,Place,Bed & Breakfast
Royal Borough of Kingston,01/06/2022,70025765,"1,488.00",0,Smartspace Properties,ACCOMMODATION BED & BREAKFAST,Place,Bed & Breakfast
Royal Borough of Kingston,01/06/2022,70025765,"2,300.00",0,Smartspace Properties,ACCOMMODATION BED & BREAKFAST,Place,Bed & Breakfast
Royal Borough of Kingston,01/06/2022,70025765,570,0,Smartspace Properties,ACCOMMODATION BED & BREAKFAST,Place,Bed & Breakfast
Royal Borough of Kingston,01/06/2022,90140631,"3,339.64",0,SOUTH LONDON NURSING HOMES,SOCIAL SERVICES RESIDENTIAL,Adult Social Care & Health,Independent Placements
Royal Borough of Kingston,01/06/2022,90140637,"2,916.64",0,SOUTH LONDON NURSING HOMES,SOCIAL SERVICES RESIDENTIAL,Adult Social Care & Health,Independent Placements
Royal Borough of Kingston,01/06/2022,90140670,"3,535.71",0,SOUTH LONDON NURSING HOMES,SOCIAL SERVICES RESIDENTIAL,Adult Social Care & Health,Independent Placements
Royal Borough of Kingston,01/06/2022,90132319,"30,436.56",0,SOUTH WEST LONDON NURSERY CO LTD,CHILDMINDERS START UP GRANT,Schools,PVI Providers
Royal Borough of Kingston,01/06/2022,90132320,"17,787.60",0,SOUTH WEST NURSERY COMPANY LTD,CHILDMINDERS START UP GRANT,Schools,PVI Providers
Royal Borough of Kingston,01/06/2022,70025396,"12,279.68",0,SPECTRA C.I.C,GRANTS & EX GRATIA PAYMENTS,Adult Social Care & Health,Community Initiatives
Royal Borough of Kingston,01/06/2022,90140644,"3,857.14",0,SPEIRS HOUSE,SOCIAL SERVICES RESIDENTIAL,Adult Social Care & Health,Independent Placements
Royal Borough of Kingston,01/06/2022,90140665,"3,784.93",0,SPEIRS HOUSE,SOCIAL SERVICES RESIDENTIAL,Adult Social Care & Health,Independent Placements
Royal Borough of Kingston,01/06/2022,90132346,"38,342.16",0,ST AGATHAS CATHOLIC PRIMARY SCHOOL,ACADEMIC INSTNS - OTHER,Schools,Miscellaneous Expenses
Royal Borough of Kingston,01/06/2022,90140917,"4,987.41",0,ST ANN'S  LIMITED,SOCIAL SERVICES RESIDENTIAL,Adult Social Care & Health,Independent Placements
Royal Borough of Kingston,01/06/2022,90140922,"4,546.59",0,ST ANN'S  LIMITED,SOCIAL SERVICES RESIDENTIAL,Adult Social Care & Health,Independent Placements
Royal Borough of Kingston,01/06/2022,90140926,"4,546.59",0,ST ANN'S  LIMITED,SOCIAL SERVICES RESIDENTIAL,Adult Social Care & Health,Independent Placements
Royal Borough of Kingston,01/06/2022,90140930,"4,546.59",0,ST ANN'S  LIMITED,SOCIAL SERVICES RESIDENTIAL,Adult Social Care & Health,Independent Placements
Royal Borough of Kingston,01/06/2022,90140933,"5,060.91",0,ST ANN'S  LIMITED,SOCIAL SERVICES RESIDENTIAL,Adult Social Care & Health,Independent Placements
Royal Borough of Kingston,01/06/2022,90140948,"4,546.59",0,ST ANN'S  LIMITED,SOCIAL SERVICES RESIDENTIAL,Adult Social Care & Health,Independent Placements
Royal Borough of Kingston,01/06/2022,90140958,"4,546.59",0,ST ANN'S  LIMITED,SOCIAL SERVICES RESIDENTIAL,Adult Social Care & Health,Independent Placements
Royal Borough of Kingston,01/06/2022,90140959,"4,987.41",0,ST ANN'S  LIMITED,SOCIAL SERVICES RESIDENTIAL,Adult Social Care & Health,Independent Placements
Royal Borough of Kingston,01/06/2022,90140964,"4,546.59",0,ST ANN'S  LIMITED,SOCIAL SERVICES RESIDENTIAL,Adult Social Care & Health,Independent Placements
Royal Borough of Kingston,01/06/2022,90140966,"4,987.41",0,ST ANN'S  LIMITED,SOCIAL SERVICES RESIDENTIAL,Adult Social Care & Health,Independent Placements
Royal Borough of Kingston,01/06/2022,90142393,"4,546.59",0,ST ANN'S  LIMITED,SOCIAL SERVICES RESIDENTIAL,Adult Social Care & Health,Independent Placements
Royal Borough of Kingston,01/06/2022,90142394,"6,714.69",0,ST ANN'S  LIMITED,SOCIAL SERVICES RESIDENTIAL,Adult Social Care & Health,Independent Placements
Royal Borough of Kingston,01/06/2022,90140831,"4,898.14",0,ST AUGUSTINE'S HOME,SOCIAL SERVICES RESIDENTIAL,Adult Social Care & Health,Independent Placements
Royal Borough of Kingston,01/06/2022,90132347,"25,100.28",0,ST JOHN'S COFE PRIMARY SCHOOL ,ACADEMIC INSTNS - OTHER,Schools,Miscellaneous Expenses
Royal Borough of Kingston,01/06/2022,90132348,"16,799.40",0,ST JOSEPH'S RC PRIMARY SCHOOL ,ACADEMIC INSTNS - OTHER,Schools,Miscellaneous Expenses
Royal Borough of Kingston,01/06/2022,90132349,"18,578.16",0,ST LUKES C OF E PRIMARY,SCHOOL FUNDS,Schools,Miscellaneous Expenses
Royal Borough of Kingston,01/06/2022,90132350,"5,336.28",0,ST MARY'S COFE PRIMARY SCHOOL,ACADEMIC INSTNS - OTHER,Schools,Miscellaneous Expenses
Royal Borough of Kingston,01/06/2022,90140975,"6,011.36",0,STALLCOMBE HOUSE,SOCIAL SERVICES - OTHER,Adult Social Care & Health,Independent Placements
Royal Borough of Kingston,01/06/2022,90141916,"8,373.69",0,STANMORE HOUSE,SOCIAL SERVICES RESIDENTIAL,Adult Social Care & Health,Personal Budget - Third Party
Royal Borough of Kingston,01/06/2022,90132293,"4,532.54",0,STARS DAY NURSERY,SOCIAL SERVICES DAY CARE,Schools,PVI Providers
Royal Borough of Kingston,01/06/2022,70026674,945,0,Stef and Philips,ACCOMMODATION BED & BREAKFAST,Place,Bed & Breakfast
Royal Borough of Kingston,01/06/2022,70026675,"1,085.00",0,Stef and Philips,ACCOMMODATION BED & BREAKFAST,Place,Bed & Breakfast
Royal Borough of Kingston,01/06/2022,70026676,"1,023.00",0,Stef and Philips,ACCOMMODATION BED & BREAKFAST,Place,Bed & Breakfast
Royal Borough of Kingston,01/06/2022,70026677,540,0,Stef and Philips,ACCOMMODATION BED & BREAKFAST,Place,Bed & Breakfast
Royal Borough of Kingston,01/06/2022,70026678,"1,116.00",0,Stef and Philips,ACCOMMODATION BED & BREAKFAST,Place,Bed & Breakfast
Royal Borough of Kingston,01/06/2022,70026679,"1,085.00",0,Stef and Philips,ACCOMMODATION BED & BREAKFAST,Place,Bed & Breakfast
Royal Borough of Kingston,01/06/2022,70026680,385,0,Stef and Philips,ACCOMMODATION BED & BREAKFAST,Place,Bed & Breakfast
Royal Borough of Kingston,01/06/2022,70026680,"1,085.00",0,Stef and Philips,ACCOMMODATION BED & BREAKFAST,Place,Bed & Breakfast
Royal Borough of Kingston,01/06/2022,70026680,560,0,Stef and Philips,ACCOMMODATION BED & BREAKFAST,Place,Bed & Breakfast
Royal Borough of Kingston,01/06/2022,70026681,"1,085.00",0,Stef and Philips,ACCOMMODATION BED & BREAKFAST,Place,Bed & Breakfast
Royal Borough of Kingston,01/06/2022,70026681,980,0,Stef and Philips,ACCOMMODATION BED & BREAKFAST,Place,Bed & Breakfast
Royal Borough of Kingston,01/06/2022,70026681,945,0,Stef and Philips,ACCOMMODATION BED & BREAKFAST,Place,Bed & Breakfast
Royal Borough of Kingston,01/06/2022,70026682,"1,116.00",0,Stef and Philips,ACCOMMODATION BED & BREAKFAST,Place,Bed & Breakfast
Royal Borough of Kingston,01/06/2022,70026682,"1,116.00",0,Stef and Philips,ACCOMMODATION BED & BREAKFAST,Place,Bed & Breakfast
Royal Borough of Kingston,01/06/2022,70026682,"1,116.00",0,Stef and Philips,ACCOMMODATION BED & BREAKFAST,Place,Bed & Breakfast
Royal Borough of Kingston,01/06/2022,70026683,"1,023.00",0,Stef and Philips,ACCOMMODATION BED & BREAKFAST,Place,Bed & Breakfast
Royal Borough of Kingston,01/06/2022,70026683,"1,023.00",0,Stef and Philips,ACCOMMODATION BED & BREAKFAST,Place,Bed & Breakfast
Royal Borough of Kingston,01/06/2022,70026683,"1,023.00",0,Stef and Philips,ACCOMMODATION BED & BREAKFAST,Place,Bed & Breakfast
Royal Borough of Kingston,01/06/2022,70026683,495,0,Stef and Philips,ACCOMMODATION BED & BREAKFAST,Place,Bed & Breakfast
Royal Borough of Kingston,01/06/2022,70026683,"1,023.00",0,Stef and Philips,ACCOMMODATION BED & BREAKFAST,Place,Bed & Breakfast
Royal Borough of Kingston,01/06/2022,70026683,"1,023.00",0,Stef and Philips,ACCOMMODATION BED & BREAKFAST,Place,Bed & Breakfast
Royal Borough of Kingston,01/06/2022,70026684,"1,085.00",0,Stef and Philips,ACCOMMODATION BED & BREAKFAST,Place,Bed & Breakfast
Royal Borough of Kingston,01/06/2022,70026684,"1,085.00",0,Stef and Philips,ACCOMMODATION BED & BREAKFAST,Place,Bed & Breakfast
Royal Borough of Kingston,01/06/2022,70026684,"1,085.00",0,Stef and Philips,ACCOMMODATION BED & BREAKFAST,Place,Bed & Breakfast
Royal Borough of Kingston,01/06/2022,70026685,"1,023.00",0,Stef and Philips,ACCOMMODATION BED & BREAKFAST,Place,Bed & Breakfast
Royal Borough of Kingston,01/06/2022,70026685,33,0,Stef and Philips,ACCOMMODATION BED & BREAKFAST,Place,Bed & Breakfast
Royal Borough of Kingston,01/06/2022,70026685,"1,023.00",0,Stef and Philips,ACCOMMODATION BED & BREAKFAST,Place,Bed & Breakfast
Royal Borough of Kingston,01/06/2022,70026685,"1,085.00",0,Stef and Philips,ACCOMMODATION BED & BREAKFAST,Place,Bed & Breakfast
Royal Borough of Kingston,01/06/2022,70026689,"1,116.00",0,Stef and Philips,ACCOMMODATION BED & BREAKFAST,Place,Bed & Breakfast
Royal Borough of Kingston,01/06/2022,70026689,"1,085.00",0,Stef and Philips,ACCOMMODATION BED & BREAKFAST,Place,Bed & Breakfast
Royal Borough of Kingston,01/06/2022,70026689,"1,485.00",0,Stef and Philips,ACCOMMODATION BED & BREAKFAST,Place,Bed & Breakfast
Royal Borough of Kingston,01/06/2022,90141848,"5,219.36",0,SUGARMAN HEALTH & WELLBEING LTD,TEMP STAFF & CONSULTANCY,Adult Social Care & Health,Personal Budget - Third Party
Royal Borough of Kingston,01/06/2022,90140574,"4,452.86",0,SURBITON CARE HOMES LTD,SOCIAL SERVICES DAY CARE,Adult Social Care & Health,Independent Placements
Royal Borough of Kingston,01/06/2022,90140607,"2,916.64",0,SURBITON CARE HOMES LTD,SOCIAL SERVICES DAY CARE,Adult Social Care & Health,Independent Placements
Royal Borough of Kingston,01/06/2022,90140651,"2,916.64",0,SURBITON CARE HOMES LTD,SOCIAL SERVICES DAY CARE,Adult Social Care & Health,Independent Placements
Royal Borough of Kingston,01/06/2022,90140653,"3,339.64",0,SURBITON CARE HOMES LTD,SOCIAL SERVICES DAY CARE,Adult Social Care & Health,Independent Placements
Royal Borough of Kingston,01/06/2022,90140799,"3,938.27",0,SURBITON CARE HOMES LTD,SOCIAL SERVICES DAY CARE,Adult Social Care & Health,Independent Placements
Royal Borough of Kingston,01/06/2022,90132247,"2,704.32",0,SURBITON CHILDREN'S CENTRE NURSERY,SCHOOL FUNDS,Schools,2 Yr Old Place Funding
Royal Borough of Kingston,01/06/2022,90132352,"53,362.80",0,SURBITON CHILDREN'S CENTRE NURSERY,SCHOOL FUNDS,Schools,Miscellaneous Expenses
Royal Borough of Kingston,01/06/2022,90140905,"16,110.34",0,SURREY AND BORDERS PARTNERSHIP NHS FOUNDATION TRUST,SOCIAL SERVICES DAY CARE,Adult Social Care & Health,Independent Placements
Royal Borough of Kingston,01/06/2022,90132260,"1,581.12",0,REDACTED - PERSONAL DATA,CHILDMINDERS START UP GRANT,Schools,PVI Providers
Royal Borough of Kingston,01/06/2022,90132248,"2,929.68",0,SUTHERLAND DAY NURSERY,CHILDMINDERS START UP GRANT,Schools,2 Yr Old Place Funding
Royal Borough of Kingston,01/06/2022,90132354,"15,218.28",0,SUTHERLAND DAY NURSERY,CHILDMINDERS START UP GRANT,Schools,PVI Providers
Royal Borough of Kingston,01/06/2022,90132292,"5,639.33",0,REDACTED - PERSONAL DATA,CHILDMINDERS START UP GRANT,Schools,PVI Providers
Royal Borough of Kingston,01/06/2022,70026470,"4,175.36",0,SWEET TREE HOME CARE SERVICES LTD,SOCIAL SERVICES-HOME CARE,Adult Social Care & Health,Personal Budget - Third Party
Royal Borough of Kingston,01/06/2022,70025442,"13,297.68",0,TELEFONICA O2 UK,TELECOMS,Corporate & Communities,Mobile Phones
Royal Borough of Kingston,01/06/2022,90140781,"5,904.47",0,REDACTED - PERSONAL DATA,SOCIAL SERVICES-HOME CARE,Adult Social Care & Health,Independent Placements
Royal Borough of Kingston,01/06/2022,90140967,"15,478.07",0,THE DAVID LEWIS CENTRE,CHARITIES & VOLUNTARY ORGNS,Adult Social Care & Health,Independent Placements
Royal Borough of Kingston,01/06/2022,90140910,"1,590.44",0,THE FIRCROFT TRUST,CHARITIES & VOLUNTARY ORGNS,Adult Social Care & Health,Independent Placements
Royal Borough of Kingston,01/06/2022,90140911,"4,781.79",0,THE FIRCROFT TRUST,CHARITIES & VOLUNTARY ORGNS,Adult Social Care & Health,Independent Placements
Royal Borough of Kingston,01/06/2022,90140912,"4,732.11",0,THE FIRCROFT TRUST,CHARITIES & VOLUNTARY ORGNS,Adult Social Care & Health,Independent Placements
Royal Borough of Kingston,01/06/2022,90140973,"5,228.40",0,THE FIRCROFT TRUST,CHARITIES & VOLUNTARY ORGNS,Adult Social Care & Health,Independent Placements
Royal Borough of Kingston,01/06/2022,90141819,"2,653.11",0,THE FIRCROFT TRUST,CHARITIES & VOLUNTARY ORGNS,Adult Social Care & Health,Personal Budget - Third Party
Royal Borough of Kingston,01/06/2022,90141879,"2,747.91",0,THE FIRCROFT TRUST,CHARITIES & VOLUNTARY ORGNS,Adult Social Care & Health,Personal Budget - Third Party
Royal Borough of Kingston,01/06/2022,90141912,"2,311.11",0,THE FIRCROFT TRUST,CHARITIES & VOLUNTARY ORGNS,Adult Social Care & Health,Personal Budget - Third Party
Royal Borough of Kingston,01/06/2022,90141930,"2,743.16",0,THE FIRCROFT TRUST,CHARITIES & VOLUNTARY ORGNS,Adult Social Care & Health,Personal Budget - Third Party
Royal Borough of Kingston,01/06/2022,90141936,"2,795.23",0,THE FIRCROFT TRUST,CHARITIES & VOLUNTARY ORGNS,Adult Social Care & Health,Personal Budget - Third Party
Royal Borough of Kingston,01/06/2022,90141952,"1,658.74",0,THE FIRCROFT TRUST,CHARITIES & VOLUNTARY ORGNS,Adult Social Care & Health,Personal Budget - Third Party
Royal Borough of Kingston,01/06/2022,90141984,"3,090.60",0,THE FIRCROFT TRUST,CHARITIES & VOLUNTARY ORGNS,Adult Social Care & Health,Personal Budget - Third Party
Royal Borough of Kingston,01/06/2022,90142322,"1,381.67",0,THE FIRCROFT TRUST,CHARITIES & VOLUNTARY ORGNS,Adult Social Care & Health,Personal Budget - Third Party
Royal Borough of Kingston,01/06/2022,90142355,-672.64,0,THE FIRCROFT TRUST,CHARITIES & VOLUNTARY ORGNS,Adult Social Care & Health,Financially Assessed Contributions clients � Non VAT
Royal Borough of Kingston,01/06/2022,90142356,-672.64,0,THE FIRCROFT TRUST,CHARITIES & VOLUNTARY ORGNS,Adult Social Care & Health,Financially Assessed Contributions clients � Non VAT
Royal Borough of Kingston,01/06/2022,90140950,"2,565.64",0,THE FRANCES TAYLOR FOUNDATION,SOCIAL SERVICES RESIDENTIAL,Adult Social Care & Health,Independent Placements
Royal Borough of Kingston,01/06/2022,90141047,837.04,0,THE FRANCES TAYLOR FOUNDATION,SOCIAL SERVICES RESIDENTIAL,Adult Social Care & Health,Other Private Contractors - Third Party
Royal Borough of Kingston,01/06/2022,90141715,"1,355.66",0,THE GRANGE CENTRE,SOCIAL SERVICES RESIDENTIAL,Adult Social Care & Health,Personal Budget - Third Party
Royal Borough of Kingston,01/06/2022,90141722,"1,016.74",0,THE GRANGE CENTRE,SOCIAL SERVICES RESIDENTIAL,Adult Social Care & Health,Personal Budget - Third Party
Royal Borough of Kingston,01/06/2022,90141751,"1,050.00",0,THE GRANGE CENTRE,SOCIAL SERVICES RESIDENTIAL,Adult Social Care & Health,Personal Budget - Third Party
Royal Borough of Kingston,01/06/2022,90141853,"3,643.24",0,THE GRANGE CENTRE,SOCIAL SERVICES RESIDENTIAL,Adult Social Care & Health,Personal Budget - Third Party
Royal Borough of Kingston,01/06/2022,90141908,"2,629.33",0,THE GRANGE CENTRE,SOCIAL SERVICES RESIDENTIAL,Adult Social Care & Health,Personal Budget - Third Party
Royal Borough of Kingston,01/06/2022,90140918,"3,881.06",0,THE HOME FARM TRUST LTD,SOCIAL SERVICES RESIDENTIAL,Adult Social Care & Health,Independent Placements
Royal Borough of Kingston,01/06/2022,90140949,"2,829.00",0,THE HOME FARM TRUST LTD,SOCIAL SERVICES RESIDENTIAL,Adult Social Care & Health,Independent Placements
Royal Borough of Kingston,01/06/2022,90140971,"4,045.54",0,THE HOME FARM TRUST LTD,SOCIAL SERVICES RESIDENTIAL,Adult Social Care & Health,Independent Placements
Royal Borough of Kingston,01/06/2022,90140982,"5,012.79",0,THE HOME FARM TRUST LTD,SOCIAL SERVICES RESIDENTIAL,Adult Social Care & Health,Independent Placements
Royal Borough of Kingston,01/06/2022,90141830,"6,791.36",0,THE HOME FARM TRUST LTD,SOCIAL SERVICES RESIDENTIAL,Adult Social Care & Health,Personal Budget - Third Party
Royal Borough of Kingston,01/06/2022,90141838,"1,637.53",0,THE HOME FARM TRUST LTD,SOCIAL SERVICES RESIDENTIAL,Adult Social Care & Health,Personal Budget - Third Party
Royal Borough of Kingston,01/06/2022,90141839,"1,530.13",0,THE HOME FARM TRUST LTD,SOCIAL SERVICES RESIDENTIAL,Adult Social Care & Health,Personal Budget - Third Party
Royal Borough of Kingston,01/06/2022,90141888,"1,223.36",0,THE HOME FARM TRUST LTD,SOCIAL SERVICES RESIDENTIAL,Adult Social Care & Health,Personal Budget - Third Party
Royal Borough of Kingston,01/06/2022,90141889,"6,447.39",0,THE HOME FARM TRUST LTD,SOCIAL SERVICES RESIDENTIAL,Adult Social Care & Health,Personal Budget - Third Party
Royal Borough of Kingston,01/06/2022,90141895,"7,214.49",0,THE HOME FARM TRUST LTD,SOCIAL SERVICES RESIDENTIAL,Adult Social Care & Health,Personal Budget - Third Party
Royal Borough of Kingston,01/06/2022,90141903,897.26,0,THE HOME FARM TRUST LTD,SOCIAL SERVICES RESIDENTIAL,Adult Social Care & Health,Personal Budget - Third Party
Royal Borough of Kingston,01/06/2022,90141914,627.73,0,THE HOME FARM TRUST LTD,SOCIAL SERVICES RESIDENTIAL,Adult Social Care & Health,Personal Budget - Third Party
Royal Borough of Kingston,01/06/2022,90141915,"2,353.93",0,THE HOME FARM TRUST LTD,SOCIAL SERVICES RESIDENTIAL,Adult Social Care & Health,Personal Budget - Third Party
Royal Borough of Kingston,01/06/2022,90141929,"5,066.40",0,THE HOME FARM TRUST LTD,SOCIAL SERVICES RESIDENTIAL,Adult Social Care & Health,Personal Budget - Third Party
Royal Borough of Kingston,01/06/2022,90141939,"7,189.37",0,THE HOME FARM TRUST LTD,SOCIAL SERVICES RESIDENTIAL,Adult Social Care & Health,Personal Budget - Third Party
Royal Borough of Kingston,01/06/2022,90141949,652.84,0,THE HOME FARM TRUST LTD,SOCIAL SERVICES RESIDENTIAL,Adult Social Care & Health,Personal Budget - Third Party
Royal Borough of Kingston,01/06/2022,90141951,"1,611.69",0,THE HOME FARM TRUST LTD,SOCIAL SERVICES RESIDENTIAL,Adult Social Care & Health,Personal Budget - Third Party
Royal Borough of Kingston,01/06/2022,90141987,"6,834.77",0,THE HOME FARM TRUST LTD,SOCIAL SERVICES RESIDENTIAL,Adult Social Care & Health,Personal Budget - Third Party
Royal Borough of Kingston,01/06/2022,90140941,"4,408.33",0,THE MANOR CARE HOME (SUSSEX) LLP,SOCIAL SERVICES RESIDENTIAL,Adult Social Care & Health,Independent Placements
Royal Borough of Kingston,01/06/2022,90140920,"5,655.34",0,THE MEATH TRUST,SOCIAL SERVICES RESIDENTIAL,Adult Social Care & Health,Independent Placements
Royal Borough of Kingston,01/06/2022,90140928,"5,280.00",0,THE MEATH TRUST,SOCIAL SERVICES RESIDENTIAL,Adult Social Care & Health,Independent Placements
Royal Borough of Kingston,01/06/2022,90141051,"7,960.93",0,THE MEATH TRUST,SOCIAL SERVICES RESIDENTIAL,Adult Social Care & Health,Other Private Contractors - Third Party
Royal Borough of Kingston,01/06/2022,90141003,"5,343.43",0,The Partnership In Care Ltd,ACCOMMODATION - OTHER,Adult Social Care & Health,Independent Placements
Royal Borough of Kingston,01/06/2022,90140972,"10,766.40",0,THE PRIORY GROUP,SOCIAL SERVICES RESIDENTIAL,Adult Social Care & Health,Independent Placements
Royal Borough of Kingston,01/06/2022,90140601,"3,339.64",0,THE ROYAL STAR AND GARTER HOME,SOCIAL SERVICES RESIDENTIAL,Adult Social Care & Health,Independent Placements
Royal Borough of Kingston,01/06/2022,90140629,"3,406.46",0,THE ROYAL STAR AND GARTER HOME,SOCIAL SERVICES RESIDENTIAL,Adult Social Care & Health,Independent Placements
Royal Borough of Kingston,01/06/2022,90140661,"3,339.64",0,THE ROYAL STAR AND GARTER HOME,SOCIAL SERVICES RESIDENTIAL,Adult Social Care & Health,Independent Placements
Royal Borough of Kingston,01/06/2022,90140664,"2,157.42",0,THE ROYAL STAR AND GARTER HOME,SOCIAL SERVICES RESIDENTIAL,Adult Social Care & Health,Independent Placements
Royal Borough of Kingston,01/06/2022,90140666,"6,721.16",0,THE ROYAL STAR AND GARTER HOME,SOCIAL SERVICES RESIDENTIAL,Adult Social Care & Health,Independent Placements
Royal Borough of Kingston,01/06/2022,90140667,"3,339.64",0,THE ROYAL STAR AND GARTER HOME,SOCIAL SERVICES RESIDENTIAL,Adult Social Care & Health,Independent Placements
Royal Borough of Kingston,01/06/2022,90140668,"3,406.46",0,THE ROYAL STAR AND GARTER HOME,SOCIAL SERVICES RESIDENTIAL,Adult Social Care & Health,Independent Placements
Royal Borough of Kingston,01/06/2022,90132357,"26,269.65",0,THE STUDY SCHOOL LTD,ACADEMIC INSTNS - OTHER,Schools,PVI Providers
Royal Borough of Kingston,01/06/2022,90140609,"3,339.64",0,THE WHITE HOUSE NURSING HOME LTD,SOCIAL SERVICES RESIDENTIAL,Adult Social Care & Health,Independent Placements
Royal Borough of Kingston,01/06/2022,90140620,"3,740.40",0,THE WHITE HOUSE NURSING HOME LTD,SOCIAL SERVICES RESIDENTIAL,Adult Social Care & Health,Independent Placements
Royal Borough of Kingston,01/06/2022,90140622,"3,740.40",0,THE WHITE HOUSE NURSING HOME LTD,SOCIAL SERVICES RESIDENTIAL,Adult Social Care & Health,Independent Placements
Royal Borough of Kingston,01/06/2022,90140623,"3,740.40",0,THE WHITE HOUSE NURSING HOME LTD,SOCIAL SERVICES RESIDENTIAL,Adult Social Care & Health,Independent Placements
Royal Borough of Kingston,01/06/2022,90140632,"3,339.64",0,THE WHITE HOUSE NURSING HOME LTD,SOCIAL SERVICES RESIDENTIAL,Adult Social Care & Health,Independent Placements
Royal Borough of Kingston,01/06/2022,90140641,"4,898.14",0,THE WHITE HOUSE NURSING HOME LTD,SOCIAL SERVICES RESIDENTIAL,Adult Social Care & Health,Independent Placements
Royal Borough of Kingston,01/06/2022,90140649,"3,642.43",0,THE WHITE HOUSE NURSING HOME LTD,SOCIAL SERVICES RESIDENTIAL,Adult Social Care & Health,Independent Placements
Royal Borough of Kingston,01/06/2022,90140657,"3,720.00",0,THE WHITE HOUSE NURSING HOME LTD,SOCIAL SERVICES RESIDENTIAL,Adult Social Care & Health,Independent Placements
Royal Borough of Kingston,01/06/2022,90140658,"-3,720.00",0,THE WHITE HOUSE NURSING HOME LTD,SOCIAL SERVICES RESIDENTIAL,Adult Social Care & Health,Independent Placements
Royal Borough of Kingston,01/06/2022,90140659,"3,600.00",0,THE WHITE HOUSE NURSING HOME LTD,SOCIAL SERVICES RESIDENTIAL,Adult Social Care & Health,Independent Placements
Royal Borough of Kingston,01/06/2022,90140669,"3,740.40",0,THE WHITE HOUSE NURSING HOME LTD,SOCIAL SERVICES RESIDENTIAL,Adult Social Care & Health,Independent Placements
Royal Borough of Kingston,01/06/2022,90141006,"3,562.29",0,THEANA LIMITED,SOCIAL SERVICES RESIDENTIAL,Adult Social Care & Health,Independent Placements
Royal Borough of Kingston,01/06/2022,90140685,"11,132.14",0,TITLEWORTH NEURO,SOCIAL SERVICES RESIDENTIAL,Adult Social Care & Health,Independent Placements
Royal Borough of Kingston,01/06/2022,90140707,"5,343.43",0,TREEMONT CARE LTD ,SOCIAL SERVICES - OTHER,Adult Social Care & Health,Independent Placements
Royal Borough of Kingston,01/06/2022,90140721,"3,954.13",0,TREEMONT CARE LTD ,SOCIAL SERVICES - OTHER,Adult Social Care & Health,Independent Placements
Royal Borough of Kingston,01/06/2022,90140733,"4,007.57",0,TREEMONT CARE LTD ,SOCIAL SERVICES - OTHER,Adult Social Care & Health,Independent Placements
Royal Borough of Kingston,01/06/2022,90140738,"3,094.76",0,TREEMONT CARE LTD ,SOCIAL SERVICES - OTHER,Adult Social Care & Health,Independent Placements
Royal Borough of Kingston,01/06/2022,90140839,"3,339.64",0,TREEMONT CARE LTD ,SOCIAL SERVICES - OTHER,Adult Social Care & Health,Independent Placements
Royal Borough of Kingston,01/06/2022,90140862,"3,784.93",0,TREEMONT CARE LTD ,SOCIAL SERVICES - OTHER,Adult Social Care & Health,Independent Placements
Royal Borough of Kingston,01/06/2022,90140890,"3,339.64",0,TREEMONT CARE LTD ,SOCIAL SERVICES - OTHER,Adult Social Care & Health,Independent Placements
Royal Borough of Kingston,01/06/2022,90140891,"3,784.93",0,TREEMONT CARE LTD ,SOCIAL SERVICES - OTHER,Adult Social Care & Health,Independent Placements
Royal Borough of Kingston,01/06/2022,90132353,"11,051.37",0,UNITED CHURCH SCHOOLS SURBITON HIGH,GRANTS & EX GRATIA PAYMENTS,Schools,PVI Providers
Royal Borough of Kingston,01/06/2022,90140961,"6,688.46",0,UNITED RESPONSE,SOCIAL SERVICES RESIDENTIAL,Adult Social Care & Health,Independent Placements
Royal Borough of Kingston,01/06/2022,90141763,856.5,0,UNITED RESPONSE,SOCIAL SERVICES RESIDENTIAL,Adult Social Care & Health,Personal Budget - Third Party
Royal Borough of Kingston,01/06/2022,90141837,"7,586.83",0,UNITED RESPONSE,SOCIAL SERVICES RESIDENTIAL,Adult Social Care & Health,Personal Budget - Third Party
Royal Borough of Kingston,01/06/2022,90141842,"2,302.24",0,UNITED RESPONSE,SOCIAL SERVICES RESIDENTIAL,Adult Social Care & Health,Personal Budget - Third Party
Royal Borough of Kingston,01/06/2022,90141867,"2,302.24",0,UNITED RESPONSE,SOCIAL SERVICES RESIDENTIAL,Adult Social Care & Health,Personal Budget - Third Party
Royal Borough of Kingston,01/06/2022,90141887,"3,019.11",0,UNITED RESPONSE,SOCIAL SERVICES RESIDENTIAL,Adult Social Care & Health,Personal Budget - Third Party
Royal Borough of Kingston,01/06/2022,90141900,"7,075.67",0,UNITED RESPONSE,SOCIAL SERVICES RESIDENTIAL,Adult Social Care & Health,Personal Budget - Third Party
Royal Borough of Kingston,01/06/2022,90141943,"7,134.43",0,UNITED RESPONSE,SOCIAL SERVICES RESIDENTIAL,Adult Social Care & Health,Personal Budget - Third Party
Royal Borough of Kingston,01/06/2022,90141990,"6,464.70",0,UNITED RESPONSE,SOCIAL SERVICES RESIDENTIAL,Adult Social Care & Health,Personal Budget - Third Party
Royal Borough of Kingston,01/06/2022,90132321,790.56,0,REDACTED - PERSONAL DATA,CHILDMINDERS START UP GRANT,Schools,PVI Providers
Royal Borough of Kingston,01/06/2022,90132265,790.56,0,REDACTED - PERSONAL DATA,CHILDMINDERS START UP GRANT,Schools,PVI Providers
Royal Borough of Kingston,01/06/2022,90140938,"9,798.51",0,VOYAGE LTD,SOCIAL SERVICES RESIDENTIAL,Adult Social Care & Health,Independent Placements
Royal Borough of Kingston,01/06/2022,90141849,"7,535.23",0,VOYAGE LTD,SOCIAL SERVICES RESIDENTIAL,Adult Social Care & Health,Personal Budget - Third Party
Royal Borough of Kingston,01/06/2022,90141864,"7,535.23",0,VOYAGE LTD,SOCIAL SERVICES RESIDENTIAL,Adult Social Care & Health,Personal Budget - Third Party
Royal Borough of Kingston,01/06/2022,90141874,864.94,0,VOYAGE LTD,SOCIAL SERVICES RESIDENTIAL,Adult Social Care & Health,Personal Budget - Third Party
Royal Borough of Kingston,01/06/2022,90141880,"2,024.19",0,VOYAGE LTD,SOCIAL SERVICES RESIDENTIAL,Adult Social Care & Health,Personal Budget - Third Party
Royal Borough of Kingston,01/06/2022,90141937,"3,775.93",0,VOYAGE LTD,SOCIAL SERVICES RESIDENTIAL,Adult Social Care & Health,Personal Budget - Third Party
Royal Borough of Kingston,01/06/2022,90141960,"8,285.40",0,VOYAGE LTD,SOCIAL SERVICES RESIDENTIAL,Adult Social Care & Health,Personal Budget - Third Party
Royal Borough of Kingston,01/06/2022,90141967,"1,006.46",0,VOYAGE LTD,SOCIAL SERVICES RESIDENTIAL,Adult Social Care & Health,Personal Budget - Third Party
Royal Borough of Kingston,01/06/2022,90140908,"7,986.43",0,WELMEDE HOUSING ASSOCIATION LTD,ACCOMMODATION - OTHER,Adult Social Care & Health,Independent Placements
Royal Borough of Kingston,01/06/2022,90140909,"6,548.14",0,WELMEDE HOUSING ASSOCIATION LTD,ACCOMMODATION - OTHER,Adult Social Care & Health,Independent Placements
Royal Borough of Kingston,01/06/2022,90141805,"6,338.10",0,WELMEDE HOUSING ASSOCIATION LTD,ACCOMMODATION - OTHER,Adult Social Care & Health,Personal Budget - Third Party
Royal Borough of Kingston,01/06/2022,90141806,"5,394.56",0,WELMEDE HOUSING ASSOCIATION LTD,ACCOMMODATION - OTHER,Adult Social Care & Health,Personal Budget - Third Party
Royal Borough of Kingston,01/06/2022,90141812,"4,835.40",0,WELMEDE HOUSING ASSOCIATION LTD,ACCOMMODATION - OTHER,Adult Social Care & Health,Personal Budget - Third Party
Royal Borough of Kingston,01/06/2022,90141822,"5,394.56",0,WELMEDE HOUSING ASSOCIATION LTD,ACCOMMODATION - OTHER,Adult Social Care & Health,Personal Budget - Third Party
Royal Borough of Kingston,01/06/2022,90141827,"4,835.40",0,WELMEDE HOUSING ASSOCIATION LTD,ACCOMMODATION - OTHER,Adult Social Care & Health,Personal Budget - Third Party
Royal Borough of Kingston,01/06/2022,90141828,"1,960.67",0,WELMEDE HOUSING ASSOCIATION LTD,ACCOMMODATION - OTHER,Adult Social Care & Health,Personal Budget - Third Party
Royal Borough of Kingston,01/06/2022,90141829,"5,419.97",0,WELMEDE HOUSING ASSOCIATION LTD,ACCOMMODATION - OTHER,Adult Social Care & Health,Personal Budget - Third Party
Royal Borough of Kingston,01/06/2022,90141834,"4,312.54",0,WELMEDE HOUSING ASSOCIATION LTD,ACCOMMODATION - OTHER,Adult Social Care & Health,Personal Budget - Third Party
Royal Borough of Kingston,01/06/2022,90141844,"5,706.51",0,WELMEDE HOUSING ASSOCIATION LTD,ACCOMMODATION - OTHER,Adult Social Care & Health,Personal Budget - Third Party
Royal Borough of Kingston,01/06/2022,90141845,"5,419.97",0,WELMEDE HOUSING ASSOCIATION LTD,ACCOMMODATION - OTHER,Adult Social Care & Health,Personal Budget - Third Party
Royal Borough of Kingston,01/06/2022,90141850,"2,876.74",0,WELMEDE HOUSING ASSOCIATION LTD,ACCOMMODATION - OTHER,Adult Social Care & Health,Personal Budget - Third Party
Royal Borough of Kingston,01/06/2022,90141869,"1,884.77",0,WELMEDE HOUSING ASSOCIATION LTD,ACCOMMODATION - OTHER,Adult Social Care & Health,Personal Budget - Third Party
Royal Borough of Kingston,01/06/2022,90141877,"2,360.06",0,WELMEDE HOUSING ASSOCIATION LTD,ACCOMMODATION - OTHER,Adult Social Care & Health,Personal Budget - Third Party
Royal Borough of Kingston,01/06/2022,90141878,"13,806.34",0,WELMEDE HOUSING ASSOCIATION LTD,ACCOMMODATION - OTHER,Adult Social Care & Health,Personal Budget - Third Party
Royal Borough of Kingston,01/06/2022,90141885,"4,835.40",0,WELMEDE HOUSING ASSOCIATION LTD,ACCOMMODATION - OTHER,Adult Social Care & Health,Personal Budget - Third Party
Royal Borough of Kingston,01/06/2022,90141886,"4,312.54",0,WELMEDE HOUSING ASSOCIATION LTD,ACCOMMODATION - OTHER,Adult Social Care & Health,Personal Budget - Third Party
Royal Borough of Kingston,01/06/2022,90141909,"2,564.19",0,WELMEDE HOUSING ASSOCIATION LTD,ACCOMMODATION - OTHER,Adult Social Care & Health,Personal Budget - Third Party
Royal Borough of Kingston,01/06/2022,90141911,"2,219.56",0,WELMEDE HOUSING ASSOCIATION LTD,ACCOMMODATION - OTHER,Adult Social Care & Health,Personal Budget - Third Party
Royal Borough of Kingston,01/06/2022,90141913,"1,995.77",0,WELMEDE HOUSING ASSOCIATION LTD,ACCOMMODATION - OTHER,Adult Social Care & Health,Personal Budget - Third Party
Royal Borough of Kingston,01/06/2022,90141925,"5,419.97",0,WELMEDE HOUSING ASSOCIATION LTD,ACCOMMODATION - OTHER,Adult Social Care & Health,Personal Budget - Third Party
Royal Borough of Kingston,01/06/2022,90141945,"4,312.54",0,WELMEDE HOUSING ASSOCIATION LTD,ACCOMMODATION - OTHER,Adult Social Care & Health,Personal Budget - Third Party
Royal Borough of Kingston,01/06/2022,90141948,"5,394.56",0,WELMEDE HOUSING ASSOCIATION LTD,ACCOMMODATION - OTHER,Adult Social Care & Health,Personal Budget - Third Party
Royal Borough of Kingston,01/06/2022,90141954,"4,312.54",0,WELMEDE HOUSING ASSOCIATION LTD,ACCOMMODATION - OTHER,Adult Social Care & Health,Personal Budget - Third Party
Royal Borough of Kingston,01/06/2022,90141986,"1,652.06",0,WELMEDE HOUSING ASSOCIATION LTD,ACCOMMODATION - OTHER,Adult Social Care & Health,Personal Budget - Third Party
Royal Borough of Kingston,01/06/2022,90142000,"4,312.54",0,WELMEDE HOUSING ASSOCIATION LTD,ACCOMMODATION - OTHER,Adult Social Care & Health,Personal Budget - Third Party
Royal Borough of Kingston,01/06/2022,90142354,-672.64,0,WELMEDE HOUSING ASSOCIATION LTD,ACCOMMODATION - OTHER,Adult Social Care & Health,Financially Assessed Contributions clients � Non VAT
Royal Borough of Kingston,01/06/2022,90132252,"1,126.80",0,WESTBURY HOUSE SCHOOL,GRANTS & EX GRATIA PAYMENTS,Schools,2 Yr Old Place Funding
Royal Borough of Kingston,01/06/2022,90132361,"14,773.59",0,WESTBURY HOUSE SCHOOL,GRANTS & EX GRATIA PAYMENTS,Schools,PVI Providers
Royal Borough of Kingston,01/06/2022,90140575,"2,270.96",0,WILLOW GRANGE CARE LTD,SOCIAL SERVICES RESIDENTIAL,Adult Social Care & Health,Independent Placements
Royal Borough of Kingston,01/06/2022,90140576,"4,230.21",0,WILLOW GRANGE CARE LTD,SOCIAL SERVICES RESIDENTIAL,Adult Social Care & Health,Independent Placements
Royal Borough of Kingston,01/06/2022,90140577,"3,784.93",0,WILLOW GRANGE CARE LTD,SOCIAL SERVICES RESIDENTIAL,Adult Social Care & Health,Independent Placements
Royal Borough of Kingston,01/06/2022,90140593,"3,562.29",0,WILLOW GRANGE CARE LTD,SOCIAL SERVICES RESIDENTIAL,Adult Social Care & Health,Independent Placements
Royal Borough of Kingston,01/06/2022,90140627,"2,172.99",0,WILLOW GRANGE CARE LTD,SOCIAL SERVICES RESIDENTIAL,Adult Social Care & Health,Independent Placements
Royal Borough of Kingston,01/06/2022,90140646,"2,916.64",0,WILLOW GRANGE CARE LTD,SOCIAL SERVICES RESIDENTIAL,Adult Social Care & Health,Independent Placements
Royal Borough of Kingston,01/06/2022,90140650,"3,562.29",0,WILLOW GRANGE CARE LTD,SOCIAL SERVICES RESIDENTIAL,Adult Social Care & Health,Independent Placements
Royal Borough of Kingston,01/06/2022,90140652,"3,179.36",0,WILLOW GRANGE CARE LTD,SOCIAL SERVICES RESIDENTIAL,Adult Social Care & Health,Independent Placements
Royal Borough of Kingston,01/06/2022,90140662,"3,339.64",0,WILLOW GRANGE CARE LTD,SOCIAL SERVICES RESIDENTIAL,Adult Social Care & Health,Independent Placements
Royal Borough of Kingston,01/06/2022,90140673,"3,784.93",0,WILLOW GRANGE CARE LTD,SOCIAL SERVICES RESIDENTIAL,Adult Social Care & Health,Independent Placements
Royal Borough of Kingston,01/06/2022,90140676,"3,784.93",0,WILLOW GRANGE CARE LTD,SOCIAL SERVICES RESIDENTIAL,Adult Social Care & Health,Independent Placements
Royal Borough of Kingston,01/06/2022,90140677,"4,007.57",0,WILLOW GRANGE CARE LTD,SOCIAL SERVICES RESIDENTIAL,Adult Social Care & Health,Independent Placements
Royal Borough of Kingston,01/06/2022,90140825,"3,731.49",0,WILLOW GRANGE CARE LTD,SOCIAL SERVICES RESIDENTIAL,Adult Social Care & Health,Independent Placements
Royal Borough of Kingston,01/06/2022,90140904,"3,988.37",0,WILLOW GRANGE CARE LTD,SOCIAL SERVICES RESIDENTIAL,Adult Social Care & Health,Independent Placements
Royal Borough of Kingston,01/06/2022,90140906,"3,991.20",0,WILLOW GRANGE CARE LTD,SOCIAL SERVICES RESIDENTIAL,Adult Social Care & Health,Independent Placements
Royal Borough of Kingston,01/06/2022,90141039,"3,179.36",0,WILLOW GRANGE CARE LTD,SOCIAL SERVICES RESIDENTIAL,Adult Social Care & Health,Other Private Contractors - Third Party
Royal Borough of Kingston,01/06/2022,90140636,"3,517.76",0,Willow Lodge Nursing Home Ltd,SOCIAL SERVICES RESIDENTIAL,Adult Social Care & Health,Independent Placements
Royal Borough of Kingston,01/06/2022,90132279,"13,834.80",0,REDACTED - PERSONAL DATA,SOCIAL SERVICES - OTHER,Schools,PVI Providers
Royal Borough of Kingston,01/06/2022,90142010,520.67,0,ZEDCARZ LTD,TAXI AND COACH HIRE,Adult Social Care & Health,Personal Budget - Third Party
Royal Borough of Kingston,01/06/2022,90142021,618.13,0,ZEDCARZ LTD,TAXI AND COACH HIRE,Adult Social Care & Health,Personal Budget - Third Party
Royal Borough of Kingston,01/06/2022,90142022,866.57,0,ZEDCARZ LTD,TAXI AND COACH HIRE,Adult Social Care & Health,Personal Budget - Third Party
Royal Borough of Kingston,02/06/2022,70025435,785,0,HOUSING REVIEWS LIMITED,LEGAL & PROFESSIONAL SERVICES,Place,Professional Fees
Royal Borough of Kingston,03/06/2022,70025864,"23,162.99",0,KINGSLEY ROOFING (LONDON) LTD,CONSTRUCTION INDUSTRY,Capital Programme,Buildings - Design & Planning
Royal Borough of Kingston,06/06/2022,90138578,"2,861.90",0,ALPENBEST LTD,SOCIAL SERVICES DAY CARE,Adult Social Care & Health,Homecare - new framework
Royal Borough of Kingston,06/06/2022,90138584,"2,861.90",0,ALPENBEST LTD,SOCIAL SERVICES DAY CARE,Adult Social Care & Health,Homecare - new framework
Royal Borough of Kingston,06/06/2022,90138589,796.26,0,ALPENBEST LTD,SOCIAL SERVICES DAY CARE,Adult Social Care & Health,Homecare - new framework
Royal Borough of Kingston,06/06/2022,90138631,551.25,0,ALPENBEST LTD,SOCIAL SERVICES DAY CARE,Adult Social Care & Health,Homecare - new framework
Royal Borough of Kingston,06/06/2022,90138644,560,0,ALPENBEST LTD,SOCIAL SERVICES DAY CARE,Adult Social Care & Health,Homecare - new framework
Royal Borough of Kingston,06/06/2022,90138658,"1,470.01",0,ALPENBEST LTD,SOCIAL SERVICES DAY CARE,Adult Social Care & Health,Homecare - new framework
Royal Borough of Kingston,06/06/2022,90138672,612.5,0,ALPENBEST LTD,SOCIAL SERVICES DAY CARE,Adult Social Care & Health,Homecare - new framework
Royal Borough of Kingston,06/06/2022,90138698,551.25,0,ALPENBEST LTD,SOCIAL SERVICES DAY CARE,Adult Social Care & Health,Homecare - new framework
Royal Borough of Kingston,06/06/2022,90138701,551.25,0,ALPENBEST LTD,SOCIAL SERVICES DAY CARE,Adult Social Care & Health,Homecare - new framework
Royal Borough of Kingston,06/06/2022,90138726,735.01,0,ALPENBEST LTD,SOCIAL SERVICES DAY CARE,Adult Social Care & Health,Homecare - new framework
Royal Borough of Kingston,06/06/2022,90138759,551.25,0,ALPENBEST LTD,SOCIAL SERVICES DAY CARE,Adult Social Care & Health,Homecare - new framework
Royal Borough of Kingston,06/06/2022,90138773,551.25,0,ALPENBEST LTD,SOCIAL SERVICES DAY CARE,Adult Social Care & Health,Homecare - new framework
Royal Borough of Kingston,06/06/2022,90138798,551.25,0,ALPENBEST LTD,SOCIAL SERVICES DAY CARE,Adult Social Care & Health,Homecare - new framework
Royal Borough of Kingston,06/06/2022,90138809,577.5,0,ALPENBEST LTD,SOCIAL SERVICES DAY CARE,Adult Social Care & Health,Homecare - new framework
Royal Borough of Kingston,06/06/2022,90138841,612.5,0,ALPENBEST LTD,SOCIAL SERVICES DAY CARE,Adult Social Care & Health,Homecare - new framework
Royal Borough of Kingston,06/06/2022,90138842,551.25,0,ALPENBEST LTD,SOCIAL SERVICES DAY CARE,Adult Social Care & Health,Homecare - new framework
Royal Borough of Kingston,06/06/2022,90138851,551.25,0,ALPENBEST LTD,SOCIAL SERVICES DAY CARE,Adult Social Care & Health,Homecare - new framework
Royal Borough of Kingston,06/06/2022,90138853,551.25,0,ALPENBEST LTD,SOCIAL SERVICES DAY CARE,Adult Social Care & Health,Homecare - new framework
Royal Borough of Kingston,06/06/2022,90138971,551.25,0,ALPENBEST LTD,SOCIAL SERVICES DAY CARE,Adult Social Care & Health,Homecare - new framework
Royal Borough of Kingston,06/06/2022,90138975,735.01,0,ALPENBEST LTD,SOCIAL SERVICES DAY CARE,Adult Social Care & Health,Homecare - new framework
Royal Borough of Kingston,06/06/2022,90139004,525,0,ALPENBEST LTD,SOCIAL SERVICES DAY CARE,Adult Social Care & Health,Homecare - new framework
Royal Borough of Kingston,06/06/2022,90139006,603.75,0,ALPENBEST LTD,SOCIAL SERVICES DAY CARE,Adult Social Care & Health,Homecare - new framework
Royal Borough of Kingston,06/06/2022,90139013,673.75,0,ALPENBEST LTD,SOCIAL SERVICES DAY CARE,Adult Social Care & Health,Homecare - new framework
Royal Borough of Kingston,06/06/2022,90139023,726.26,0,ALPENBEST LTD,SOCIAL SERVICES DAY CARE,Adult Social Care & Health,Homecare - new framework
Royal Borough of Kingston,06/06/2022,90139037,612.5,0,ALPENBEST LTD,SOCIAL SERVICES DAY CARE,Adult Social Care & Health,Homecare - new framework
Royal Borough of Kingston,06/06/2022,90139176,735.01,0,ALPENBEST LTD,SOCIAL SERVICES DAY CARE,Adult Social Care & Health,Personal Budget - Third Party
Royal Borough of Kingston,06/06/2022,90139212,612.5,0,ALPENBEST LTD,SOCIAL SERVICES DAY CARE,Adult Social Care & Health,Personal Budget - Third Party
Royal Borough of Kingston,06/06/2022,70025514,"1,085.00",0,AP RENTAL INC LTD,LANDLORDS,Adult Social Care & Health,Housing Benefit - Rent Allowances -Private Tenants Only
Royal Borough of Kingston,06/06/2022,70025515,"1,200.00",0,AP RENTAL INC LTD,LANDLORDS,Adult Social Care & Health,Housing Benefit - Rent Allowances -Private Tenants Only
Royal Borough of Kingston,06/06/2022,70025516,"1,235.00",0,AP RENTAL INC LTD,LANDLORDS,Adult Social Care & Health,Housing Benefit - Rent Allowances -Private Tenants Only
Royal Borough of Kingston,06/06/2022,70025517,"1,235.00",0,AP RENTAL INC LTD,LANDLORDS,Adult Social Care & Health,Housing Benefit - Rent Allowances -Private Tenants Only
Royal Borough of Kingston,06/06/2022,70025518,"1,260.00",0,AP RENTAL INC LTD,LANDLORDS,Adult Social Care & Health,Housing Benefit - Rent Allowances -Private Tenants Only
Royal Borough of Kingston,06/06/2022,70025519,"1,035.00",0,AP RENTAL INC LTD,LANDLORDS,Adult Social Care & Health,Housing Benefit - Rent Allowances -Private Tenants Only
Royal Borough of Kingston,06/06/2022,90139155,543.26,0,BLUE ARROW CARE LTD,SOCIAL SERVICES-HOME CARE,Adult Social Care & Health,Personal Budget - Third Party
Royal Borough of Kingston,06/06/2022,90139202,603.63,0,BLUE ARROW CARE LTD,SOCIAL SERVICES-HOME CARE,Adult Social Care & Health,Personal Budget - Third Party
Royal Borough of Kingston,06/06/2022,90139213,543.26,0,BLUE ARROW CARE LTD,SOCIAL SERVICES-HOME CARE,Adult Social Care & Health,Personal Budget - Third Party
Royal Borough of Kingston,06/06/2022,90139231,724.35,0,BLUE ARROW CARE LTD,SOCIAL SERVICES-HOME CARE,Adult Social Care & Health,Personal Budget - Third Party
Royal Borough of Kingston,06/06/2022,90141102,612.51,0,Bright Star Care Service Ltd,SOCIAL SERVICES - OTHER,Adult Social Care & Health,Homecare - new framework
Royal Borough of Kingston,06/06/2022,90141216,673.75,0,Bright Star Care Service Ltd,SOCIAL SERVICES - OTHER,Adult Social Care & Health,Homecare - new framework
Royal Borough of Kingston,06/06/2022,90141346,551.25,0,Bright Star Care Service Ltd,SOCIAL SERVICES - OTHER,Adult Social Care & Health,Homecare - new framework
Royal Borough of Kingston,06/06/2022,90141353,735.01,0,Bright Star Care Service Ltd,SOCIAL SERVICES - OTHER,Adult Social Care & Health,Homecare - new framework
Royal Borough of Kingston,06/06/2022,90142250,612.5,0,Bright Star Care Service Ltd,SOCIAL SERVICES - OTHER,Adult Social Care & Health,Personal Budget - Third Party
Royal Borough of Kingston,06/06/2022,90138718,735.01,0,CARLCARE LTD,SOCIAL SERVICES-HOME CARE,Adult Social Care & Health,Homecare - new framework
Royal Borough of Kingston,06/06/2022,90139009,595.01,0,CARLCARE LTD,SOCIAL SERVICES-HOME CARE,Adult Social Care & Health,Homecare - new framework
Royal Borough of Kingston,06/06/2022,90138764,551.25,0,CN Healthcare,SOCIAL SERVICES - OTHER,Adult Social Care & Health,Homecare - new framework
Royal Borough of Kingston,06/06/2022,90138774,918.76,0,CN Healthcare,SOCIAL SERVICES - OTHER,Adult Social Care & Health,Homecare - new framework
Royal Borough of Kingston,06/06/2022,90139100,980,0,CN Healthcare,SOCIAL SERVICES - OTHER,Adult Social Care & Health,Homecare - new framework
Royal Borough of Kingston,06/06/2022,90139154,500.15,0,DAY AND NITE SERVICES (KINGSTON),SOCIAL SERVICES-HOME CARE,Adult Social Care & Health,Personal Budget - Third Party
Royal Borough of Kingston,06/06/2022,90139159,543.26,0,DAY AND NITE SERVICES (KINGSTON),SOCIAL SERVICES-HOME CARE,Adult Social Care & Health,Personal Budget - Third Party
Royal Borough of Kingston,06/06/2022,90139252,663.99,0,DAY AND NITE SERVICES (KINGSTON),SOCIAL SERVICES-HOME CARE,Adult Social Care & Health,Personal Budget - Third Party
Royal Borough of Kingston,06/06/2022,70025520,950,0,DEXTERS LIMITED,LANDLORDS,Adult Social Care & Health,Building Rents
Royal Borough of Kingston,06/06/2022,70025766,"1,280.46",0,Ethical Lettings CIC,SUNDRY SUPPLIER - HOUSING,Place,Prevention Of Homelessness
Royal Borough of Kingston,06/06/2022,70025767,"1,000.00",0,Ethical Lettings CIC,SUNDRY SUPPLIER - HOUSING,Place,Housing Incentives
Royal Borough of Kingston,06/06/2022,90138575,612.51,0,Global Homecare,SOCIAL SERVICES-HOME CARE,Adult Social Care & Health,Homecare - new framework
Royal Borough of Kingston,06/06/2022,90138609,"2,861.90",0,Global Homecare,SOCIAL SERVICES-HOME CARE,Adult Social Care & Health,Homecare - new framework
Royal Borough of Kingston,06/06/2022,90138753,"1,635.37",0,Global Homecare,SOCIAL SERVICES-HOME CARE,Adult Social Care & Health,Homecare - new framework
Royal Borough of Kingston,06/06/2022,90138846,"1,226.53",0,Global Homecare,SOCIAL SERVICES-HOME CARE,Adult Social Care & Health,Homecare - new framework
Royal Borough of Kingston,06/06/2022,90138847,"2,861.90",0,Global Homecare,SOCIAL SERVICES-HOME CARE,Adult Social Care & Health,Homecare - new framework
Royal Borough of Kingston,06/06/2022,90138848,"2,861.90",0,Global Homecare,SOCIAL SERVICES-HOME CARE,Adult Social Care & Health,Homecare - new framework
Royal Borough of Kingston,06/06/2022,90138588,"2,861.90",0,Goldsmith Personnel Ltd,SOCIAL SERVICES - OTHER,Adult Social Care & Health,Homecare - new framework
Royal Borough of Kingston,06/06/2022,90138567,"1,226.53",0,HELMAR CARE AND COMMUNITY SERVICES LTD,SOCIAL SERVICES DAY CARE,Adult Social Care & Health,Homecare - new framework
Royal Borough of Kingston,06/06/2022,90138856,963.78,0,HELMAR CARE AND COMMUNITY SERVICES LTD,SOCIAL SERVICES DAY CARE,Adult Social Care & Health,Homecare - new framework
Royal Borough of Kingston,06/06/2022,90138981,"2,861.90",0,HELMAR CARE AND COMMUNITY SERVICES LTD,SOCIAL SERVICES DAY CARE,Adult Social Care & Health,Homecare - new framework
Royal Borough of Kingston,06/06/2022,90139087,630,0,HELMAR CARE AND COMMUNITY SERVICES LTD,SOCIAL SERVICES DAY CARE,Adult Social Care & Health,Homecare - new framework
Royal Borough of Kingston,06/06/2022,90139088,550.73,0,HELMAR CARE AND COMMUNITY SERVICES LTD,SOCIAL SERVICES DAY CARE,Adult Social Care & Health,Homecare - new framework
Royal Borough of Kingston,06/06/2022,90139134,"2,861.90",0,HELMAR CARE AND COMMUNITY SERVICES LTD,SOCIAL SERVICES DAY CARE,Adult Social Care & Health,Homecare - new framework
Royal Borough of Kingston,06/06/2022,90141184,735.01,0,Humble Healthcare Ltd,SOCIAL SERVICES - OTHER,Adult Social Care & Health,Homecare - new framework
Royal Borough of Kingston,06/06/2022,90138591,-603.75,0,INSPIRE MANAGEMENT GROUP LTD,SOCIAL SERVICES DAY CARE,Adult Social Care & Health,Homecare - new framework
Royal Borough of Kingston,06/06/2022,90138592,-603.75,0,INSPIRE MANAGEMENT GROUP LTD,SOCIAL SERVICES DAY CARE,Adult Social Care & Health,Homecare - new framework
Royal Borough of Kingston,06/06/2022,90138593,-603.75,0,INSPIRE MANAGEMENT GROUP LTD,SOCIAL SERVICES DAY CARE,Adult Social Care & Health,Homecare - new framework
Royal Borough of Kingston,06/06/2022,90138594,-603.75,0,INSPIRE MANAGEMENT GROUP LTD,SOCIAL SERVICES DAY CARE,Adult Social Care & Health,Homecare - new framework
Royal Borough of Kingston,06/06/2022,90138595,-607.5,0,INSPIRE MANAGEMENT GROUP LTD,SOCIAL SERVICES DAY CARE,Adult Social Care & Health,Homecare - new framework
Royal Borough of Kingston,06/06/2022,90138596,-612.51,0,INSPIRE MANAGEMENT GROUP LTD,SOCIAL SERVICES DAY CARE,Adult Social Care & Health,Homecare - new framework
Royal Borough of Kingston,06/06/2022,90138597,-612.51,0,INSPIRE MANAGEMENT GROUP LTD,SOCIAL SERVICES DAY CARE,Adult Social Care & Health,Homecare - new framework
Royal Borough of Kingston,06/06/2022,90138598,-612.51,0,INSPIRE MANAGEMENT GROUP LTD,SOCIAL SERVICES DAY CARE,Adult Social Care & Health,Homecare - new framework
Royal Borough of Kingston,06/06/2022,90138599,-612.51,0,INSPIRE MANAGEMENT GROUP LTD,SOCIAL SERVICES DAY CARE,Adult Social Care & Health,Homecare - new framework
Royal Borough of Kingston,06/06/2022,90138600,-612.51,0,INSPIRE MANAGEMENT GROUP LTD,SOCIAL SERVICES DAY CARE,Adult Social Care & Health,Homecare - new framework
Royal Borough of Kingston,06/06/2022,90138601,-612.51,0,INSPIRE MANAGEMENT GROUP LTD,SOCIAL SERVICES DAY CARE,Adult Social Care & Health,Homecare - new framework
Royal Borough of Kingston,06/06/2022,90138602,-612.51,0,INSPIRE MANAGEMENT GROUP LTD,SOCIAL SERVICES DAY CARE,Adult Social Care & Health,Homecare - new framework
Royal Borough of Kingston,06/06/2022,90138603,-612.51,0,INSPIRE MANAGEMENT GROUP LTD,SOCIAL SERVICES DAY CARE,Adult Social Care & Health,Homecare - new framework
Royal Borough of Kingston,06/06/2022,90138604,-612.51,0,INSPIRE MANAGEMENT GROUP LTD,SOCIAL SERVICES DAY CARE,Adult Social Care & Health,Homecare - new framework
Royal Borough of Kingston,06/06/2022,90138606,"2,861.90",0,INSPIRE MANAGEMENT GROUP LTD,SOCIAL SERVICES DAY CARE,Adult Social Care & Health,Homecare - new framework
Royal Borough of Kingston,06/06/2022,90139021,787.51,0,INSPIRE MANAGEMENT GROUP LTD,SOCIAL SERVICES DAY CARE,Adult Social Care & Health,Homecare - new framework
Royal Borough of Kingston,06/06/2022,90139029,551.25,0,INSPIRE MANAGEMENT GROUP LTD,SOCIAL SERVICES DAY CARE,Adult Social Care & Health,Homecare - new framework
Royal Borough of Kingston,06/06/2022,90139048,560,0,INSPIRE MANAGEMENT GROUP LTD,SOCIAL SERVICES DAY CARE,Adult Social Care & Health,Homecare - new framework
Royal Borough of Kingston,06/06/2022,90139128,796.26,0,INSPIRE MANAGEMENT GROUP LTD,SOCIAL SERVICES DAY CARE,Adult Social Care & Health,Homecare - new framework
Royal Borough of Kingston,06/06/2022,70025708,"2,480.00",0,JB LIFT CONSULTANTS LTD,TEMP STAFF & CONSULTANCY,Capital Programme,Council Dwellings - Construction & Renovation
Royal Borough of Kingston,06/06/2022,70025826,840,0,KINGSTON MENCAP,CHARITIES & VOLUNTARY ORGNS,Corporate & Communities,Building Rents
Royal Borough of Kingston,06/06/2022,90139244,"1,400.00",0,OZUMBA TRAINING AND CONSULTANCY SERVICES LIMITED,SOCIAL SERVICES DAY CARE,Adult Social Care & Health,Personal Budget - Third Party
Royal Borough of Kingston,06/06/2022,90141434,551.25,0,Rapid Improvement Ltd,SOCIAL SERVICES - OTHER,Adult Social Care & Health,Homecare - new framework
Royal Borough of Kingston,06/06/2022,70025703,"2,612.87",0,ROYAL MAIL GROUP LTD,OFFICE SERVICES,Corporate & Communities,Postage & Couriers
Royal Borough of Kingston,06/06/2022,90139156,793.34,0,SURBITON HOMECARE MANAGEMENT LTD,SOCIAL SERVICES-HOME CARE,Adult Social Care & Health,Personal Budget - Third Party
Royal Borough of Kingston,06/06/2022,90139285,875.26,0,SURBITON HOMECARE MANAGEMENT LTD,SOCIAL SERVICES-HOME CARE,Adult Social Care & Health,Personal Budget - Third Party
Royal Borough of Kingston,06/06/2022,70025707,950,0,VM COURIERS,DELIVERY AND COURIER SERVICES,Corporate & Communities,Postage & Couriers
Royal Borough of Kingston,06/06/2022,90138573,"2,861.90",0,WANDLE HEALTHCARE SERVICES,SOCIAL SERVICES-HOME CARE,Adult Social Care & Health,Homecare - new framework
Royal Borough of Kingston,06/06/2022,90138580,"2,861.90",0,WANDLE HEALTHCARE SERVICES,SOCIAL SERVICES-HOME CARE,Adult Social Care & Health,Homecare - new framework
Royal Borough of Kingston,06/06/2022,90138586,"2,861.90",0,WANDLE HEALTHCARE SERVICES,SOCIAL SERVICES-HOME CARE,Adult Social Care & Health,Homecare - new framework
Royal Borough of Kingston,06/06/2022,90138587,"2,861.90",0,WANDLE HEALTHCARE SERVICES,SOCIAL SERVICES-HOME CARE,Adult Social Care & Health,Homecare - new framework
Royal Borough of Kingston,06/06/2022,90138605,"2,861.90",0,WANDLE HEALTHCARE SERVICES,SOCIAL SERVICES-HOME CARE,Adult Social Care & Health,Homecare - new framework
Royal Borough of Kingston,06/06/2022,90138711,551.25,0,WANDLE HEALTHCARE SERVICES,SOCIAL SERVICES-HOME CARE,Adult Social Care & Health,Homecare - new framework
Royal Borough of Kingston,06/06/2022,90138984,551.25,0,WANDLE HEALTHCARE SERVICES,SOCIAL SERVICES-HOME CARE,Adult Social Care & Health,Homecare - new framework
Royal Borough of Kingston,06/06/2022,90138986,"1,100.73",0,WANDLE HEALTHCARE SERVICES,SOCIAL SERVICES-HOME CARE,Adult Social Care & Health,Homecare - new framework
Royal Borough of Kingston,06/06/2022,90139241,"1,043.70",0,WANDLE HEALTHCARE SERVICES,SOCIAL SERVICES-HOME CARE,Adult Social Care & Health,Personal Budget - Third Party
Royal Borough of Kingston,06/06/2022,90139286,744,0,WANDLE HEALTHCARE SERVICES,SOCIAL SERVICES-HOME CARE,Adult Social Care & Health,Personal Budget - Third Party
Royal Borough of Kingston,06/06/2022,90139287,"1,860.00",0,WANDLE HEALTHCARE SERVICES,SOCIAL SERVICES-HOME CARE,Adult Social Care & Health,Personal Budget - Third Party
Royal Borough of Kingston,06/06/2022,70025699,695,0,WF Education Group Limited,GENERAL GOODS / DEPT. STORES,Corporate & Communities,Equipment And Materials Purchase
Royal Borough of Kingston,06/06/2022,90139198,603.63,0,WINSOR CARE SERVICES LTD,SOCIAL SERVICES RESIDENTIAL,Adult Social Care & Health,Personal Budget - Third Party
Royal Borough of Kingston,06/06/2022,90139201,603.63,0,WINSOR CARE SERVICES LTD,SOCIAL SERVICES RESIDENTIAL,Adult Social Care & Health,Personal Budget - Third Party
Royal Borough of Kingston,06/06/2022,90139205,603.63,0,WINSOR CARE SERVICES LTD,SOCIAL SERVICES RESIDENTIAL,Adult Social Care & Health,Personal Budget - Third Party
Royal Borough of Kingston,06/06/2022,90139210,543.26,0,WINSOR CARE SERVICES LTD,SOCIAL SERVICES RESIDENTIAL,Adult Social Care & Health,Personal Budget - Third Party
Royal Borough of Kingston,06/06/2022,90139217,603.63,0,WINSOR CARE SERVICES LTD,SOCIAL SERVICES RESIDENTIAL,Adult Social Care & Health,Personal Budget - Third Party
Royal Borough of Kingston,06/06/2022,90139218,551.89,0,WINSOR CARE SERVICES LTD,SOCIAL SERVICES RESIDENTIAL,Adult Social Care & Health,Personal Budget - Third Party
Royal Borough of Kingston,06/06/2022,90139224,950,0,WINSOR CARE SERVICES LTD,SOCIAL SERVICES RESIDENTIAL,Adult Social Care & Health,Personal Budget - Third Party
Royal Borough of Kingston,06/06/2022,90139230,603.63,0,WINSOR CARE SERVICES LTD,SOCIAL SERVICES RESIDENTIAL,Adult Social Care & Health,Personal Budget - Third Party
Royal Borough of Kingston,06/06/2022,90139290,793.34,0,WINSOR CARE SERVICES LTD,SOCIAL SERVICES RESIDENTIAL,Adult Social Care & Health,Personal Budget - Third Party
Royal Borough of Kingston,07/06/2022,70025803,"23,275.00",0,ACHIEVING FOR CHILDREN LIMITED,LEGAL & PROFESSIONAL SERVICES,Corporate & Communities,IT Software Maintenance
Royal Borough of Kingston,07/06/2022,70025804,"5,464,125.00",0,ACHIEVING FOR CHILDREN LIMITED,LEGAL & PROFESSIONAL SERVICES,Childrens Services,Fixed Childrens Services Contract Strategic
Royal Borough of Kingston,07/06/2022,90133922,"8,175.00",0,ALEXANDRA SCHOOL,CENTRAL & LOCAL GOVERNMENT,Schools,Miscellaneous Expenses
Royal Borough of Kingston,07/06/2022,90133949,"3,262.50",0,ALEXANDRA SCHOOL,CENTRAL & LOCAL GOVERNMENT,Schools,Miscellaneous Expenses
Royal Borough of Kingston,07/06/2022,90133977,"5,282.81",0,ALEXANDRA SCHOOL,CENTRAL & LOCAL GOVERNMENT,Schools,Miscellaneous Expenses
Royal Borough of Kingston,07/06/2022,90134005,"1,143.00",0,ALEXANDRA SCHOOL,CENTRAL & LOCAL GOVERNMENT,Schools,Miscellaneous Expenses
Royal Borough of Kingston,07/06/2022,90134023,"3,229.00",0,ALEXANDRA SCHOOL,CENTRAL & LOCAL GOVERNMENT,Schools,Miscellaneous Expenses
Royal Borough of Kingston,07/06/2022,70026314,803.3,0,BRITISH GAS,UTILITIES,Housing Revenue Account,Electricity
Royal Borough of Kingston,07/06/2022,90133923,"7,625.00",0,BURLINGTON INFANT AND NURSERY SCHOOL,SCHOOL FUNDS,Schools,Miscellaneous Expenses
Royal Borough of Kingston,07/06/2022,90133950,"2,211.25",0,BURLINGTON INFANT AND NURSERY SCHOOL,SCHOOL FUNDS,Schools,Miscellaneous Expenses
Royal Borough of Kingston,07/06/2022,90133978,"3,611.25",0,BURLINGTON INFANT AND NURSERY SCHOOL,SCHOOL FUNDS,Schools,Miscellaneous Expenses
Royal Borough of Kingston,07/06/2022,90134006,"2,415.00",0,BURLINGTON INFANT AND NURSERY SCHOOL,SCHOOL FUNDS,Schools,Miscellaneous Expenses
Royal Borough of Kingston,07/06/2022,90134024,"6,823.00",0,BURLINGTON INFANT AND NURSERY SCHOOL,SCHOOL FUNDS,Schools,Miscellaneous Expenses
Royal Borough of Kingston,07/06/2022,90133924,"8,646.00",0,BURLINGTON JUNIOR SCHOOL,SCHOOL FUNDS,Schools,Miscellaneous Expenses
Royal Borough of Kingston,07/06/2022,90133951,978.75,0,BURLINGTON JUNIOR SCHOOL,SCHOOL FUNDS,Schools,Miscellaneous Expenses
Royal Borough of Kingston,07/06/2022,90133979,"7,391.25",0,BURLINGTON JUNIOR SCHOOL,SCHOOL FUNDS,Schools,Miscellaneous Expenses
Royal Borough of Kingston,07/06/2022,90133926,"8,121.00",0,CHRIST CHURCH  C. OF E.  PRIMARY SCHOOL (NEW MALDEN),SCHOOL FUNDS,Schools,Miscellaneous Expenses
Royal Borough of Kingston,07/06/2022,90133953,"3,103.00",0,CHRIST CHURCH  C. OF E.  PRIMARY SCHOOL (NEW MALDEN),SCHOOL FUNDS,Schools,Miscellaneous Expenses
Royal Borough of Kingston,07/06/2022,90133981,"2,986.87",0,CHRIST CHURCH  C. OF E.  PRIMARY SCHOOL (NEW MALDEN),SCHOOL FUNDS,Schools,Miscellaneous Expenses
Royal Borough of Kingston,07/06/2022,90134007,711,0,CHRIST CHURCH  C. OF E.  PRIMARY SCHOOL (NEW MALDEN),SCHOOL FUNDS,Schools,Miscellaneous Expenses
Royal Borough of Kingston,07/06/2022,90134025,"2,010.00",0,CHRIST CHURCH  C. OF E.  PRIMARY SCHOOL (NEW MALDEN),SCHOOL FUNDS,Schools,Miscellaneous Expenses
Royal Borough of Kingston,07/06/2022,90133925,"8,446.00",0,CHRIST CHURCH C.OF E. PRIMARY SCHOOL - (SURBITON),ACADEMIC INSTNS - OTHER,Schools,Miscellaneous Expenses
Royal Borough of Kingston,07/06/2022,90133952,"2,972.50",0,CHRIST CHURCH C.OF E. PRIMARY SCHOOL - (SURBITON),ACADEMIC INSTNS - OTHER,Schools,Miscellaneous Expenses
Royal Borough of Kingston,07/06/2022,90133980,"2,446.88",0,CHRIST CHURCH C.OF E. PRIMARY SCHOOL - (SURBITON),ACADEMIC INSTNS - OTHER,Schools,Miscellaneous Expenses
Royal Borough of Kingston,07/06/2022,90133927,"7,417.00",0,COOMBE HILL INFANTS SCHOOL,ACADEMIC INSTNS - OTHER,Schools,Miscellaneous Expenses
Royal Borough of Kingston,07/06/2022,90133954,"2,474.50",0,COOMBE HILL INFANTS SCHOOL,ACADEMIC INSTNS - OTHER,Schools,Miscellaneous Expenses
Royal Borough of Kingston,07/06/2022,90133982,"1,451.25",0,COOMBE HILL INFANTS SCHOOL,ACADEMIC INSTNS - OTHER,Schools,Miscellaneous Expenses
Royal Borough of Kingston,07/06/2022,90133928,"8,421.00",0,COOMBE HILL JUNIOR SCHOOL,ACADEMIC INSTNS - OTHER,Schools,Miscellaneous Expenses
Royal Borough of Kingston,07/06/2022,90133955,"1,191.75",0,COOMBE HILL JUNIOR SCHOOL,ACADEMIC INSTNS - OTHER,Schools,Miscellaneous Expenses
Royal Borough of Kingston,07/06/2022,90133983,"4,320.00",0,COOMBE HILL JUNIOR SCHOOL,ACADEMIC INSTNS - OTHER,Schools,Miscellaneous Expenses
Royal Borough of Kingston,07/06/2022,90133929,"8,150.00",0,CORPUS CHRISTI CATHOLIC PRIMARY SCHOOL ,ACADEMIC INSTNS - OTHER,Schools,Miscellaneous Expenses
Royal Borough of Kingston,07/06/2022,90133956,"1,921.25",0,CORPUS CHRISTI CATHOLIC PRIMARY SCHOOL ,ACADEMIC INSTNS - OTHER,Schools,Miscellaneous Expenses
Royal Borough of Kingston,07/06/2022,90133984,"3,071.25",0,CORPUS CHRISTI CATHOLIC PRIMARY SCHOOL ,ACADEMIC INSTNS - OTHER,Schools,Miscellaneous Expenses
Royal Borough of Kingston,07/06/2022,90134008,625,0,CORPUS CHRISTI CATHOLIC PRIMARY SCHOOL ,ACADEMIC INSTNS - OTHER,Schools,Miscellaneous Expenses
Royal Borough of Kingston,07/06/2022,90134026,"1,767.00",0,CORPUS CHRISTI CATHOLIC PRIMARY SCHOOL ,ACADEMIC INSTNS - OTHER,Schools,Miscellaneous Expenses
Royal Borough of Kingston,07/06/2022,70025866,"2,602.15",0,Credence Direct Limited,TEMP STAFF & CONSULTANCY,Adult Social Care & Health,Other Private Contractors - Third Party
Royal Borough of Kingston,07/06/2022,90133930,"7,992.00",0,ELLINGHAM PRIMARY SCHOOL,ACADEMIC INSTNS - OTHER,Schools,Miscellaneous Expenses
Royal Borough of Kingston,07/06/2022,90133957,761.25,0,ELLINGHAM PRIMARY SCHOOL,ACADEMIC INSTNS - OTHER,Schools,Miscellaneous Expenses
Royal Borough of Kingston,07/06/2022,90133985,"5,602.50",0,ELLINGHAM PRIMARY SCHOOL,ACADEMIC INSTNS - OTHER,Schools,Miscellaneous Expenses
Royal Borough of Kingston,07/06/2022,90134009,561,0,ELLINGHAM PRIMARY SCHOOL,ACADEMIC INSTNS - OTHER,Schools,Miscellaneous Expenses
Royal Borough of Kingston,07/06/2022,90134027,"1,584.00",0,ELLINGHAM PRIMARY SCHOOL,ACADEMIC INSTNS - OTHER,Schools,Miscellaneous Expenses
Royal Borough of Kingston,07/06/2022,90134041,"10,302.92",0,ELLINGHAM PRIMARY SCHOOL,ACADEMIC INSTNS - OTHER,Schools,Miscellaneous Expenses
Royal Borough of Kingston,07/06/2022,90133931,"8,858.00",0,GRAND AVENUE PRIMARY AND NURSERY SCHOOL,CENTRAL & LOCAL GOVERNMENT,Schools,Miscellaneous Expenses
Royal Borough of Kingston,07/06/2022,90133958,"2,511.50",0,GRAND AVENUE PRIMARY AND NURSERY SCHOOL,CENTRAL & LOCAL GOVERNMENT,Schools,Miscellaneous Expenses
Royal Borough of Kingston,07/06/2022,90133986,"5,855.63",0,GRAND AVENUE PRIMARY AND NURSERY SCHOOL,CENTRAL & LOCAL GOVERNMENT,Schools,Miscellaneous Expenses
Royal Borough of Kingston,07/06/2022,90134010,"1,121.00",0,GRAND AVENUE PRIMARY AND NURSERY SCHOOL,CENTRAL & LOCAL GOVERNMENT,Schools,Miscellaneous Expenses
Royal Borough of Kingston,07/06/2022,90134028,"3,168.00",0,GRAND AVENUE PRIMARY AND NURSERY SCHOOL,CENTRAL & LOCAL GOVERNMENT,Schools,Miscellaneous Expenses
Royal Borough of Kingston,07/06/2022,90133932,"8,154.00",0,KING ATHELSTAN PRIMARY SCHOOL,SCHOOL FUNDS,Schools,Miscellaneous Expenses
Royal Borough of Kingston,07/06/2022,90133959,"3,972.25",0,KING ATHELSTAN PRIMARY SCHOOL,SCHOOL FUNDS,Schools,Miscellaneous Expenses
Royal Borough of Kingston,07/06/2022,90133987,"8,354.06",0,KING ATHELSTAN PRIMARY SCHOOL,SCHOOL FUNDS,Schools,Miscellaneous Expenses
Royal Borough of Kingston,07/06/2022,90134011,"1,013.00",0,KING ATHELSTAN PRIMARY SCHOOL,SCHOOL FUNDS,Schools,Miscellaneous Expenses
Royal Borough of Kingston,07/06/2022,90134029,"2,863.00",0,KING ATHELSTAN PRIMARY SCHOOL,SCHOOL FUNDS,Schools,Miscellaneous Expenses
Royal Borough of Kingston,07/06/2022,90133933,"8,079.00",0,KINGS OAK PRIMARY SCHOOL,CENTRAL & LOCAL GOVERNMENT,Schools,Miscellaneous Expenses
Royal Borough of Kingston,07/06/2022,90133960,"3,045.00",0,KINGS OAK PRIMARY SCHOOL,CENTRAL & LOCAL GOVERNMENT,Schools,Miscellaneous Expenses
Royal Borough of Kingston,07/06/2022,90133988,"14,461.88",0,KINGS OAK PRIMARY SCHOOL,CENTRAL & LOCAL GOVERNMENT,Schools,Miscellaneous Expenses
Royal Borough of Kingston,07/06/2022,90134012,"1,811.00",0,KINGS OAK PRIMARY SCHOOL,CENTRAL & LOCAL GOVERNMENT,Schools,Miscellaneous Expenses
Royal Borough of Kingston,07/06/2022,90134030,"5,117.00",0,KINGS OAK PRIMARY SCHOOL,CENTRAL & LOCAL GOVERNMENT,Schools,Miscellaneous Expenses
Royal Borough of Kingston,07/06/2022,70026818,"6,000.00",0,Kingston International Film Festival Limited,GRANTS & EX GRATIA PAYMENTS,Corporate & Communities,Payments to Voluntary Organisations
Royal Borough of Kingston,07/06/2022,90133934,"7,962.00",0,LIME TREE PRIMARY,ACADEMIC INSTNS - OTHER,Schools,Miscellaneous Expenses
Royal Borough of Kingston,07/06/2022,90133961,"2,791.25",0,LIME TREE PRIMARY,ACADEMIC INSTNS - OTHER,Schools,Miscellaneous Expenses
Royal Borough of Kingston,07/06/2022,90133989,"6,453.75",0,LIME TREE PRIMARY,ACADEMIC INSTNS - OTHER,Schools,Miscellaneous Expenses
Royal Borough of Kingston,07/06/2022,90133935,"8,604.00",0,LOVELACE PRIMARY SCHOOL,ACADEMIC INSTNS - OTHER,Schools,Miscellaneous Expenses
Royal Borough of Kingston,07/06/2022,90133962,"6,650.75",0,LOVELACE PRIMARY SCHOOL,ACADEMIC INSTNS - OTHER,Schools,Miscellaneous Expenses
Royal Borough of Kingston,07/06/2022,90133990,"5,686.87",0,LOVELACE PRIMARY SCHOOL,ACADEMIC INSTNS - OTHER,Schools,Miscellaneous Expenses
Royal Borough of Kingston,07/06/2022,90134013,776,0,LOVELACE PRIMARY SCHOOL,ACADEMIC INSTNS - OTHER,Schools,Miscellaneous Expenses
Royal Borough of Kingston,07/06/2022,90134031,"2,193.00",0,LOVELACE PRIMARY SCHOOL,ACADEMIC INSTNS - OTHER,Schools,Miscellaneous Expenses
Royal Borough of Kingston,07/06/2022,90133936,"8,058.00",0,MALDEN MANOR PRIMARY & NURSERY SCHOOL,SCHOOL FUNDS,Schools,Miscellaneous Expenses
Royal Borough of Kingston,07/06/2022,90133963,"2,827.50",0,MALDEN MANOR PRIMARY & NURSERY SCHOOL,SCHOOL FUNDS,Schools,Miscellaneous Expenses
Royal Borough of Kingston,07/06/2022,90133991,"5,686.88",0,MALDEN MANOR PRIMARY & NURSERY SCHOOL,SCHOOL FUNDS,Schools,Miscellaneous Expenses
Royal Borough of Kingston,07/06/2022,90134014,862,0,MALDEN MANOR PRIMARY & NURSERY SCHOOL,SCHOOL FUNDS,Schools,Miscellaneous Expenses
Royal Borough of Kingston,07/06/2022,90134032,"2,437.00",0,MALDEN MANOR PRIMARY & NURSERY SCHOOL,SCHOOL FUNDS,Schools,Miscellaneous Expenses
Royal Borough of Kingston,07/06/2022,90133921,"1,050.16",0,MALDEN OAKS PRU,ACADEMIC INSTNS - OTHER,Schools,Miscellaneous Expenses
Royal Borough of Kingston,07/06/2022,90133976,"1,413.75",0,MALDEN OAKS PRU,ACADEMIC INSTNS - OTHER,Schools,Miscellaneous Expenses
Royal Borough of Kingston,07/06/2022,90134004,"4,450.32",0,MALDEN OAKS PRU,ACADEMIC INSTNS - OTHER,Schools,Miscellaneous Expenses
Royal Borough of Kingston,07/06/2022,90133937,"7,417.00",0,MALDEN PAROCHIAL COFE PRIMARY,ACADEMIC INSTNS - OTHER,Schools,Miscellaneous Expenses
Royal Borough of Kingston,07/06/2022,90133964,"1,123.75",0,MALDEN PAROCHIAL COFE PRIMARY,ACADEMIC INSTNS - OTHER,Schools,Miscellaneous Expenses
Royal Borough of Kingston,07/06/2022,90133992,826.87,0,MALDEN PAROCHIAL COFE PRIMARY,ACADEMIC INSTNS - OTHER,Schools,Miscellaneous Expenses
Royal Borough of Kingston,07/06/2022,90134033,"1,401.00",0,MALDEN PAROCHIAL COFE PRIMARY,ACADEMIC INSTNS - OTHER,Schools,Miscellaneous Expenses
Royal Borough of Kingston,07/06/2022,90133938,"7,404.00",0,MAPLE INFANTS SCHOOL ,SCHOOL FUNDS,Schools,Miscellaneous Expenses
Royal Borough of Kingston,07/06/2022,90133965,500,0,MAPLE INFANTS SCHOOL ,SCHOOL FUNDS,Schools,Miscellaneous Expenses
Royal Borough of Kingston,07/06/2022,90133993,"1,248.75",0,MAPLE INFANTS SCHOOL ,SCHOOL FUNDS,Schools,Miscellaneous Expenses
Royal Borough of Kingston,07/06/2022,90134016,927,0,MAPLE INFANTS SCHOOL ,SCHOOL FUNDS,Schools,Miscellaneous Expenses
Royal Borough of Kingston,07/06/2022,90134034,"2,620.00",0,MAPLE INFANTS SCHOOL ,SCHOOL FUNDS,Schools,Miscellaneous Expenses
Royal Borough of Kingston,07/06/2022,70025881,"2,400.00",0,REDACTED - PERSONAL DATA,PLS LANDLORDS,Place,Housing Incentives
Royal Borough of Kingston,07/06/2022,70025553,750,0,REDACTED - PERSONAL DATA,PLS LANDLORDS,Place,Housing Incentives
Royal Borough of Kingston,07/06/2022,70025925,644.48,0,NEWSQUEST MEDIA GROUP LTD,PRESS & PUBLICITY,Place,Publicity And Promotions
Royal Borough of Kingston,07/06/2022,70025926,644.48,0,NEWSQUEST MEDIA GROUP LTD,PRESS & PUBLICITY,Place,Publicity And Promotions
Royal Borough of Kingston,07/06/2022,90133939,"8,121.00",0,OUR LADY IMMACULATE CATHOLIC PRIMARY SCHOOL ,ACADEMIC INSTNS - OTHER,Schools,Miscellaneous Expenses
